{"text_format":"1","workbook":"xlsx","n_sheets":19,"sheets":["Inställningar","Förslag kriterier","Matris 1","Matris 2","Kvantitativ","Matris 3","Matris 4","Resultat vikter","Resultat totalt","Resultat detalj","Kriterier","Skalor o färg","Sum. dim 1","Vikt dim 1","Sum. dim 2","Vikt dim 2","Sum. dim 3","Vikt dim 3","Sammanf totalt"],"not_rendered":{"charts":10,"images":1,"macros":1,"external_links":0,"defined_names":14,"comments":14,"pivot_tables":0},"unopened":[],"bounds":{"document_bytes":16777216,"sheet_cells":100000,"rows_first":2000,"rows_last":500,"rows_between":2000,"halvings":0,"cell_chars":16384,"cell_head_chars":4096},"cells_cut":0,"cells_raw":0,"read":"whole","date_system":"1900"}

{"sheet":"Inställningar","index":0,"n_rows":47,"n_cols":26,"rows_kept":47,"cut":false,"hidden":false,"merged":[[9,4,11,6]]}
["Grundinställningar i SAMLA för förorenade områden",null,null,"SAMLA version 2.5"]
[]
[]
[]
["Objekt:",null,"XYZ-köping"]
[]
["Namn på de två tidsperspektiven:","A.","Kort sikt"]
[null,"B.","Lång sikt"]
[]
["Referensalternativ:",null,"Nollalternativ: ingen åtgärd","Beskrivning:","Värderingen görs med nollalternativet på kort sikt som referens. Därmed får samtliga kriterier 0 poäng för \"noll-alternativet - kort sikt\"."]
[null,null,null,null,null,null,null,null,null,null,null,null,"Tot.skala"]
["Poängskala:",null,null,null,null,null,null,null,null,null,2]
[]
["Viktningsskala:",null,null,null,null,null,null,null,null,null,1]
[null,null,null,null,null,null,null,null,null,null,1]
["Fördefinierade kriterier:",null,null,null,null,null,null,null,null,null,1,1]
[null,null,null,null,null,null,null,null,null,null,1]
["Hållbarhetsdimensioner:",{"$f":"IF(C18<>\"\",\"1.\",\"\")","v":"1."},"Ekologisk"]
[null,{"$f":"IF(C19<>\"\",\"2.\",\"\")","v":"2."},"Social"]
[null,{"$f":"IF(C20<>\"\",\"3.\",\"\")","v":"3."},"Ekonomisk"]
[null,null,null,null,null,null,null,null,null,null,null,"Dölj:","Dölj:"]
[null,null,null,null,null,null,{"$f":"IF($L$22=FALSE,\"Skalans\",\"\")","v":""},null,{"$f":"IF($M$22,\"\",\"Log-skalans spann, \")","v":""},null,null,{"$f":"IF(LARGE($L$24:$L$39,1)=1,TRUE,FALSE)","v":true},{"$f":"IF(OR(NOT(OR(M24:M39)),PRODUCT(L24:L39)=1),TRUE,FALSE)","v":true}]
["Definition av kriterier:",null,"Kriterium","Hållbarhetsdimension","      Typ",{"$f":"IF($L$22=FALSE,\"Enhet\",\"\")","v":""},{"$f":"IF($L$22=FALSE,\"max-värde\",\"\")","v":""},{"$f":"IF($L$22=FALSE,\"Log-skala\",\"\")","v":""},{"$f":"IF($M$22,\"\",\"antal 10-potenser:\")","v":""},null,"Dim.","Typ.","Log."]
[null,null,"1. Utsläpp till luft",null,null,null,null,null,null,null,1,1,false]
[null,null,"2. Jord och mark",null,null,null,null,null,null,null,1,1,false]
[null,null,"3. Grundvatten",null,null,null,null,null,null,null,1,1,false]
[null,null,"4. Ytvatten och sediment",null,null,null,null,null,null,null,1,1,false]
[null,null,"5. Ekologi",null,null,null,null,null,null,null,1,1,false]
[null,null,"6. Naturresurser och avfall",null,null,null,null,null,null,null,1,1,false]
[null,null,"7. Hälsa och säkerhet",null,null,null,null,null,null,null,2,1,false]
[null,null,"8. Etik och jämlikhet",null,null,null,null,null,null,null,2,1,false]
[null,null,"9. Närmiljö",null,null,null,null,null,null,null,2,1,false]
[null,null,"10. Lokalsamhälle",null,null,null,null,null,null,null,2,1,false]
[null,null,"11. Osäkerhet och evidens",null,null,null,null,null,null,null,2,1,false]
[null,null,"12. Direkta kostnader och nyttor",null,null,null,null,null,null,null,3,1,false]
[null,null,"13. Indirekta kostnader och nyttor",null,null,null,null,null,null,null,3,1,false]
[null,null,"14. Inducerade kostnader och nyttor",null,null,null,null,null,null,null,3,1,false]
[null,null,"15. Beständighet och flexibilitet",null,null,null,null,null,null,null,3,1,false]
[]
[]
[null,null,null,null,null,null,null,null,null,"Dim:",{"$f":"$K24","v":1},{"$f":"$K25","v":1},{"$f":"$K26","v":1},{"$f":"$K27","v":1},{"$f":"$K28","v":1},{"$f":"$K29","v":1},{"$f":"$K30","v":2},{"$f":"$K31","v":2},{"$f":"$K32","v":2},{"$f":"$K33","v":2},{"$f":"$K34","v":2},{"$f":"$K35","v":3},{"$f":"$K36","v":3},{"$f":"$K37","v":3},{"$f":"$K38","v":3},{"$f":"$K39","v":0}]
[null,null,null,null,null,null,null,null,null,"Typ:",{"$f":"$L24","v":1},{"$f":"$L25","v":1},{"$f":"$L26","v":1},{"$f":"$L27","v":1},{"$f":"$L28","v":1},{"$f":"$L29","v":1},{"$f":"$L30","v":1},{"$f":"$L31","v":1},{"$f":"$L32","v":1},{"$f":"$L33","v":1},{"$f":"$L34","v":1},{"$f":"$L35","v":1},{"$f":"$L36","v":1},{"$f":"$L37","v":1},{"$f":"$L38","v":1},{"$f":"$L39","v":0}]
[null,null,null,null,null,null,null,null,null,"Max:",{"$f":"$G24","v":0},{"$f":"$G25","v":0},{"$f":"$G26","v":0},{"$f":"$G27","v":0},{"$f":"$G28","v":0},{"$f":"$G29","v":0},{"$f":"$G30","v":0},{"$f":"$G31","v":0},{"$f":"$G32","v":0},{"$f":"$G33","v":0},{"$f":"$G34","v":0},{"$f":"$G35","v":0},{"$f":"$G36","v":0},{"$f":"$G37","v":0},{"$f":"$G38","v":0},{"$f":"$G39","v":0}]
[null,null,null,null,null,null,null,null,null,"Log max:",{"$f":"LOG10($G24)","v":{"$error":"#NUM!"}},{"$f":"LOG10($G25)","v":{"$error":"#NUM!"}},{"$f":"LOG10($G26)","v":{"$error":"#NUM!"}},{"$f":"LOG10($G27)","v":{"$error":"#NUM!"}},{"$f":"LOG10($G28)","v":{"$error":"#NUM!"}},{"$f":"LOG10($G29)","v":{"$error":"#NUM!"}},{"$f":"LOG10($G30)","v":{"$error":"#NUM!"}},{"$f":"LOG10($G31)","v":{"$error":"#NUM!"}},{"$f":"LOG10($G32)","v":{"$error":"#NUM!"}},{"$f":"LOG10($G33)","v":{"$error":"#NUM!"}},{"$f":"LOG10($G34)","v":{"$error":"#NUM!"}},{"$f":"LOG10($G35)","v":{"$error":"#NUM!"}},{"$f":"LOG10($G36)","v":{"$error":"#NUM!"}},{"$f":"LOG10($G37)","v":{"$error":"#NUM!"}},{"$f":"LOG10($G38)","v":{"$error":"#NUM!"}},{"$f":"LOG10($G39)","v":{"$error":"#NUM!"}}]
[null,null,null,null,null,null,null,null,null,"Log min:",{"$f":"LOG10($G24/10^$I24)","v":{"$error":"#NUM!"}},{"$f":"LOG10($G25/10^$I25)","v":{"$error":"#NUM!"}},{"$f":"LOG10($G26/10^$I26)","v":{"$error":"#NUM!"}},{"$f":"LOG10($G27/10^$I27)","v":{"$error":"#NUM!"}},{"$f":"LOG10($G28/10^$I28)","v":{"$error":"#NUM!"}},{"$f":"LOG10($G29/10^$I29)","v":{"$error":"#NUM!"}},{"$f":"LOG10($G30/10^$I30)","v":{"$error":"#NUM!"}},{"$f":"LOG10($G31/10^$I31)","v":{"$error":"#NUM!"}},{"$f":"LOG10($G32/10^$I32)","v":{"$error":"#NUM!"}},{"$f":"LOG10($G33/10^$I33)","v":{"$error":"#NUM!"}},{"$f":"LOG10($G34/10^$I34)","v":{"$error":"#NUM!"}},{"$f":"LOG10($G35/10^$I35)","v":{"$error":"#NUM!"}},{"$f":"LOG10($G36/10^$I36)","v":{"$error":"#NUM!"}},{"$f":"LOG10($G37/10^$I37)","v":{"$error":"#NUM!"}},{"$f":"LOG10($G38/10^$I38)","v":{"$error":"#NUM!"}},{"$f":"LOG10($G39/10^$I39)","v":{"$error":"#NUM!"}}]
[null,null,null,null,null,null,null,null,null,"Log:",{"$f":"$M24","v":false},{"$f":"$M25","v":false},{"$f":"$M26","v":false},{"$f":"$M27","v":false},{"$f":"$M28","v":false},{"$f":"$M29","v":false},{"$f":"$M30","v":false},{"$f":"$M31","v":false},{"$f":"$M32","v":false},{"$f":"$M33","v":false},{"$f":"$M34","v":false},{"$f":"$M35","v":false},{"$f":"$M36","v":false},{"$f":"$M37","v":false},{"$f":"$M38","v":false},{"$f":"$M39","v":0}]
[null,null,null,null,null,null,null,null,null,"Namn:",{"$f":"IF(OFFSET($C$18,K41-1,0,1,1)=0,\"\",OFFSET($C$18,K41-1,0,1,1))","v":"Ekologisk"},"Ekologisk","Ekologisk","Ekologisk","Ekologisk","Ekologisk","Social","Social","Social","Social","Social","Ekonomisk","Ekonomisk","Ekonomisk","Ekonomisk",""]

{"sheet":"Förslag kriterier","index":1,"n_rows":115,"n_cols":5,"rows_kept":115,"cut":false,"hidden":false,"merged":[[78,4,80,4],[68,4,73,4],[74,4,77,4],[6,4,7,4],[12,4,13,4],[24,4,28,4],[31,4,38,4],[61,4,62,4],[63,4,67,4],[46,4,53,4],[54,4,60,4],[97,4,101,4],[102,4,107,4],[108,4,110,4],[85,4,90,4],[91,4,96,4]]}
["Förslag på kriterier enligt SGI Vägledning nr 7, Riskvärdering vid förorenade områden (2022)",null,null,null,{"$f":"Inställningar!D1","v":"SAMLA version 2.5"}]
[]
["Se även Bilaga 1 i SGI (2022). Kriterierna baseras på SuRF-UK (2020) men har anpassats till svenska förhållanden."]
[]
["Dimension","Nr.","Kriterium","Exempel på delkriterier (indikatorer)","Kommentarer"]
[]
["Ekologisk",1,"Utsläpp till luft","• Utsläpp till luft i form av:","Kan även påverka den sociala dimensionen (kriterierna Hälsa och säkerhet samt Närmiljö)."]
[null,null,null,"- Växthusgaser."]
[null,null,null,"- Utsläpp som bidrar till försurning."]
[null,null,null,"- Utsläpp som skadar ozonskiktet."]
[null,null,null,"- Utsläpp som påverkar luftkvaliteten vid markytan."]
[]
["Ekologisk",2,"Jord och mark","• Avser positiva och negativa effekter på jorden, markens ekosystem och markens stabilitet, bland annat:","Avgränsning krävs mot kriteriet Ekologi, för att undvika dubbelräkning av effekter."]
[null,null,null,"- Markekosystemet i sig."]
[null,null,null,"- Ekosystemtjänster som marken levererar."]
[null,null,null,"- Påverkan på geotekniska förhållanden."]
[null,null,null,"- Kompaktering av marken."]
[null,null,null,"- Hårdgörning av marken."]
[null,null,null,"- Påverkan på jordegenskaper som pH, organisk halt, kornstorlek med mera."]
[null,null,null,"- Jorderosion."]
[null,null,null,"- Återfyllnadsmassornas lämplighet."]
[null,null,null,"- Sekundära effekter som förändrade markförhållanden kan ge upphov till."]
[null,null,null,"- Övergripande effekter på jord, som skyddsobjekt och som resurs."]
[]
["Ekologisk",3,"Grundvatten","• Direkta och indirekta effekter på grundvatten, bland annat:","Hälsoeffekter orsakade av grundvatten beaktas genom kriteriet Hälsa och säkerhet. Grundvatten som ekonomisk resurs hör hemma under kriteriet Indirekta kostnader och nyttor eller möjligen Direkta kostnader och nyttor, beroende på projekt."]
[null,null,null,"-  Föroreningshalter."]
[null,null,null,"- Vattenkemi."]
[null,null,null,"- Hydrogeologiska förhållanden."]
[null,null,null,"- Grundvattenberoende ekosystem."]
[null,null,null,"- Övergripande effekter på grundvattnet, som skyddsobjekt och som resurs."]
[]
["Ekologisk",4,"Ytvatten och sediment","• Direkta och indirekta effekter på ytvatten och sediment, bland annat:","Hälsoeffekter orsakade av ytvatten beaktas med kriteriet Hälsa och säkerhet. Ytvatten som ekonomisk resurs kopplar till kriteriet Indirekta kostnader och nyttor eller möjligen Direkta kostnader och nyttor, beroende på projekt. Det kan även finnas en koppling till kriteriet Lokalsamhälle (utsikt mot vatten, badmöjligheter med mera)."]
[null,null,null,"- Föroreningshalter."]
[null,null,null,"- Vattenkemi."]
[null,null,null,"- Hydrologiska förhållanden."]
[null,null,null,"- Ytvattenekosystemet."]
[null,null,null,"- Övergripande effekter på ytvattnet, som skyddsobjekt och som resurs."]
[]
[]
["Ekologisk",5,"Ekologi","• Kriteriet omfattar positiva och negativa ekologiska effekter som åtgärderna ger upphov till. Kriteriet kan vara viktigt för många förorenade områden och kan stödjas av exempelvis naturvärdesinventeringar, för att lyfta fram ekologiska mervärden i projekt. Kriteriet fångar upp effekter på flora, fauna, habitat och biodiversitet. Det bör tillämpas för ekologiska effekter som inte täcks in av kriterierna Jord och mark, Grundvatten samt Ytvatten och sediment. Kriteriet omfattar exempelvis:","Ekonomiska effekter av ekosystemtjänster kopplar till kriteriet Indirekta kostnader och nyttor. Det kan även finnas en koppling till kriteriet Lokalsamhälle (områdets attraktionskraft med mera)."]
[null,null,null,"- Effekter på skyddade eller särskilt skyddsvärda områden."]
[null,null,null,"- Effekter på den biologiska mångfalden."]
[null,null,null,"- Effekter på näringsväven, såsom sekundärförgiftning."]
[null,null,null,"- Effekter på ekosystemtjänster."]
[null,null,null,"- Effekter av främmande eller invasiva arter."]
[]
["Ekologisk",6,"Naturresurser och avfall","• Omfattar förbrukning av energi och naturresurser samt produktion av avfall. Exempel på aspekter som kan vägas in är:","Grundvatten och ytvatten som naturresurser hanteras under kriterierna ovan. Ekonomiska effekter med koppling till kriteriet kan hanteras under kriterierna Direkta kostnader och nyttor eller Indirekta kostnader och nyttor."]
[null,null,null,"- Energiförbrukning och energieffektivitet."]
[null,null,null,"- Förbrukning av ändliga resurser."]
[null,null,null,"- Generering av avfall (kontaminerade massor, behandlingsvätskor med mera)."]
[null,null,null,"- Ianspråktagande av deponiutrymme."]
[null,null,null,"- Användning eller återvinning av massor (cirkulär ekonomi)."]
[null,null,null,"- Vattenförbrukning."]
[]
["Social",7,"Hälsa och säkerhet","• Effekter på människors hälsa och säkerhet, både positiva och negativa. Den mest uppenbara positiva effekten är minskade risker genom att föroreningen åtgärdas. Negativa effekter omfattar exempelvis:","Det finns ett avgränsningsproblem gentemot kriteriet Närmiljö där störningar som inte direkt påverkar hälsa och säkerhet beaktas, till exempel begränsade bullerstörningar. Gränsdragningen mellan dessa kriterier måste bestämmas i projektet."]
[null,null,null,"- Exponering för föroreningar i samband med åtgärden (damm, ångor med mera)."]
[null,null,null,"- Olycksrisker på grund av tunga maskiner, transportfordon med mera."]
[null,null,null,"- Olycksrisker från mindre maskiner och utrustning (värme, elektricitet, vibrationer med mera)."]
[null,null,null,"- Exponering för skadliga kemikalier som används i åtgärdsmetoden."]
[null,null,null,"- Risker i samband med transport av farligt avfall."]
[]
["Social",8,"Etik och jämlikhet","• Rättvisa inom nuvarande generation, särskilt för svaga eller utsatta grupper som kan missgynnas av vissa typer av åtgärder.","Kriteriet omfattar olika etiska frågor, rättviseaspekter och jämlikhetsfrågor. Dessa aspekter är viktigast i projekt där allmänheten påverkas av åtgärderna."]
[null,null,null,"• Rättvisa gentemot kommande generationer (exempelvis planerad kvarlämning av förorening till framtida generationer)."]
[null,null,null,"• Hur potentiella störningar på lokalsamhället omhändertas av projektet.","Etik- och jämlikhetsfrågorna kan vara särskilt svåra att hantera i projekt med enbart teknisk och naturvetenskaplig kompetens, därför kan särskild kompetens behöva kopplas\nin i dessa frågor. "]
[null,null,null,"• Hur olika gruppers känslighet eller misstänksamhet gentemot vissa typer av åtgärder hanteras."]
[null,null,null,"• Förändringar på platsen som gynnar vissa medborgare men missgynnar andra, särskilt svaga eller utsatta grupper."]
[]
[]
["Social",9,"Närmiljö","• Störningar under pågående åtgärd i form av buller, vibrationer, ljus, damm och lukt.","Avser effekter i den fysiska miljön vid och i omgivningen av det förorenade området. Effekterna inkluderar fysiska störningar under pågående åtgärd, men även effekter efter åtgärdens genomförande. Effekter på Lokalsamhälle och människors nyttjande av området ingår inte."]
[null,null,null,"• Påverkan på trafiken under åtgärden."]
[null,null,null,"• Påverkan på kulturmiljön."]
[null,null,null,"• Arkeologiska effekter."]
[null,null,null,"• Påverkan på landskapsmiljön (exempelvis landskapsutformning med schaktmassor). "]
[null,null,null,"• Positiva effekter genom att invasiva växter eller skadedjur avlägsnas."]
[null,null,null,"• Upprustning och vitalisering av områden i förfall.","Om störningarna från pågående åtgärd är så stora att de påverkar människors hälsa ingår de i kriteriet Hälsa och säkerhet. "]
[]
[]
[]
["Social",10,"Lokalsamhälle","• Påverkan på lokala tjänster och samhällsfunktioner.","Kriteriet fokuserar på områdets funktionalitet och hur området används av befolkningen (jämför kriteriet Närmiljö som omfattar fysiska effekter)."]
[null,null,null,"• Funktioner som stigar, gångvägar, öppna ytor för allmänheten med mera. "]
[null,null,null,"• Stigma gällande hur området uppfattas (oro för fastighetsvärden med mera)."]
[null,null,null,"• Områdets attraktionskraft."]
[null,null,null,"• Påverkan på rekreation."]
[null,null,null,"• Hinder och avspärrningar för människor under pågående åtgärd."]
[]
["Social",11,"Osäkerhet och evidens","• Kvaliteten på evidens för att åtgärden fungerar och presterar som avsett (måste hanteras med förnuft för att inte missgynna ny teknik).","Kriteriet avser osäkerheter kopplade till åtgärdsalternativen och hur väl dessa presterar. Här ingår även osäkerheter om hur alternativen accepteras av myndigheter, hur åtgärdernas funktion kan verifieras och teknikleverantörens expertkunskap."]
[null,null,null,"• Kvaliteten på studier och undersökningar som ligger till grund för aktuell åtgärdslösning."]
[null,null,null,"• Kravnivåer på validering och verifiering av aktuell metod."]
[null,null,null,"• Eventuell bias i tidigare genomförda undersökningar, orsakad av provtagning, tolkning eller annat."]
[null,null,null,"• Kvaliteten på konceptuella modeller som ligger till grund för åtgärderna."]
[]
["Ekonomisk",12,"Direkta kostnader och nyttor","• Efterbehandlingsåtgärdens direkta ekonomiska kostnader och intäkter.","Kriteriet omfattar direkta finansiella kostnader, intäkter eller minskade utgifter. Den mest typiska kostnaden är åtgärdskostnaden. I vissa fall kan åtgärden bidra till att kostnader för pågående skyddsåtgärder upphör, till exempel pågående pumpning, vattenrening med mera."]
[null,null,null,"• Minskade kostnader för pågående skyddsåtgärder med mera som upphör."]
[]
[]
[]
[]
["Ekonomisk",13,"Indirekta kostnader och nyttor","• Fastighetsvärdesförändringar. ","Kriteriet omfattar övriga indirekta kostnader och nyttor som en åtgärd ger upphov till. Notera dock att effekter som är hänförliga till den ansvarige för föroreningen inte ska\nbeaktas enligt det svenska regelverket; se Avsnitt 4.1.5 i SGI Vägledning 7 (2022)."]
[null,null,null,"• Förbättrat (eller försämrat) företagsklimat i området."]
[null,null,null,"• Ekonomiska störningar i omgivningen på grund av saneringsåtgärderna, tillfälligt eller permanent (minskade butiksintäkter med mera)."]
[]
[]
["Ekonomisk",14,"Inducerade kostnader och nyttor","• Ytterligare saneringar i närområdet, som en följdeffekt av projektet och aktuell efterbehandlingsmetod.","Kriteriet omfattar ekonomiska effekter som uppkommer genom investeringar utanför projektet men som är ett resultat av detta. Det finns en koppling till kriteriet Lokalsamhälle genom effekter som kan uppstå i omgivningen."]
[null,null,null,"• Etablering av nya företag eller andra ekonomiska verksamheter som resultat av åtgärden. "]
[null,null,null,"• Ekonomiska nyttor av ny åtgärdsteknik."]
[null,null,null,"• Effekter på den lokala arbetsmarknaden."]
[null,null,null,"• Kunskapshöjning och ökad anställningsbarhet för individer. "]
[]
["Ekonomisk",15,"Beständighet och flexibilitet","• Hur lång tid åtgärdslösningen förmår ge en acceptabel riskreduktion. ","Kriteriet omfattar åtgärdernas funktion över tid samt hur flexibla och motståndskraftiga\nåtgärderna är vid förändringar."]
[null,null,null,"• Under hur lång tid som kontrollåtgärder behöver pågå eller övervakning ske"]
[null,null,null,"• Under hur lång tid som restriktioner av olika slag måste följas, exempelvis odlingsrekommendationer, begränsningar i grundvattenuttag eller konsumtion av dricksvatten eller fisk."]
[null,null,null,"• Behov av att upprätta en institutionell kontrollmekanism för åtgärden och möjligheten att upprätthålla en sådan över tid."]
[null,null,null,"• Åtgärdens motståndskraft mot klimatförändringar."]
[null,null,null,"• Möjligheter att justera åtgärden om kunskapen om föroreningssituationen förändras\nunder pågående projekt (ytterligare förorening upptäcks)."]
[null,null,null,"• Åtgärdens ekonomiska känslighet för förändringar i projektbudget med mera, särskilt för åtgärder som pågår under lång tid."]

{"sheet":"Matris 1","index":2,"n_rows":24,"n_cols":3,"rows_kept":24,"cut":false,"hidden":false,"merged":[[20,0,22,2],[24,0,29,2],[3,0,3,2],[2,0,2,1]]}
["Objekt:",{"$f":"IF(ISBLANK(Inställningar!C5), \"\",Inställningar!C5)","v":"XYZ-köping"},{"$f":"Inställningar!D1","v":"SAMLA version 2.5"}]
[]
["Övergripande åtgärdsmål:"]
[]
[]
["Matris 1 - Identifiering av konsekvenser utan och med åtgärd",null,"Skriv ut i A3 format. Liggande."]
["Åtgärd","Beskrivning av åtgärd\nIdentifiering av risker och konsekvenser","Potentiella kostnadsposter för åtgärder och  konsekvenser"]
[{"$f":"Inställningar!C10","v":"Nollalternativ: ingen åtgärd"}]
["Åtgärdsförslag 1"]
["Åtgärdsförslag 2"]
["Åtgärdsförslag 3"]
["Åtgärdsförslag 4"]
["Åtgärdsförslag 5"]
["Vita celler fylls i av användarna."]
["Namnge de olika åtgärdsalternativen genom att byta ut texten \"Åtgärdsförslag X\" i vänstra kolumnen."]
["Beskriv risker och konsekvenser för nollalternativet och för övriga alternativ, med text."]
["Gör en uppskattning av kostnader för åtgärderna och för konsekvenser. Dela, om möjligt, upp kostnaderna per moment."]
["Information kan hämtas från t.ex. åtgärdsutredningen."]
[]
["Kommentarer:"]
[]
[]
[]
["Underlag: "]

{"sheet":"Matris 2","index":3,"n_rows":75,"n_cols":18,"rows_kept":75,"cut":false,"hidden":false,"merged":[[18,1,19,1],[20,1,21,1],[30,1,31,1],[32,1,33,1],[46,0,46,18],[30,0,33,0],[22,1,23,1],[24,1,25,1],[26,1,27,1],[28,1,29,1],[18,0,21,0],[42,0,44,17],[22,0,25,0],[26,0,29,0],[0,0,0,1],[6,0,6,1],[3,0,3,17],[0,2,0,14],[14,0,17,0],[8,0,8,1],[5,0,5,4],[10,0,13,0],[10,1,11,1],[12,1,13,1],[14,1,15,1],[16,1,17,1],[48,0,50,17],[52,0,54,17],[56,0,58,17],[60,0,62,17],[64,0,68,17]]}
["Objekt:",null,{"$f":"'Matris 1'!B1","v":"XYZ-köping"},null,null,null,null,null,null,null,null,null,null,null,null,null,null,{"$f":"Inställningar!D1","v":"SAMLA version 2.5"}]
[]
["Övergripande åtgärdsmål:"]
[{"$f":"IF('Matris 1'!A4=\"\",\"\",'Matris 1'!A4)","v":""}]
[]
["Matris 2 - Kategorisering och poängsättning",null,null,null,null,null,{"$f":"IF(SUM(COUNTIF('Matris 3'!C10:R21,\"> \"&TEXT('Skalor o färg'!B8,0)),COUNTIF('Matris 3'!C10:R21,\"< \"&TEXT(0-'Skalor o färg'!B8,0)))>0,\"VARNING! Du har angett ett eller flera tal utanför vald poängskala. Talen används ändå i beräkningarna men färgmarkeringar och grafer kan bli missvisande.\",IF(SUM(COUNTIF(C9:R9,\"> \"&TEXT('Skalor o färg'!B18,0)),COUNTIF(C9:R9,\"< 0\"))>0,\"VARNING! Du har angett ett eller flera tal utanför vald viktningsskala. Vikterna används ändå i beräkningarna men färgmarkeringar och grafer kan bli missvisande.\",\"\"))","v":""},null,null,null,null,null,null,null,null,null,null,"Skriv ut i A3 format. Liggande."]
["Åtgärd",null,{"$f":"Inställningar!K47","v":"Ekologisk"},{"$f":"Inställningar!L47","v":"Ekologisk"},{"$f":"Inställningar!M47","v":"Ekologisk"},{"$f":"Inställningar!N47","v":"Ekologisk"},{"$f":"Inställningar!O47","v":"Ekologisk"},{"$f":"Inställningar!P47","v":"Ekologisk"},{"$f":"Inställningar!Q47","v":"Social"},{"$f":"Inställningar!R47","v":"Social"},{"$f":"Inställningar!S47","v":"Social"},{"$f":"Inställningar!T47","v":"Social"},{"$f":"Inställningar!U47","v":"Social"},{"$f":"Inställningar!V47","v":"Ekonomisk"},{"$f":"Inställningar!W47","v":"Ekonomisk"},{"$f":"Inställningar!X47","v":"Ekonomisk"},{"$f":"Inställningar!Y47","v":"Ekonomisk"},{"$f":"Inställningar!Z47","v":""}]
[null,null,{"$f":"IF(ISBLANK(Inställningar!C24),\"\",Inställningar!C24)","v":"1. Utsläpp till luft"},{"$f":"IF(ISBLANK(Inställningar!C25),\"\",Inställningar!C25)","v":"2. Jord och mark"},{"$f":"IF(ISBLANK(Inställningar!C26),\"\",Inställningar!C26)","v":"3. Grundvatten"},{"$f":"IF(ISBLANK(Inställningar!C27),\"\",Inställningar!C27)","v":"4. Ytvatten och sediment"},{"$f":"IF(ISBLANK(Inställningar!C28),\"\",Inställningar!C28)","v":"5. Ekologi"},{"$f":"IF(ISBLANK(Inställningar!C29),\"\",Inställningar!C29)","v":"6. Naturresurser och avfall"},{"$f":"IF(ISBLANK(Inställningar!C30),\"\",Inställningar!C30)","v":"7. Hälsa och säkerhet"},{"$f":"IF(ISBLANK(Inställningar!C31),\"\",Inställningar!C31)","v":"8. Etik och jämlikhet"},{"$f":"IF(ISBLANK(Inställningar!C32),\"\",Inställningar!C32)","v":"9. Närmiljö"},{"$f":"IF(ISBLANK(Inställningar!C33),\"\",Inställningar!C33)","v":"10. Lokalsamhälle"},{"$f":"IF(ISBLANK(Inställningar!C34),\"\",Inställningar!C34)","v":"11. Osäkerhet och evidens"},{"$f":"IF(ISBLANK(Inställningar!C35),\"\",Inställningar!C35)","v":"12. Direkta kostnader och nyttor"},{"$f":"IF(ISBLANK(Inställningar!C36),\"\",Inställningar!C36)","v":"13. Indirekta kostnader och nyttor"},{"$f":"IF(ISBLANK(Inställningar!C37),\"\",Inställningar!C37)","v":"14. Inducerade kostnader och nyttor"},{"$f":"IF(ISBLANK(Inställningar!C38),\"\",Inställningar!C38)","v":"15. Beständighet och flexibilitet"},{"$f":"IF(ISBLANK(Inställningar!C39),\"\",Inställningar!C39)","v":""}]
["Vikt",null,1,1,1,1,1,1,1,1,1,1,1,1,1,1,1]
["Påverkan",null,{"$f":"IF(C8=\"\",\"\",(C9/(SUM($C$75:$R$75))))","v":6.6666666666666666E-2},6.6666666666666666E-2,6.6666666666666666E-2,6.6666666666666666E-2,6.6666666666666666E-2,6.6666666666666666E-2,6.6666666666666666E-2,6.6666666666666666E-2,6.6666666666666666E-2,6.6666666666666666E-2,6.6666666666666666E-2,6.6666666666666666E-2,6.6666666666666666E-2,6.6666666666666666E-2,6.6666666666666666E-2,""]
[{"$f":"IF('Matris 1'!A8=\"\",\"\",'Matris 1'!A8)","v":"Nollalternativ: ingen åtgärd"},"Kort sikt"]
[]
[null,"Lång sikt"]
[]
[{"$f":"IF('Matris 1'!A9=\"\",\"\",'Matris 1'!A9)","v":"Åtgärdsförslag 1"},"Kort sikt"]
[]
[null,"Lång sikt"]
[]
[{"$f":"IF('Matris 1'!A10=\"\",\"\",'Matris 1'!A10)","v":"Åtgärdsförslag 2"},"Kort sikt"]
[]
[null,"Lång sikt"]
[]
[{"$f":"IF('Matris 1'!A11=\"\",\"\",'Matris 1'!A11)","v":"Åtgärdsförslag 3"},"Kort sikt"]
[]
[null,"Lång sikt"]
[]
[{"$f":"IF('Matris 1'!A12=\"\",\"\",'Matris 1'!A12)","v":"Åtgärdsförslag 4"},"Kort sikt"]
[]
[null,"Lång sikt"]
[]
[{"$f":"IF('Matris 1'!A13=\"\",\"\",'Matris 1'!A13)","v":"Åtgärdsförslag 5"},"Kort sikt"]
[]
[null,"Lång sikt"]
[]
[]
[]
["Vita celler fylls i av användarna."]
["Beskriv åtgärdernas risker och konsekvenser med text i de större cellerna."]
["I de mindre cellerna bedöms  påverkan på de olika kriterierna för varje åtgärdsalternativ, enligt den skala som tidigare valts."]
["I de mörkgrå cellerna överst anges vikter för de olika kriterierna. I utgångsläget är alla kriterier lika betydelsefulla, vikten är satt till 1."]
[]
["Kommentarer:"]
[]
[]
[]
["Bedömningsunderlag"]
[]
["1. Vilket underlag (undersökningar, utredningar etc.) har använts?"]
[]
[]
[]
["2. Om underlag saknas, ange för vilken åtgärd och konsekvens."]
[]
[]
[]
["3. Var underlaget lämpligt/tillräckligt för bedömningen? Om inte, vad behöver förbättras i underlaget? "]
[]
[]
[]
["4. Behöver en fördjupad bedömning göras? "]
[]
[]
[]
["5. Ytterligare kommentar:"]
[]
[]
[]
[]
[]
[]
[]
[]
[]
[]
["Hjälprad för beräkning",null,{"$f":"IF(C8=\"\",\"\",C9)","v":1},{"$f":"IF(D8=\"\",\"\",D9)","v":1},1,1,1,1,1,1,1,1,1,1,1,1,1,""]

{"sheet":"Kvantitativ","index":4,"n_rows":20,"n_cols":18,"rows_kept":20,"cut":false,"hidden":true,"merged":[[16,0,17,0],[18,0,19,0],[0,0,0,1],[0,2,0,16],[3,0,3,16],[5,0,5,5],[6,0,6,1],[8,0,9,0],[10,0,11,0],[12,0,13,0],[14,0,15,0]]}
["Objekt:",null,{"$f":"'Matris 1'!B1","v":"XYZ-köping"}]
[]
[]
[]
[]
["Hjälpmatris för kvantitativa urvalskriterier"]
["Åtgärd",null,{"$f":"Inställningar!K47","v":"Ekologisk"},{"$f":"Inställningar!L47","v":"Ekologisk"},{"$f":"Inställningar!M47","v":"Ekologisk"},{"$f":"Inställningar!N47","v":"Ekologisk"},{"$f":"Inställningar!O47","v":"Ekologisk"},{"$f":"Inställningar!P47","v":"Ekologisk"},{"$f":"Inställningar!Q47","v":"Social"},{"$f":"Inställningar!R47","v":"Social"},{"$f":"Inställningar!S47","v":"Social"},{"$f":"Inställningar!T47","v":"Social"},{"$f":"Inställningar!U47","v":"Social"},{"$f":"Inställningar!V47","v":"Ekonomisk"},{"$f":"Inställningar!W47","v":"Ekonomisk"},{"$f":"Inställningar!X47","v":"Ekonomisk"},{"$f":"Inställningar!Y47","v":"Ekonomisk"},{"$f":"Inställningar!Z47","v":""}]
[null,null,{"$f":"IF(ISBLANK(Inställningar!C24),\"\",Inställningar!C24)","v":"1. Utsläpp till luft"},{"$f":"IF(ISBLANK(Inställningar!C25),\"\",Inställningar!C25)","v":"2. Jord och mark"},{"$f":"IF(ISBLANK(Inställningar!C26),\"\",Inställningar!C26)","v":"3. Grundvatten"},{"$f":"IF(ISBLANK(Inställningar!C27),\"\",Inställningar!C27)","v":"4. Ytvatten och sediment"},{"$f":"IF(ISBLANK(Inställningar!C28),\"\",Inställningar!C28)","v":"5. Ekologi"},{"$f":"IF(ISBLANK(Inställningar!C29),\"\",Inställningar!C29)","v":"6. Naturresurser och avfall"},{"$f":"IF(ISBLANK(Inställningar!C30),\"\",Inställningar!C30)","v":"7. Hälsa och säkerhet"},{"$f":"IF(ISBLANK(Inställningar!C31),\"\",Inställningar!C31)","v":"8. Etik och jämlikhet"},{"$f":"IF(ISBLANK(Inställningar!C32),\"\",Inställningar!C32)","v":"9. Närmiljö"},{"$f":"IF(ISBLANK(Inställningar!C33),\"\",Inställningar!C33)","v":"10. Lokalsamhälle"},{"$f":"IF(ISBLANK(Inställningar!C34),\"\",Inställningar!C34)","v":"11. Osäkerhet och evidens"},{"$f":"IF(ISBLANK(Inställningar!C35),\"\",Inställningar!C35)","v":"12. Direkta kostnader och nyttor"},{"$f":"IF(ISBLANK(Inställningar!C36),\"\",Inställningar!C36)","v":"13. Indirekta kostnader och nyttor"},{"$f":"IF(ISBLANK(Inställningar!C37),\"\",Inställningar!C37)","v":"14. Inducerade kostnader och nyttor"},{"$f":"IF(ISBLANK(Inställningar!C38),\"\",Inställningar!C38)","v":"15. Beständighet och flexibilitet"},{"$f":"IF(ISBLANK(Inställningar!C39),\"\",Inställningar!C39)","v":""}]
[{"$f":"'Matris 1'!A8","v":"Nollalternativ: ingen åtgärd"},"Kort sikt",{"$f":"IF(Inställningar!K$46,IF('Matris 2'!C12<-(10^Inställningar!K$45),-(LOG10(ABS('Matris 2'!C12))-Inställningar!K$45)/(Inställningar!K$44-Inställningar!K$45)*'Skalor o färg'!$B$8,IF('Matris 2'!C12>(10^Inställningar!K$45),(LOG10('Matris 2'!C12)-Inställningar!K$45)/(Inställningar!K$44-Inställningar!K$45)*'Skalor o färg'!$B$8,0)),'Matris 2'!C12/Inställningar!K$43*'Skalor o färg'!$B$8)","v":{"$error":"#DIV/0!"}},{"$f":"IF(Inställningar!L$46,IF('Matris 2'!D12<-(10^Inställningar!L$45),-(LOG10(ABS('Matris 2'!D12))-Inställningar!L$45)/(Inställningar!L$44-Inställningar!L$45)*'Skalor o färg'!$B$8,IF('Matris 2'!D12>(10^Inställningar!L$45),(LOG10('Matris 2'!D12)-Inställningar!L$45)/(Inställningar!L$44-Inställningar!L$45)*'Skalor o färg'!$B$8,0)),'Matris 2'!D12/Inställningar!L$43*'Skalor o färg'!$B$8)","v":{"$error":"#DIV/0!"}},{"$f":"IF(Inställningar!M$46,IF('Matris 2'!E12<-(10^Inställningar!M$45),-(LOG10(ABS('Matris 2'!E12))-Inställningar!M$45)/(Inställningar!M$44-Inställningar!M$45)*'Skalor o färg'!$B$8,IF('Matris 2'!E12>(10^Inställningar!M$45),(LOG10('Matris 2'!E12)-Inställningar!M$45)/(Inställningar!M$44-Inställningar!M$45)*'Skalor o färg'!$B$8,0)),'Matris 2'!E12/Inställningar!M$43*'Skalor o färg'!$B$8)","v":{"$error":"#DIV/0!"}},{"$f":"IF(Inställningar!N$46,IF('Matris 2'!F12<-(10^Inställningar!N$45),-(LOG10(ABS('Matris 2'!F12))-Inställningar!N$45)/(Inställningar!N$44-Inställningar!N$45)*'Skalor o färg'!$B$8,IF('Matris 2'!F12>(10^Inställningar!N$45),(LOG10('Matris 2'!F12)-Inställningar!N$45)/(Inställningar!N$44-Inställningar!N$45)*'Skalor o färg'!$B$8,0)),'Matris 2'!F12/Inställningar!N$43*'Skalor o färg'!$B$8)","v":{"$error":"#DIV/0!"}},{"$f":"IF(Inställningar!O$46,IF('Matris 2'!G12<-(10^Inställningar!O$45),-(LOG10(ABS('Matris 2'!G12))-Inställningar!O$45)/(Inställningar!O$44-Inställningar!O$45)*'Skalor o färg'!$B$8,IF('Matris 2'!G12>(10^Inställningar!O$45),(LOG10('Matris 2'!G12)-Inställningar!O$45)/(Inställningar!O$44-Inställningar!O$45)*'Skalor o färg'!$B$8,0)),'Matris 2'!G12/Inställningar!O$43*'Skalor o färg'!$B$8)","v":{"$error":"#DIV/0!"}},{"$f":"IF(Inställningar!P$46,IF('Matris 2'!H12<-(10^Inställningar!P$45),-(LOG10(ABS('Matris 2'!H12))-Inställningar!P$45)/(Inställningar!P$44-Inställningar!P$45)*'Skalor o färg'!$B$8,IF('Matris 2'!H12>(10^Inställningar!P$45),(LOG10('Matris 2'!H12)-Inställningar!P$45)/(Inställningar!P$44-Inställningar!P$45)*'Skalor o färg'!$B$8,0)),'Matris 2'!H12/Inställningar!P$43*'Skalor o färg'!$B$8)","v":{"$error":"#DIV/0!"}},{"$f":"IF(Inställningar!Q$46,IF('Matris 2'!I12<-(10^Inställningar!Q$45),-(LOG10(ABS('Matris 2'!I12))-Inställningar!Q$45)/(Inställningar!Q$44-Inställningar!Q$45)*'Skalor o färg'!$B$8,IF('Matris 2'!I12>(10^Inställningar!Q$45),(LOG10('Matris 2'!I12)-Inställningar!Q$45)/(Inställningar!Q$44-Inställningar!Q$45)*'Skalor o färg'!$B$8,0)),'Matris 2'!I12/Inställningar!Q$43*'Skalor o färg'!$B$8)","v":{"$error":"#DIV/0!"}},{"$f":"IF(Inställningar!R$46,IF('Matris 2'!J12<-(10^Inställningar!R$45),-(LOG10(ABS('Matris 2'!J12))-Inställningar!R$45)/(Inställningar!R$44-Inställningar!R$45)*'Skalor o färg'!$B$8,IF('Matris 2'!J12>(10^Inställningar!R$45),(LOG10('Matris 2'!J12)-Inställningar!R$45)/(Inställningar!R$44-Inställningar!R$45)*'Skalor o färg'!$B$8,0)),'Matris 2'!J12/Inställningar!R$43*'Skalor o färg'!$B$8)","v":{"$error":"#DIV/0!"}},{"$f":"IF(Inställningar!S$46,IF('Matris 2'!K12<-(10^Inställningar!S$45),-(LOG10(ABS('Matris 2'!K12))-Inställningar!S$45)/(Inställningar!S$44-Inställningar!S$45)*'Skalor o färg'!$B$8,IF('Matris 2'!K12>(10^Inställningar!S$45),(LOG10('Matris 2'!K12)-Inställningar!S$45)/(Inställningar!S$44-Inställningar!S$45)*'Skalor o färg'!$B$8,0)),'Matris 2'!K12/Inställningar!S$43*'Skalor o färg'!$B$8)","v":{"$error":"#DIV/0!"}},{"$f":"IF(Inställningar!T$46,IF('Matris 2'!L12<-(10^Inställningar!T$45),-(LOG10(ABS('Matris 2'!L12))-Inställningar!T$45)/(Inställningar!T$44-Inställningar!T$45)*'Skalor o färg'!$B$8,IF('Matris 2'!L12>(10^Inställningar!T$45),(LOG10('Matris 2'!L12)-Inställningar!T$45)/(Inställningar!T$44-Inställningar!T$45)*'Skalor o färg'!$B$8,0)),'Matris 2'!L12/Inställningar!T$43*'Skalor o färg'!$B$8)","v":{"$error":"#DIV/0!"}},{"$f":"IF(Inställningar!U$46,IF('Matris 2'!M12<-(10^Inställningar!U$45),-(LOG10(ABS('Matris 2'!M12))-Inställningar!U$45)/(Inställningar!U$44-Inställningar!U$45)*'Skalor o färg'!$B$8,IF('Matris 2'!M12>(10^Inställningar!U$45),(LOG10('Matris 2'!M12)-Inställningar!U$45)/(Inställningar!U$44-Inställningar!U$45)*'Skalor o färg'!$B$8,0)),'Matris 2'!M12/Inställningar!U$43*'Skalor o färg'!$B$8)","v":{"$error":"#DIV/0!"}},{"$f":"IF(Inställningar!V$46,IF('Matris 2'!N12<-(10^Inställningar!V$45),-(LOG10(ABS('Matris 2'!N12))-Inställningar!V$45)/(Inställningar!V$44-Inställningar!V$45)*'Skalor o färg'!$B$8,IF('Matris 2'!N12>(10^Inställningar!V$45),(LOG10('Matris 2'!N12)-Inställningar!V$45)/(Inställningar!V$44-Inställningar!V$45)*'Skalor o färg'!$B$8,0)),'Matris 2'!N12/Inställningar!V$43*'Skalor o färg'!$B$8)","v":{"$error":"#DIV/0!"}},{"$f":"IF(Inställningar!W$46,IF('Matris 2'!O12<-(10^Inställningar!W$45),-(LOG10(ABS('Matris 2'!O12))-Inställningar!W$45)/(Inställningar!W$44-Inställningar!W$45)*'Skalor o färg'!$B$8,IF('Matris 2'!O12>(10^Inställningar!W$45),(LOG10('Matris 2'!O12)-Inställningar!W$45)/(Inställningar!W$44-Inställningar!W$45)*'Skalor o färg'!$B$8,0)),'Matris 2'!O12/Inställningar!W$43*'Skalor o färg'!$B$8)","v":{"$error":"#DIV/0!"}},{"$f":"IF(Inställningar!X$46,IF('Matris 2'!P12<-(10^Inställningar!X$45),-(LOG10(ABS('Matris 2'!P12))-Inställningar!X$45)/(Inställningar!X$44-Inställningar!X$45)*'Skalor o färg'!$B$8,IF('Matris 2'!P12>(10^Inställningar!X$45),(LOG10('Matris 2'!P12)-Inställningar!X$45)/(Inställningar!X$44-Inställningar!X$45)*'Skalor o färg'!$B$8,0)),'Matris 2'!P12/Inställningar!X$43*'Skalor o färg'!$B$8)","v":{"$error":"#DIV/0!"}},{"$f":"IF(Inställningar!Y$46,IF('Matris 2'!Q12<-(10^Inställningar!Y$45),-(LOG10(ABS('Matris 2'!Q12))-Inställningar!Y$45)/(Inställningar!Y$44-Inställningar!Y$45)*'Skalor o färg'!$B$8,IF('Matris 2'!Q12>(10^Inställningar!Y$45),(LOG10('Matris 2'!Q12)-Inställningar!Y$45)/(Inställningar!Y$44-Inställningar!Y$45)*'Skalor o färg'!$B$8,0)),'Matris 2'!Q12/Inställningar!Y$43*'Skalor o färg'!$B$8)","v":{"$error":"#DIV/0!"}},{"$f":"IF(Inställningar!Z$46,IF('Matris 2'!R12<-(10^Inställningar!Z$45),-(LOG10(ABS('Matris 2'!R12))-Inställningar!Z$45)/(Inställningar!Z$44-Inställningar!Z$45)*'Skalor o färg'!$B$8,IF('Matris 2'!R12>(10^Inställningar!Z$45),(LOG10('Matris 2'!R12)-Inställningar!Z$45)/(Inställningar!Z$44-Inställningar!Z$45)*'Skalor o färg'!$B$8,0)),'Matris 2'!R12/Inställningar!Z$43*'Skalor o färg'!$B$8)","v":{"$error":"#DIV/0!"}}]
[null,"Lång sikt",{"$f":"IF(Inställningar!K$46,IF('Matris 2'!C14<-(10^Inställningar!K$45),-(LOG10(ABS('Matris 2'!C14))-Inställningar!K$45)/(Inställningar!K$44-Inställningar!K$45)*'Skalor o färg'!$B$8,IF('Matris 2'!C14>(10^Inställningar!K$45),(LOG10('Matris 2'!C14)-Inställningar!K$45)/(Inställningar!K$44-Inställningar!K$45)*'Skalor o färg'!$B$8,0)),'Matris 2'!C14/Inställningar!K$43*'Skalor o färg'!$B$8)","v":{"$error":"#DIV/0!"}},{"$f":"IF(Inställningar!L$46,IF('Matris 2'!D14<-(10^Inställningar!L$45),-(LOG10(ABS('Matris 2'!D14))-Inställningar!L$45)/(Inställningar!L$44-Inställningar!L$45)*'Skalor o färg'!$B$8,IF('Matris 2'!D14>(10^Inställningar!L$45),(LOG10('Matris 2'!D14)-Inställningar!L$45)/(Inställningar!L$44-Inställningar!L$45)*'Skalor o färg'!$B$8,0)),'Matris 2'!D14/Inställningar!L$43*'Skalor o färg'!$B$8)","v":{"$error":"#DIV/0!"}},{"$f":"IF(Inställningar!M$46,IF('Matris 2'!E14<-(10^Inställningar!M$45),-(LOG10(ABS('Matris 2'!E14))-Inställningar!M$45)/(Inställningar!M$44-Inställningar!M$45)*'Skalor o färg'!$B$8,IF('Matris 2'!E14>(10^Inställningar!M$45),(LOG10('Matris 2'!E14)-Inställningar!M$45)/(Inställningar!M$44-Inställningar!M$45)*'Skalor o färg'!$B$8,0)),'Matris 2'!E14/Inställningar!M$43*'Skalor o färg'!$B$8)","v":{"$error":"#DIV/0!"}},{"$f":"IF(Inställningar!N$46,IF('Matris 2'!F14<-(10^Inställningar!N$45),-(LOG10(ABS('Matris 2'!F14))-Inställningar!N$45)/(Inställningar!N$44-Inställningar!N$45)*'Skalor o färg'!$B$8,IF('Matris 2'!F14>(10^Inställningar!N$45),(LOG10('Matris 2'!F14)-Inställningar!N$45)/(Inställningar!N$44-Inställningar!N$45)*'Skalor o färg'!$B$8,0)),'Matris 2'!F14/Inställningar!N$43*'Skalor o färg'!$B$8)","v":{"$error":"#DIV/0!"}},{"$f":"IF(Inställningar!O$46,IF('Matris 2'!G14<-(10^Inställningar!O$45),-(LOG10(ABS('Matris 2'!G14))-Inställningar!O$45)/(Inställningar!O$44-Inställningar!O$45)*'Skalor o färg'!$B$8,IF('Matris 2'!G14>(10^Inställningar!O$45),(LOG10('Matris 2'!G14)-Inställningar!O$45)/(Inställningar!O$44-Inställningar!O$45)*'Skalor o färg'!$B$8,0)),'Matris 2'!G14/Inställningar!O$43*'Skalor o färg'!$B$8)","v":{"$error":"#DIV/0!"}},{"$f":"IF(Inställningar!P$46,IF('Matris 2'!H14<-(10^Inställningar!P$45),-(LOG10(ABS('Matris 2'!H14))-Inställningar!P$45)/(Inställningar!P$44-Inställningar!P$45)*'Skalor o färg'!$B$8,IF('Matris 2'!H14>(10^Inställningar!P$45),(LOG10('Matris 2'!H14)-Inställningar!P$45)/(Inställningar!P$44-Inställningar!P$45)*'Skalor o färg'!$B$8,0)),'Matris 2'!H14/Inställningar!P$43*'Skalor o färg'!$B$8)","v":{"$error":"#DIV/0!"}},{"$f":"IF(Inställningar!Q$46,IF('Matris 2'!I14<-(10^Inställningar!Q$45),-(LOG10(ABS('Matris 2'!I14))-Inställningar!Q$45)/(Inställningar!Q$44-Inställningar!Q$45)*'Skalor o färg'!$B$8,IF('Matris 2'!I14>(10^Inställningar!Q$45),(LOG10('Matris 2'!I14)-Inställningar!Q$45)/(Inställningar!Q$44-Inställningar!Q$45)*'Skalor o färg'!$B$8,0)),'Matris 2'!I14/Inställningar!Q$43*'Skalor o färg'!$B$8)","v":{"$error":"#DIV/0!"}},{"$f":"IF(Inställningar!R$46,IF('Matris 2'!J14<-(10^Inställningar!R$45),-(LOG10(ABS('Matris 2'!J14))-Inställningar!R$45)/(Inställningar!R$44-Inställningar!R$45)*'Skalor o färg'!$B$8,IF('Matris 2'!J14>(10^Inställningar!R$45),(LOG10('Matris 2'!J14)-Inställningar!R$45)/(Inställningar!R$44-Inställningar!R$45)*'Skalor o färg'!$B$8,0)),'Matris 2'!J14/Inställningar!R$43*'Skalor o färg'!$B$8)","v":{"$error":"#DIV/0!"}},{"$f":"IF(Inställningar!S$46,IF('Matris 2'!K14<-(10^Inställningar!S$45),-(LOG10(ABS('Matris 2'!K14))-Inställningar!S$45)/(Inställningar!S$44-Inställningar!S$45)*'Skalor o färg'!$B$8,IF('Matris 2'!K14>(10^Inställningar!S$45),(LOG10('Matris 2'!K14)-Inställningar!S$45)/(Inställningar!S$44-Inställningar!S$45)*'Skalor o färg'!$B$8,0)),'Matris 2'!K14/Inställningar!S$43*'Skalor o färg'!$B$8)","v":{"$error":"#DIV/0!"}},{"$f":"IF(Inställningar!T$46,IF('Matris 2'!L14<-(10^Inställningar!T$45),-(LOG10(ABS('Matris 2'!L14))-Inställningar!T$45)/(Inställningar!T$44-Inställningar!T$45)*'Skalor o färg'!$B$8,IF('Matris 2'!L14>(10^Inställningar!T$45),(LOG10('Matris 2'!L14)-Inställningar!T$45)/(Inställningar!T$44-Inställningar!T$45)*'Skalor o färg'!$B$8,0)),'Matris 2'!L14/Inställningar!T$43*'Skalor o färg'!$B$8)","v":{"$error":"#DIV/0!"}},{"$f":"IF(Inställningar!U$46,IF('Matris 2'!M14<-(10^Inställningar!U$45),-(LOG10(ABS('Matris 2'!M14))-Inställningar!U$45)/(Inställningar!U$44-Inställningar!U$45)*'Skalor o färg'!$B$8,IF('Matris 2'!M14>(10^Inställningar!U$45),(LOG10('Matris 2'!M14)-Inställningar!U$45)/(Inställningar!U$44-Inställningar!U$45)*'Skalor o färg'!$B$8,0)),'Matris 2'!M14/Inställningar!U$43*'Skalor o färg'!$B$8)","v":{"$error":"#DIV/0!"}},{"$f":"IF(Inställningar!V$46,IF('Matris 2'!N14<-(10^Inställningar!V$45),-(LOG10(ABS('Matris 2'!N14))-Inställningar!V$45)/(Inställningar!V$44-Inställningar!V$45)*'Skalor o färg'!$B$8,IF('Matris 2'!N14>(10^Inställningar!V$45),(LOG10('Matris 2'!N14)-Inställningar!V$45)/(Inställningar!V$44-Inställningar!V$45)*'Skalor o färg'!$B$8,0)),'Matris 2'!N14/Inställningar!V$43*'Skalor o färg'!$B$8)","v":{"$error":"#DIV/0!"}},{"$f":"IF(Inställningar!W$46,IF('Matris 2'!O14<-(10^Inställningar!W$45),-(LOG10(ABS('Matris 2'!O14))-Inställningar!W$45)/(Inställningar!W$44-Inställningar!W$45)*'Skalor o färg'!$B$8,IF('Matris 2'!O14>(10^Inställningar!W$45),(LOG10('Matris 2'!O14)-Inställningar!W$45)/(Inställningar!W$44-Inställningar!W$45)*'Skalor o färg'!$B$8,0)),'Matris 2'!O14/Inställningar!W$43*'Skalor o färg'!$B$8)","v":{"$error":"#DIV/0!"}},{"$f":"IF(Inställningar!X$46,IF('Matris 2'!P14<-(10^Inställningar!X$45),-(LOG10(ABS('Matris 2'!P14))-Inställningar!X$45)/(Inställningar!X$44-Inställningar!X$45)*'Skalor o färg'!$B$8,IF('Matris 2'!P14>(10^Inställningar!X$45),(LOG10('Matris 2'!P14)-Inställningar!X$45)/(Inställningar!X$44-Inställningar!X$45)*'Skalor o färg'!$B$8,0)),'Matris 2'!P14/Inställningar!X$43*'Skalor o färg'!$B$8)","v":{"$error":"#DIV/0!"}},{"$f":"IF(Inställningar!Y$46,IF('Matris 2'!Q14<-(10^Inställningar!Y$45),-(LOG10(ABS('Matris 2'!Q14))-Inställningar!Y$45)/(Inställningar!Y$44-Inställningar!Y$45)*'Skalor o färg'!$B$8,IF('Matris 2'!Q14>(10^Inställningar!Y$45),(LOG10('Matris 2'!Q14)-Inställningar!Y$45)/(Inställningar!Y$44-Inställningar!Y$45)*'Skalor o färg'!$B$8,0)),'Matris 2'!Q14/Inställningar!Y$43*'Skalor o färg'!$B$8)","v":{"$error":"#DIV/0!"}},{"$f":"IF(Inställningar!Z$46,IF('Matris 2'!R14<-(10^Inställningar!Z$45),-(LOG10(ABS('Matris 2'!R14))-Inställningar!Z$45)/(Inställningar!Z$44-Inställningar!Z$45)*'Skalor o färg'!$B$8,IF('Matris 2'!R14>(10^Inställningar!Z$45),(LOG10('Matris 2'!R14)-Inställningar!Z$45)/(Inställningar!Z$44-Inställningar!Z$45)*'Skalor o färg'!$B$8,0)),'Matris 2'!R14/Inställningar!Z$43*'Skalor o färg'!$B$8)","v":{"$error":"#DIV/0!"}}]
[{"$f":"'Matris 1'!A9","v":"Åtgärdsförslag 1"},"Kort sikt",{"$f":"IF(Inställningar!K$46,IF('Matris 2'!C16<-(10^Inställningar!K$45),-(LOG10(ABS('Matris 2'!C16))-Inställningar!K$45)/(Inställningar!K$44-Inställningar!K$45)*'Skalor o färg'!$B$8,IF('Matris 2'!C16>(10^Inställningar!K$45),(LOG10('Matris 2'!C16)-Inställningar!K$45)/(Inställningar!K$44-Inställningar!K$45)*'Skalor o färg'!$B$8,0)),'Matris 2'!C16/Inställningar!K$43*'Skalor o färg'!$B$8)","v":{"$error":"#DIV/0!"}},{"$f":"IF(Inställningar!L$46,IF('Matris 2'!D16<-(10^Inställningar!L$45),-(LOG10(ABS('Matris 2'!D16))-Inställningar!L$45)/(Inställningar!L$44-Inställningar!L$45)*'Skalor o färg'!$B$8,IF('Matris 2'!D16>(10^Inställningar!L$45),(LOG10('Matris 2'!D16)-Inställningar!L$45)/(Inställningar!L$44-Inställningar!L$45)*'Skalor o färg'!$B$8,0)),'Matris 2'!D16/Inställningar!L$43*'Skalor o färg'!$B$8)","v":{"$error":"#DIV/0!"}},{"$f":"IF(Inställningar!M$46,IF('Matris 2'!E16<-(10^Inställningar!M$45),-(LOG10(ABS('Matris 2'!E16))-Inställningar!M$45)/(Inställningar!M$44-Inställningar!M$45)*'Skalor o färg'!$B$8,IF('Matris 2'!E16>(10^Inställningar!M$45),(LOG10('Matris 2'!E16)-Inställningar!M$45)/(Inställningar!M$44-Inställningar!M$45)*'Skalor o färg'!$B$8,0)),'Matris 2'!E16/Inställningar!M$43*'Skalor o färg'!$B$8)","v":{"$error":"#DIV/0!"}},{"$f":"IF(Inställningar!N$46,IF('Matris 2'!F16<-(10^Inställningar!N$45),-(LOG10(ABS('Matris 2'!F16))-Inställningar!N$45)/(Inställningar!N$44-Inställningar!N$45)*'Skalor o färg'!$B$8,IF('Matris 2'!F16>(10^Inställningar!N$45),(LOG10('Matris 2'!F16)-Inställningar!N$45)/(Inställningar!N$44-Inställningar!N$45)*'Skalor o färg'!$B$8,0)),'Matris 2'!F16/Inställningar!N$43*'Skalor o färg'!$B$8)","v":{"$error":"#DIV/0!"}},{"$f":"IF(Inställningar!O$46,IF('Matris 2'!G16<-(10^Inställningar!O$45),-(LOG10(ABS('Matris 2'!G16))-Inställningar!O$45)/(Inställningar!O$44-Inställningar!O$45)*'Skalor o färg'!$B$8,IF('Matris 2'!G16>(10^Inställningar!O$45),(LOG10('Matris 2'!G16)-Inställningar!O$45)/(Inställningar!O$44-Inställningar!O$45)*'Skalor o färg'!$B$8,0)),'Matris 2'!G16/Inställningar!O$43*'Skalor o färg'!$B$8)","v":{"$error":"#DIV/0!"}},{"$f":"IF(Inställningar!P$46,IF('Matris 2'!H16<-(10^Inställningar!P$45),-(LOG10(ABS('Matris 2'!H16))-Inställningar!P$45)/(Inställningar!P$44-Inställningar!P$45)*'Skalor o färg'!$B$8,IF('Matris 2'!H16>(10^Inställningar!P$45),(LOG10('Matris 2'!H16)-Inställningar!P$45)/(Inställningar!P$44-Inställningar!P$45)*'Skalor o färg'!$B$8,0)),'Matris 2'!H16/Inställningar!P$43*'Skalor o färg'!$B$8)","v":{"$error":"#DIV/0!"}},{"$f":"IF(Inställningar!Q$46,IF('Matris 2'!I16<-(10^Inställningar!Q$45),-(LOG10(ABS('Matris 2'!I16))-Inställningar!Q$45)/(Inställningar!Q$44-Inställningar!Q$45)*'Skalor o färg'!$B$8,IF('Matris 2'!I16>(10^Inställningar!Q$45),(LOG10('Matris 2'!I16)-Inställningar!Q$45)/(Inställningar!Q$44-Inställningar!Q$45)*'Skalor o färg'!$B$8,0)),'Matris 2'!I16/Inställningar!Q$43*'Skalor o färg'!$B$8)","v":{"$error":"#DIV/0!"}},{"$f":"IF(Inställningar!R$46,IF('Matris 2'!J16<-(10^Inställningar!R$45),-(LOG10(ABS('Matris 2'!J16))-Inställningar!R$45)/(Inställningar!R$44-Inställningar!R$45)*'Skalor o färg'!$B$8,IF('Matris 2'!J16>(10^Inställningar!R$45),(LOG10('Matris 2'!J16)-Inställningar!R$45)/(Inställningar!R$44-Inställningar!R$45)*'Skalor o färg'!$B$8,0)),'Matris 2'!J16/Inställningar!R$43*'Skalor o färg'!$B$8)","v":{"$error":"#DIV/0!"}},{"$f":"IF(Inställningar!S$46,IF('Matris 2'!K16<-(10^Inställningar!S$45),-(LOG10(ABS('Matris 2'!K16))-Inställningar!S$45)/(Inställningar!S$44-Inställningar!S$45)*'Skalor o färg'!$B$8,IF('Matris 2'!K16>(10^Inställningar!S$45),(LOG10('Matris 2'!K16)-Inställningar!S$45)/(Inställningar!S$44-Inställningar!S$45)*'Skalor o färg'!$B$8,0)),'Matris 2'!K16/Inställningar!S$43*'Skalor o färg'!$B$8)","v":{"$error":"#DIV/0!"}},{"$f":"IF(Inställningar!T$46,IF('Matris 2'!L16<-(10^Inställningar!T$45),-(LOG10(ABS('Matris 2'!L16))-Inställningar!T$45)/(Inställningar!T$44-Inställningar!T$45)*'Skalor o färg'!$B$8,IF('Matris 2'!L16>(10^Inställningar!T$45),(LOG10('Matris 2'!L16)-Inställningar!T$45)/(Inställningar!T$44-Inställningar!T$45)*'Skalor o färg'!$B$8,0)),'Matris 2'!L16/Inställningar!T$43*'Skalor o färg'!$B$8)","v":{"$error":"#DIV/0!"}},{"$f":"IF(Inställningar!U$46,IF('Matris 2'!M16<-(10^Inställningar!U$45),-(LOG10(ABS('Matris 2'!M16))-Inställningar!U$45)/(Inställningar!U$44-Inställningar!U$45)*'Skalor o färg'!$B$8,IF('Matris 2'!M16>(10^Inställningar!U$45),(LOG10('Matris 2'!M16)-Inställningar!U$45)/(Inställningar!U$44-Inställningar!U$45)*'Skalor o färg'!$B$8,0)),'Matris 2'!M16/Inställningar!U$43*'Skalor o färg'!$B$8)","v":{"$error":"#DIV/0!"}},{"$f":"IF(Inställningar!V$46,IF('Matris 2'!N16<-(10^Inställningar!V$45),-(LOG10(ABS('Matris 2'!N16))-Inställningar!V$45)/(Inställningar!V$44-Inställningar!V$45)*'Skalor o färg'!$B$8,IF('Matris 2'!N16>(10^Inställningar!V$45),(LOG10('Matris 2'!N16)-Inställningar!V$45)/(Inställningar!V$44-Inställningar!V$45)*'Skalor o färg'!$B$8,0)),'Matris 2'!N16/Inställningar!V$43*'Skalor o färg'!$B$8)","v":{"$error":"#DIV/0!"}},{"$f":"IF(Inställningar!W$46,IF('Matris 2'!O16<-(10^Inställningar!W$45),-(LOG10(ABS('Matris 2'!O16))-Inställningar!W$45)/(Inställningar!W$44-Inställningar!W$45)*'Skalor o färg'!$B$8,IF('Matris 2'!O16>(10^Inställningar!W$45),(LOG10('Matris 2'!O16)-Inställningar!W$45)/(Inställningar!W$44-Inställningar!W$45)*'Skalor o färg'!$B$8,0)),'Matris 2'!O16/Inställningar!W$43*'Skalor o färg'!$B$8)","v":{"$error":"#DIV/0!"}},{"$f":"IF(Inställningar!X$46,IF('Matris 2'!P16<-(10^Inställningar!X$45),-(LOG10(ABS('Matris 2'!P16))-Inställningar!X$45)/(Inställningar!X$44-Inställningar!X$45)*'Skalor o färg'!$B$8,IF('Matris 2'!P16>(10^Inställningar!X$45),(LOG10('Matris 2'!P16)-Inställningar!X$45)/(Inställningar!X$44-Inställningar!X$45)*'Skalor o färg'!$B$8,0)),'Matris 2'!P16/Inställningar!X$43*'Skalor o färg'!$B$8)","v":{"$error":"#DIV/0!"}},{"$f":"IF(Inställningar!Y$46,IF('Matris 2'!Q16<-(10^Inställningar!Y$45),-(LOG10(ABS('Matris 2'!Q16))-Inställningar!Y$45)/(Inställningar!Y$44-Inställningar!Y$45)*'Skalor o färg'!$B$8,IF('Matris 2'!Q16>(10^Inställningar!Y$45),(LOG10('Matris 2'!Q16)-Inställningar!Y$45)/(Inställningar!Y$44-Inställningar!Y$45)*'Skalor o färg'!$B$8,0)),'Matris 2'!Q16/Inställningar!Y$43*'Skalor o färg'!$B$8)","v":{"$error":"#DIV/0!"}},{"$f":"IF(Inställningar!Z$46,IF('Matris 2'!R16<-(10^Inställningar!Z$45),-(LOG10(ABS('Matris 2'!R16))-Inställningar!Z$45)/(Inställningar!Z$44-Inställningar!Z$45)*'Skalor o färg'!$B$8,IF('Matris 2'!R16>(10^Inställningar!Z$45),(LOG10('Matris 2'!R16)-Inställningar!Z$45)/(Inställningar!Z$44-Inställningar!Z$45)*'Skalor o färg'!$B$8,0)),'Matris 2'!R16/Inställningar!Z$43*'Skalor o färg'!$B$8)","v":{"$error":"#DIV/0!"}}]
[null,"Lång sikt",{"$f":"IF(Inställningar!K$46,IF('Matris 2'!C18<-(10^Inställningar!K$45),-(LOG10(ABS('Matris 2'!C18))-Inställningar!K$45)/(Inställningar!K$44-Inställningar!K$45)*'Skalor o färg'!$B$8,IF('Matris 2'!C18>(10^Inställningar!K$45),(LOG10('Matris 2'!C18)-Inställningar!K$45)/(Inställningar!K$44-Inställningar!K$45)*'Skalor o färg'!$B$8,0)),'Matris 2'!C18/Inställningar!K$43*'Skalor o färg'!$B$8)","v":{"$error":"#DIV/0!"}},{"$f":"IF(Inställningar!L$46,IF('Matris 2'!D18<-(10^Inställningar!L$45),-(LOG10(ABS('Matris 2'!D18))-Inställningar!L$45)/(Inställningar!L$44-Inställningar!L$45)*'Skalor o färg'!$B$8,IF('Matris 2'!D18>(10^Inställningar!L$45),(LOG10('Matris 2'!D18)-Inställningar!L$45)/(Inställningar!L$44-Inställningar!L$45)*'Skalor o färg'!$B$8,0)),'Matris 2'!D18/Inställningar!L$43*'Skalor o färg'!$B$8)","v":{"$error":"#DIV/0!"}},{"$f":"IF(Inställningar!M$46,IF('Matris 2'!E18<-(10^Inställningar!M$45),-(LOG10(ABS('Matris 2'!E18))-Inställningar!M$45)/(Inställningar!M$44-Inställningar!M$45)*'Skalor o färg'!$B$8,IF('Matris 2'!E18>(10^Inställningar!M$45),(LOG10('Matris 2'!E18)-Inställningar!M$45)/(Inställningar!M$44-Inställningar!M$45)*'Skalor o färg'!$B$8,0)),'Matris 2'!E18/Inställningar!M$43*'Skalor o färg'!$B$8)","v":{"$error":"#DIV/0!"}},{"$f":"IF(Inställningar!N$46,IF('Matris 2'!F18<-(10^Inställningar!N$45),-(LOG10(ABS('Matris 2'!F18))-Inställningar!N$45)/(Inställningar!N$44-Inställningar!N$45)*'Skalor o färg'!$B$8,IF('Matris 2'!F18>(10^Inställningar!N$45),(LOG10('Matris 2'!F18)-Inställningar!N$45)/(Inställningar!N$44-Inställningar!N$45)*'Skalor o färg'!$B$8,0)),'Matris 2'!F18/Inställningar!N$43*'Skalor o färg'!$B$8)","v":{"$error":"#DIV/0!"}},{"$f":"IF(Inställningar!O$46,IF('Matris 2'!G18<-(10^Inställningar!O$45),-(LOG10(ABS('Matris 2'!G18))-Inställningar!O$45)/(Inställningar!O$44-Inställningar!O$45)*'Skalor o färg'!$B$8,IF('Matris 2'!G18>(10^Inställningar!O$45),(LOG10('Matris 2'!G18)-Inställningar!O$45)/(Inställningar!O$44-Inställningar!O$45)*'Skalor o färg'!$B$8,0)),'Matris 2'!G18/Inställningar!O$43*'Skalor o färg'!$B$8)","v":{"$error":"#DIV/0!"}},{"$f":"IF(Inställningar!P$46,IF('Matris 2'!H18<-(10^Inställningar!P$45),-(LOG10(ABS('Matris 2'!H18))-Inställningar!P$45)/(Inställningar!P$44-Inställningar!P$45)*'Skalor o färg'!$B$8,IF('Matris 2'!H18>(10^Inställningar!P$45),(LOG10('Matris 2'!H18)-Inställningar!P$45)/(Inställningar!P$44-Inställningar!P$45)*'Skalor o färg'!$B$8,0)),'Matris 2'!H18/Inställningar!P$43*'Skalor o färg'!$B$8)","v":{"$error":"#DIV/0!"}},{"$f":"IF(Inställningar!Q$46,IF('Matris 2'!I18<-(10^Inställningar!Q$45),-(LOG10(ABS('Matris 2'!I18))-Inställningar!Q$45)/(Inställningar!Q$44-Inställningar!Q$45)*'Skalor o färg'!$B$8,IF('Matris 2'!I18>(10^Inställningar!Q$45),(LOG10('Matris 2'!I18)-Inställningar!Q$45)/(Inställningar!Q$44-Inställningar!Q$45)*'Skalor o färg'!$B$8,0)),'Matris 2'!I18/Inställningar!Q$43*'Skalor o färg'!$B$8)","v":{"$error":"#DIV/0!"}},{"$f":"IF(Inställningar!R$46,IF('Matris 2'!J18<-(10^Inställningar!R$45),-(LOG10(ABS('Matris 2'!J18))-Inställningar!R$45)/(Inställningar!R$44-Inställningar!R$45)*'Skalor o färg'!$B$8,IF('Matris 2'!J18>(10^Inställningar!R$45),(LOG10('Matris 2'!J18)-Inställningar!R$45)/(Inställningar!R$44-Inställningar!R$45)*'Skalor o färg'!$B$8,0)),'Matris 2'!J18/Inställningar!R$43*'Skalor o färg'!$B$8)","v":{"$error":"#DIV/0!"}},{"$f":"IF(Inställningar!S$46,IF('Matris 2'!K18<-(10^Inställningar!S$45),-(LOG10(ABS('Matris 2'!K18))-Inställningar!S$45)/(Inställningar!S$44-Inställningar!S$45)*'Skalor o färg'!$B$8,IF('Matris 2'!K18>(10^Inställningar!S$45),(LOG10('Matris 2'!K18)-Inställningar!S$45)/(Inställningar!S$44-Inställningar!S$45)*'Skalor o färg'!$B$8,0)),'Matris 2'!K18/Inställningar!S$43*'Skalor o färg'!$B$8)","v":{"$error":"#DIV/0!"}},{"$f":"IF(Inställningar!T$46,IF('Matris 2'!L18<-(10^Inställningar!T$45),-(LOG10(ABS('Matris 2'!L18))-Inställningar!T$45)/(Inställningar!T$44-Inställningar!T$45)*'Skalor o färg'!$B$8,IF('Matris 2'!L18>(10^Inställningar!T$45),(LOG10('Matris 2'!L18)-Inställningar!T$45)/(Inställningar!T$44-Inställningar!T$45)*'Skalor o färg'!$B$8,0)),'Matris 2'!L18/Inställningar!T$43*'Skalor o färg'!$B$8)","v":{"$error":"#DIV/0!"}},{"$f":"IF(Inställningar!U$46,IF('Matris 2'!M18<-(10^Inställningar!U$45),-(LOG10(ABS('Matris 2'!M18))-Inställningar!U$45)/(Inställningar!U$44-Inställningar!U$45)*'Skalor o färg'!$B$8,IF('Matris 2'!M18>(10^Inställningar!U$45),(LOG10('Matris 2'!M18)-Inställningar!U$45)/(Inställningar!U$44-Inställningar!U$45)*'Skalor o färg'!$B$8,0)),'Matris 2'!M18/Inställningar!U$43*'Skalor o färg'!$B$8)","v":{"$error":"#DIV/0!"}},{"$f":"IF(Inställningar!V$46,IF('Matris 2'!N18<-(10^Inställningar!V$45),-(LOG10(ABS('Matris 2'!N18))-Inställningar!V$45)/(Inställningar!V$44-Inställningar!V$45)*'Skalor o färg'!$B$8,IF('Matris 2'!N18>(10^Inställningar!V$45),(LOG10('Matris 2'!N18)-Inställningar!V$45)/(Inställningar!V$44-Inställningar!V$45)*'Skalor o färg'!$B$8,0)),'Matris 2'!N18/Inställningar!V$43*'Skalor o färg'!$B$8)","v":{"$error":"#DIV/0!"}},{"$f":"IF(Inställningar!W$46,IF('Matris 2'!O18<-(10^Inställningar!W$45),-(LOG10(ABS('Matris 2'!O18))-Inställningar!W$45)/(Inställningar!W$44-Inställningar!W$45)*'Skalor o färg'!$B$8,IF('Matris 2'!O18>(10^Inställningar!W$45),(LOG10('Matris 2'!O18)-Inställningar!W$45)/(Inställningar!W$44-Inställningar!W$45)*'Skalor o färg'!$B$8,0)),'Matris 2'!O18/Inställningar!W$43*'Skalor o färg'!$B$8)","v":{"$error":"#DIV/0!"}},{"$f":"IF(Inställningar!X$46,IF('Matris 2'!P18<-(10^Inställningar!X$45),-(LOG10(ABS('Matris 2'!P18))-Inställningar!X$45)/(Inställningar!X$44-Inställningar!X$45)*'Skalor o färg'!$B$8,IF('Matris 2'!P18>(10^Inställningar!X$45),(LOG10('Matris 2'!P18)-Inställningar!X$45)/(Inställningar!X$44-Inställningar!X$45)*'Skalor o färg'!$B$8,0)),'Matris 2'!P18/Inställningar!X$43*'Skalor o färg'!$B$8)","v":{"$error":"#DIV/0!"}},{"$f":"IF(Inställningar!Y$46,IF('Matris 2'!Q18<-(10^Inställningar!Y$45),-(LOG10(ABS('Matris 2'!Q18))-Inställningar!Y$45)/(Inställningar!Y$44-Inställningar!Y$45)*'Skalor o färg'!$B$8,IF('Matris 2'!Q18>(10^Inställningar!Y$45),(LOG10('Matris 2'!Q18)-Inställningar!Y$45)/(Inställningar!Y$44-Inställningar!Y$45)*'Skalor o färg'!$B$8,0)),'Matris 2'!Q18/Inställningar!Y$43*'Skalor o färg'!$B$8)","v":{"$error":"#DIV/0!"}},{"$f":"IF(Inställningar!Z$46,IF('Matris 2'!R18<-(10^Inställningar!Z$45),-(LOG10(ABS('Matris 2'!R18))-Inställningar!Z$45)/(Inställningar!Z$44-Inställningar!Z$45)*'Skalor o färg'!$B$8,IF('Matris 2'!R18>(10^Inställningar!Z$45),(LOG10('Matris 2'!R18)-Inställningar!Z$45)/(Inställningar!Z$44-Inställningar!Z$45)*'Skalor o färg'!$B$8,0)),'Matris 2'!R18/Inställningar!Z$43*'Skalor o färg'!$B$8)","v":{"$error":"#DIV/0!"}}]
[{"$f":"'Matris 1'!A10","v":"Åtgärdsförslag 2"},"Kort sikt",{"$f":"IF(Inställningar!K$46,IF('Matris 2'!C20<-(10^Inställningar!K$45),-(LOG10(ABS('Matris 2'!C20))-Inställningar!K$45)/(Inställningar!K$44-Inställningar!K$45)*'Skalor o färg'!$B$8,IF('Matris 2'!C20>(10^Inställningar!K$45),(LOG10('Matris 2'!C20)-Inställningar!K$45)/(Inställningar!K$44-Inställningar!K$45)*'Skalor o färg'!$B$8,0)),'Matris 2'!C20/Inställningar!K$43*'Skalor o färg'!$B$8)","v":{"$error":"#DIV/0!"}},{"$f":"IF(Inställningar!L$46,IF('Matris 2'!D20<-(10^Inställningar!L$45),-(LOG10(ABS('Matris 2'!D20))-Inställningar!L$45)/(Inställningar!L$44-Inställningar!L$45)*'Skalor o färg'!$B$8,IF('Matris 2'!D20>(10^Inställningar!L$45),(LOG10('Matris 2'!D20)-Inställningar!L$45)/(Inställningar!L$44-Inställningar!L$45)*'Skalor o färg'!$B$8,0)),'Matris 2'!D20/Inställningar!L$43*'Skalor o färg'!$B$8)","v":{"$error":"#DIV/0!"}},{"$f":"IF(Inställningar!M$46,IF('Matris 2'!E20<-(10^Inställningar!M$45),-(LOG10(ABS('Matris 2'!E20))-Inställningar!M$45)/(Inställningar!M$44-Inställningar!M$45)*'Skalor o färg'!$B$8,IF('Matris 2'!E20>(10^Inställningar!M$45),(LOG10('Matris 2'!E20)-Inställningar!M$45)/(Inställningar!M$44-Inställningar!M$45)*'Skalor o färg'!$B$8,0)),'Matris 2'!E20/Inställningar!M$43*'Skalor o färg'!$B$8)","v":{"$error":"#DIV/0!"}},{"$f":"IF(Inställningar!N$46,IF('Matris 2'!F20<-(10^Inställningar!N$45),-(LOG10(ABS('Matris 2'!F20))-Inställningar!N$45)/(Inställningar!N$44-Inställningar!N$45)*'Skalor o färg'!$B$8,IF('Matris 2'!F20>(10^Inställningar!N$45),(LOG10('Matris 2'!F20)-Inställningar!N$45)/(Inställningar!N$44-Inställningar!N$45)*'Skalor o färg'!$B$8,0)),'Matris 2'!F20/Inställningar!N$43*'Skalor o färg'!$B$8)","v":{"$error":"#DIV/0!"}},{"$f":"IF(Inställningar!O$46,IF('Matris 2'!G20<-(10^Inställningar!O$45),-(LOG10(ABS('Matris 2'!G20))-Inställningar!O$45)/(Inställningar!O$44-Inställningar!O$45)*'Skalor o färg'!$B$8,IF('Matris 2'!G20>(10^Inställningar!O$45),(LOG10('Matris 2'!G20)-Inställningar!O$45)/(Inställningar!O$44-Inställningar!O$45)*'Skalor o färg'!$B$8,0)),'Matris 2'!G20/Inställningar!O$43*'Skalor o färg'!$B$8)","v":{"$error":"#DIV/0!"}},{"$f":"IF(Inställningar!P$46,IF('Matris 2'!H20<-(10^Inställningar!P$45),-(LOG10(ABS('Matris 2'!H20))-Inställningar!P$45)/(Inställningar!P$44-Inställningar!P$45)*'Skalor o färg'!$B$8,IF('Matris 2'!H20>(10^Inställningar!P$45),(LOG10('Matris 2'!H20)-Inställningar!P$45)/(Inställningar!P$44-Inställningar!P$45)*'Skalor o färg'!$B$8,0)),'Matris 2'!H20/Inställningar!P$43*'Skalor o färg'!$B$8)","v":{"$error":"#DIV/0!"}},{"$f":"IF(Inställningar!Q$46,IF('Matris 2'!I20<-(10^Inställningar!Q$45),-(LOG10(ABS('Matris 2'!I20))-Inställningar!Q$45)/(Inställningar!Q$44-Inställningar!Q$45)*'Skalor o färg'!$B$8,IF('Matris 2'!I20>(10^Inställningar!Q$45),(LOG10('Matris 2'!I20)-Inställningar!Q$45)/(Inställningar!Q$44-Inställningar!Q$45)*'Skalor o färg'!$B$8,0)),'Matris 2'!I20/Inställningar!Q$43*'Skalor o färg'!$B$8)","v":{"$error":"#DIV/0!"}},{"$f":"IF(Inställningar!R$46,IF('Matris 2'!J20<-(10^Inställningar!R$45),-(LOG10(ABS('Matris 2'!J20))-Inställningar!R$45)/(Inställningar!R$44-Inställningar!R$45)*'Skalor o färg'!$B$8,IF('Matris 2'!J20>(10^Inställningar!R$45),(LOG10('Matris 2'!J20)-Inställningar!R$45)/(Inställningar!R$44-Inställningar!R$45)*'Skalor o färg'!$B$8,0)),'Matris 2'!J20/Inställningar!R$43*'Skalor o färg'!$B$8)","v":{"$error":"#DIV/0!"}},{"$f":"IF(Inställningar!S$46,IF('Matris 2'!K20<-(10^Inställningar!S$45),-(LOG10(ABS('Matris 2'!K20))-Inställningar!S$45)/(Inställningar!S$44-Inställningar!S$45)*'Skalor o färg'!$B$8,IF('Matris 2'!K20>(10^Inställningar!S$45),(LOG10('Matris 2'!K20)-Inställningar!S$45)/(Inställningar!S$44-Inställningar!S$45)*'Skalor o färg'!$B$8,0)),'Matris 2'!K20/Inställningar!S$43*'Skalor o färg'!$B$8)","v":{"$error":"#DIV/0!"}},{"$f":"IF(Inställningar!T$46,IF('Matris 2'!L20<-(10^Inställningar!T$45),-(LOG10(ABS('Matris 2'!L20))-Inställningar!T$45)/(Inställningar!T$44-Inställningar!T$45)*'Skalor o färg'!$B$8,IF('Matris 2'!L20>(10^Inställningar!T$45),(LOG10('Matris 2'!L20)-Inställningar!T$45)/(Inställningar!T$44-Inställningar!T$45)*'Skalor o färg'!$B$8,0)),'Matris 2'!L20/Inställningar!T$43*'Skalor o färg'!$B$8)","v":{"$error":"#DIV/0!"}},{"$f":"IF(Inställningar!U$46,IF('Matris 2'!M20<-(10^Inställningar!U$45),-(LOG10(ABS('Matris 2'!M20))-Inställningar!U$45)/(Inställningar!U$44-Inställningar!U$45)*'Skalor o färg'!$B$8,IF('Matris 2'!M20>(10^Inställningar!U$45),(LOG10('Matris 2'!M20)-Inställningar!U$45)/(Inställningar!U$44-Inställningar!U$45)*'Skalor o färg'!$B$8,0)),'Matris 2'!M20/Inställningar!U$43*'Skalor o färg'!$B$8)","v":{"$error":"#DIV/0!"}},{"$f":"IF(Inställningar!V$46,IF('Matris 2'!N20<-(10^Inställningar!V$45),-(LOG10(ABS('Matris 2'!N20))-Inställningar!V$45)/(Inställningar!V$44-Inställningar!V$45)*'Skalor o färg'!$B$8,IF('Matris 2'!N20>(10^Inställningar!V$45),(LOG10('Matris 2'!N20)-Inställningar!V$45)/(Inställningar!V$44-Inställningar!V$45)*'Skalor o färg'!$B$8,0)),'Matris 2'!N20/Inställningar!V$43*'Skalor o färg'!$B$8)","v":{"$error":"#DIV/0!"}},{"$f":"IF(Inställningar!W$46,IF('Matris 2'!O20<-(10^Inställningar!W$45),-(LOG10(ABS('Matris 2'!O20))-Inställningar!W$45)/(Inställningar!W$44-Inställningar!W$45)*'Skalor o färg'!$B$8,IF('Matris 2'!O20>(10^Inställningar!W$45),(LOG10('Matris 2'!O20)-Inställningar!W$45)/(Inställningar!W$44-Inställningar!W$45)*'Skalor o färg'!$B$8,0)),'Matris 2'!O20/Inställningar!W$43*'Skalor o färg'!$B$8)","v":{"$error":"#DIV/0!"}},{"$f":"IF(Inställningar!X$46,IF('Matris 2'!P20<-(10^Inställningar!X$45),-(LOG10(ABS('Matris 2'!P20))-Inställningar!X$45)/(Inställningar!X$44-Inställningar!X$45)*'Skalor o färg'!$B$8,IF('Matris 2'!P20>(10^Inställningar!X$45),(LOG10('Matris 2'!P20)-Inställningar!X$45)/(Inställningar!X$44-Inställningar!X$45)*'Skalor o färg'!$B$8,0)),'Matris 2'!P20/Inställningar!X$43*'Skalor o färg'!$B$8)","v":{"$error":"#DIV/0!"}},{"$f":"IF(Inställningar!Y$46,IF('Matris 2'!Q20<-(10^Inställningar!Y$45),-(LOG10(ABS('Matris 2'!Q20))-Inställningar!Y$45)/(Inställningar!Y$44-Inställningar!Y$45)*'Skalor o färg'!$B$8,IF('Matris 2'!Q20>(10^Inställningar!Y$45),(LOG10('Matris 2'!Q20)-Inställningar!Y$45)/(Inställningar!Y$44-Inställningar!Y$45)*'Skalor o färg'!$B$8,0)),'Matris 2'!Q20/Inställningar!Y$43*'Skalor o färg'!$B$8)","v":{"$error":"#DIV/0!"}},{"$f":"IF(Inställningar!Z$46,IF('Matris 2'!R20<-(10^Inställningar!Z$45),-(LOG10(ABS('Matris 2'!R20))-Inställningar!Z$45)/(Inställningar!Z$44-Inställningar!Z$45)*'Skalor o färg'!$B$8,IF('Matris 2'!R20>(10^Inställningar!Z$45),(LOG10('Matris 2'!R20)-Inställningar!Z$45)/(Inställningar!Z$44-Inställningar!Z$45)*'Skalor o färg'!$B$8,0)),'Matris 2'!R20/Inställningar!Z$43*'Skalor o färg'!$B$8)","v":{"$error":"#DIV/0!"}}]
[null,"Lång sikt",{"$f":"IF(Inställningar!K$46,IF('Matris 2'!C22<-(10^Inställningar!K$45),-(LOG10(ABS('Matris 2'!C22))-Inställningar!K$45)/(Inställningar!K$44-Inställningar!K$45)*'Skalor o färg'!$B$8,IF('Matris 2'!C22>(10^Inställningar!K$45),(LOG10('Matris 2'!C22)-Inställningar!K$45)/(Inställningar!K$44-Inställningar!K$45)*'Skalor o färg'!$B$8,0)),'Matris 2'!C22/Inställningar!K$43*'Skalor o färg'!$B$8)","v":{"$error":"#DIV/0!"}},{"$f":"IF(Inställningar!L$46,IF('Matris 2'!D22<-(10^Inställningar!L$45),-(LOG10(ABS('Matris 2'!D22))-Inställningar!L$45)/(Inställningar!L$44-Inställningar!L$45)*'Skalor o färg'!$B$8,IF('Matris 2'!D22>(10^Inställningar!L$45),(LOG10('Matris 2'!D22)-Inställningar!L$45)/(Inställningar!L$44-Inställningar!L$45)*'Skalor o färg'!$B$8,0)),'Matris 2'!D22/Inställningar!L$43*'Skalor o färg'!$B$8)","v":{"$error":"#DIV/0!"}},{"$f":"IF(Inställningar!M$46,IF('Matris 2'!E22<-(10^Inställningar!M$45),-(LOG10(ABS('Matris 2'!E22))-Inställningar!M$45)/(Inställningar!M$44-Inställningar!M$45)*'Skalor o färg'!$B$8,IF('Matris 2'!E22>(10^Inställningar!M$45),(LOG10('Matris 2'!E22)-Inställningar!M$45)/(Inställningar!M$44-Inställningar!M$45)*'Skalor o färg'!$B$8,0)),'Matris 2'!E22/Inställningar!M$43*'Skalor o färg'!$B$8)","v":{"$error":"#DIV/0!"}},{"$f":"IF(Inställningar!N$46,IF('Matris 2'!F22<-(10^Inställningar!N$45),-(LOG10(ABS('Matris 2'!F22))-Inställningar!N$45)/(Inställningar!N$44-Inställningar!N$45)*'Skalor o färg'!$B$8,IF('Matris 2'!F22>(10^Inställningar!N$45),(LOG10('Matris 2'!F22)-Inställningar!N$45)/(Inställningar!N$44-Inställningar!N$45)*'Skalor o färg'!$B$8,0)),'Matris 2'!F22/Inställningar!N$43*'Skalor o färg'!$B$8)","v":{"$error":"#DIV/0!"}},{"$f":"IF(Inställningar!O$46,IF('Matris 2'!G22<-(10^Inställningar!O$45),-(LOG10(ABS('Matris 2'!G22))-Inställningar!O$45)/(Inställningar!O$44-Inställningar!O$45)*'Skalor o färg'!$B$8,IF('Matris 2'!G22>(10^Inställningar!O$45),(LOG10('Matris 2'!G22)-Inställningar!O$45)/(Inställningar!O$44-Inställningar!O$45)*'Skalor o färg'!$B$8,0)),'Matris 2'!G22/Inställningar!O$43*'Skalor o färg'!$B$8)","v":{"$error":"#DIV/0!"}},{"$f":"IF(Inställningar!P$46,IF('Matris 2'!H22<-(10^Inställningar!P$45),-(LOG10(ABS('Matris 2'!H22))-Inställningar!P$45)/(Inställningar!P$44-Inställningar!P$45)*'Skalor o färg'!$B$8,IF('Matris 2'!H22>(10^Inställningar!P$45),(LOG10('Matris 2'!H22)-Inställningar!P$45)/(Inställningar!P$44-Inställningar!P$45)*'Skalor o färg'!$B$8,0)),'Matris 2'!H22/Inställningar!P$43*'Skalor o färg'!$B$8)","v":{"$error":"#DIV/0!"}},{"$f":"IF(Inställningar!Q$46,IF('Matris 2'!I22<-(10^Inställningar!Q$45),-(LOG10(ABS('Matris 2'!I22))-Inställningar!Q$45)/(Inställningar!Q$44-Inställningar!Q$45)*'Skalor o färg'!$B$8,IF('Matris 2'!I22>(10^Inställningar!Q$45),(LOG10('Matris 2'!I22)-Inställningar!Q$45)/(Inställningar!Q$44-Inställningar!Q$45)*'Skalor o färg'!$B$8,0)),'Matris 2'!I22/Inställningar!Q$43*'Skalor o färg'!$B$8)","v":{"$error":"#DIV/0!"}},{"$f":"IF(Inställningar!R$46,IF('Matris 2'!J22<-(10^Inställningar!R$45),-(LOG10(ABS('Matris 2'!J22))-Inställningar!R$45)/(Inställningar!R$44-Inställningar!R$45)*'Skalor o färg'!$B$8,IF('Matris 2'!J22>(10^Inställningar!R$45),(LOG10('Matris 2'!J22)-Inställningar!R$45)/(Inställningar!R$44-Inställningar!R$45)*'Skalor o färg'!$B$8,0)),'Matris 2'!J22/Inställningar!R$43*'Skalor o färg'!$B$8)","v":{"$error":"#DIV/0!"}},{"$f":"IF(Inställningar!S$46,IF('Matris 2'!K22<-(10^Inställningar!S$45),-(LOG10(ABS('Matris 2'!K22))-Inställningar!S$45)/(Inställningar!S$44-Inställningar!S$45)*'Skalor o färg'!$B$8,IF('Matris 2'!K22>(10^Inställningar!S$45),(LOG10('Matris 2'!K22)-Inställningar!S$45)/(Inställningar!S$44-Inställningar!S$45)*'Skalor o färg'!$B$8,0)),'Matris 2'!K22/Inställningar!S$43*'Skalor o färg'!$B$8)","v":{"$error":"#DIV/0!"}},{"$f":"IF(Inställningar!T$46,IF('Matris 2'!L22<-(10^Inställningar!T$45),-(LOG10(ABS('Matris 2'!L22))-Inställningar!T$45)/(Inställningar!T$44-Inställningar!T$45)*'Skalor o färg'!$B$8,IF('Matris 2'!L22>(10^Inställningar!T$45),(LOG10('Matris 2'!L22)-Inställningar!T$45)/(Inställningar!T$44-Inställningar!T$45)*'Skalor o färg'!$B$8,0)),'Matris 2'!L22/Inställningar!T$43*'Skalor o färg'!$B$8)","v":{"$error":"#DIV/0!"}},{"$f":"IF(Inställningar!U$46,IF('Matris 2'!M22<-(10^Inställningar!U$45),-(LOG10(ABS('Matris 2'!M22))-Inställningar!U$45)/(Inställningar!U$44-Inställningar!U$45)*'Skalor o färg'!$B$8,IF('Matris 2'!M22>(10^Inställningar!U$45),(LOG10('Matris 2'!M22)-Inställningar!U$45)/(Inställningar!U$44-Inställningar!U$45)*'Skalor o färg'!$B$8,0)),'Matris 2'!M22/Inställningar!U$43*'Skalor o färg'!$B$8)","v":{"$error":"#DIV/0!"}},{"$f":"IF(Inställningar!V$46,IF('Matris 2'!N22<-(10^Inställningar!V$45),-(LOG10(ABS('Matris 2'!N22))-Inställningar!V$45)/(Inställningar!V$44-Inställningar!V$45)*'Skalor o färg'!$B$8,IF('Matris 2'!N22>(10^Inställningar!V$45),(LOG10('Matris 2'!N22)-Inställningar!V$45)/(Inställningar!V$44-Inställningar!V$45)*'Skalor o färg'!$B$8,0)),'Matris 2'!N22/Inställningar!V$43*'Skalor o färg'!$B$8)","v":{"$error":"#DIV/0!"}},{"$f":"IF(Inställningar!W$46,IF('Matris 2'!O22<-(10^Inställningar!W$45),-(LOG10(ABS('Matris 2'!O22))-Inställningar!W$45)/(Inställningar!W$44-Inställningar!W$45)*'Skalor o färg'!$B$8,IF('Matris 2'!O22>(10^Inställningar!W$45),(LOG10('Matris 2'!O22)-Inställningar!W$45)/(Inställningar!W$44-Inställningar!W$45)*'Skalor o färg'!$B$8,0)),'Matris 2'!O22/Inställningar!W$43*'Skalor o färg'!$B$8)","v":{"$error":"#DIV/0!"}},{"$f":"IF(Inställningar!X$46,IF('Matris 2'!P22<-(10^Inställningar!X$45),-(LOG10(ABS('Matris 2'!P22))-Inställningar!X$45)/(Inställningar!X$44-Inställningar!X$45)*'Skalor o färg'!$B$8,IF('Matris 2'!P22>(10^Inställningar!X$45),(LOG10('Matris 2'!P22)-Inställningar!X$45)/(Inställningar!X$44-Inställningar!X$45)*'Skalor o färg'!$B$8,0)),'Matris 2'!P22/Inställningar!X$43*'Skalor o färg'!$B$8)","v":{"$error":"#DIV/0!"}},{"$f":"IF(Inställningar!Y$46,IF('Matris 2'!Q22<-(10^Inställningar!Y$45),-(LOG10(ABS('Matris 2'!Q22))-Inställningar!Y$45)/(Inställningar!Y$44-Inställningar!Y$45)*'Skalor o färg'!$B$8,IF('Matris 2'!Q22>(10^Inställningar!Y$45),(LOG10('Matris 2'!Q22)-Inställningar!Y$45)/(Inställningar!Y$44-Inställningar!Y$45)*'Skalor o färg'!$B$8,0)),'Matris 2'!Q22/Inställningar!Y$43*'Skalor o färg'!$B$8)","v":{"$error":"#DIV/0!"}},{"$f":"IF(Inställningar!Z$46,IF('Matris 2'!R22<-(10^Inställningar!Z$45),-(LOG10(ABS('Matris 2'!R22))-Inställningar!Z$45)/(Inställningar!Z$44-Inställningar!Z$45)*'Skalor o färg'!$B$8,IF('Matris 2'!R22>(10^Inställningar!Z$45),(LOG10('Matris 2'!R22)-Inställningar!Z$45)/(Inställningar!Z$44-Inställningar!Z$45)*'Skalor o färg'!$B$8,0)),'Matris 2'!R22/Inställningar!Z$43*'Skalor o färg'!$B$8)","v":{"$error":"#DIV/0!"}}]
[{"$f":"'Matris 1'!A11","v":"Åtgärdsförslag 3"},"Kort sikt",{"$f":"IF(Inställningar!K$46,IF('Matris 2'!C24<-(10^Inställningar!K$45),-(LOG10(ABS('Matris 2'!C24))-Inställningar!K$45)/(Inställningar!K$44-Inställningar!K$45)*'Skalor o färg'!$B$8,IF('Matris 2'!C24>(10^Inställningar!K$45),(LOG10('Matris 2'!C24)-Inställningar!K$45)/(Inställningar!K$44-Inställningar!K$45)*'Skalor o färg'!$B$8,0)),'Matris 2'!C24/Inställningar!K$43*'Skalor o färg'!$B$8)","v":{"$error":"#DIV/0!"}},{"$f":"IF(Inställningar!L$46,IF('Matris 2'!D24<-(10^Inställningar!L$45),-(LOG10(ABS('Matris 2'!D24))-Inställningar!L$45)/(Inställningar!L$44-Inställningar!L$45)*'Skalor o färg'!$B$8,IF('Matris 2'!D24>(10^Inställningar!L$45),(LOG10('Matris 2'!D24)-Inställningar!L$45)/(Inställningar!L$44-Inställningar!L$45)*'Skalor o färg'!$B$8,0)),'Matris 2'!D24/Inställningar!L$43*'Skalor o färg'!$B$8)","v":{"$error":"#DIV/0!"}},{"$f":"IF(Inställningar!M$46,IF('Matris 2'!E24<-(10^Inställningar!M$45),-(LOG10(ABS('Matris 2'!E24))-Inställningar!M$45)/(Inställningar!M$44-Inställningar!M$45)*'Skalor o färg'!$B$8,IF('Matris 2'!E24>(10^Inställningar!M$45),(LOG10('Matris 2'!E24)-Inställningar!M$45)/(Inställningar!M$44-Inställningar!M$45)*'Skalor o färg'!$B$8,0)),'Matris 2'!E24/Inställningar!M$43*'Skalor o färg'!$B$8)","v":{"$error":"#DIV/0!"}},{"$f":"IF(Inställningar!N$46,IF('Matris 2'!F24<-(10^Inställningar!N$45),-(LOG10(ABS('Matris 2'!F24))-Inställningar!N$45)/(Inställningar!N$44-Inställningar!N$45)*'Skalor o färg'!$B$8,IF('Matris 2'!F24>(10^Inställningar!N$45),(LOG10('Matris 2'!F24)-Inställningar!N$45)/(Inställningar!N$44-Inställningar!N$45)*'Skalor o färg'!$B$8,0)),'Matris 2'!F24/Inställningar!N$43*'Skalor o färg'!$B$8)","v":{"$error":"#DIV/0!"}},{"$f":"IF(Inställningar!O$46,IF('Matris 2'!G24<-(10^Inställningar!O$45),-(LOG10(ABS('Matris 2'!G24))-Inställningar!O$45)/(Inställningar!O$44-Inställningar!O$45)*'Skalor o färg'!$B$8,IF('Matris 2'!G24>(10^Inställningar!O$45),(LOG10('Matris 2'!G24)-Inställningar!O$45)/(Inställningar!O$44-Inställningar!O$45)*'Skalor o färg'!$B$8,0)),'Matris 2'!G24/Inställningar!O$43*'Skalor o färg'!$B$8)","v":{"$error":"#DIV/0!"}},{"$f":"IF(Inställningar!P$46,IF('Matris 2'!H24<-(10^Inställningar!P$45),-(LOG10(ABS('Matris 2'!H24))-Inställningar!P$45)/(Inställningar!P$44-Inställningar!P$45)*'Skalor o färg'!$B$8,IF('Matris 2'!H24>(10^Inställningar!P$45),(LOG10('Matris 2'!H24)-Inställningar!P$45)/(Inställningar!P$44-Inställningar!P$45)*'Skalor o färg'!$B$8,0)),'Matris 2'!H24/Inställningar!P$43*'Skalor o färg'!$B$8)","v":{"$error":"#DIV/0!"}},{"$f":"IF(Inställningar!Q$46,IF('Matris 2'!I24<-(10^Inställningar!Q$45),-(LOG10(ABS('Matris 2'!I24))-Inställningar!Q$45)/(Inställningar!Q$44-Inställningar!Q$45)*'Skalor o färg'!$B$8,IF('Matris 2'!I24>(10^Inställningar!Q$45),(LOG10('Matris 2'!I24)-Inställningar!Q$45)/(Inställningar!Q$44-Inställningar!Q$45)*'Skalor o färg'!$B$8,0)),'Matris 2'!I24/Inställningar!Q$43*'Skalor o färg'!$B$8)","v":{"$error":"#DIV/0!"}},{"$f":"IF(Inställningar!R$46,IF('Matris 2'!J24<-(10^Inställningar!R$45),-(LOG10(ABS('Matris 2'!J24))-Inställningar!R$45)/(Inställningar!R$44-Inställningar!R$45)*'Skalor o färg'!$B$8,IF('Matris 2'!J24>(10^Inställningar!R$45),(LOG10('Matris 2'!J24)-Inställningar!R$45)/(Inställningar!R$44-Inställningar!R$45)*'Skalor o färg'!$B$8,0)),'Matris 2'!J24/Inställningar!R$43*'Skalor o färg'!$B$8)","v":{"$error":"#DIV/0!"}},{"$f":"IF(Inställningar!S$46,IF('Matris 2'!K24<-(10^Inställningar!S$45),-(LOG10(ABS('Matris 2'!K24))-Inställningar!S$45)/(Inställningar!S$44-Inställningar!S$45)*'Skalor o färg'!$B$8,IF('Matris 2'!K24>(10^Inställningar!S$45),(LOG10('Matris 2'!K24)-Inställningar!S$45)/(Inställningar!S$44-Inställningar!S$45)*'Skalor o färg'!$B$8,0)),'Matris 2'!K24/Inställningar!S$43*'Skalor o färg'!$B$8)","v":{"$error":"#DIV/0!"}},{"$f":"IF(Inställningar!T$46,IF('Matris 2'!L24<-(10^Inställningar!T$45),-(LOG10(ABS('Matris 2'!L24))-Inställningar!T$45)/(Inställningar!T$44-Inställningar!T$45)*'Skalor o färg'!$B$8,IF('Matris 2'!L24>(10^Inställningar!T$45),(LOG10('Matris 2'!L24)-Inställningar!T$45)/(Inställningar!T$44-Inställningar!T$45)*'Skalor o färg'!$B$8,0)),'Matris 2'!L24/Inställningar!T$43*'Skalor o färg'!$B$8)","v":{"$error":"#DIV/0!"}},{"$f":"IF(Inställningar!U$46,IF('Matris 2'!M24<-(10^Inställningar!U$45),-(LOG10(ABS('Matris 2'!M24))-Inställningar!U$45)/(Inställningar!U$44-Inställningar!U$45)*'Skalor o färg'!$B$8,IF('Matris 2'!M24>(10^Inställningar!U$45),(LOG10('Matris 2'!M24)-Inställningar!U$45)/(Inställningar!U$44-Inställningar!U$45)*'Skalor o färg'!$B$8,0)),'Matris 2'!M24/Inställningar!U$43*'Skalor o färg'!$B$8)","v":{"$error":"#DIV/0!"}},{"$f":"IF(Inställningar!V$46,IF('Matris 2'!N24<-(10^Inställningar!V$45),-(LOG10(ABS('Matris 2'!N24))-Inställningar!V$45)/(Inställningar!V$44-Inställningar!V$45)*'Skalor o färg'!$B$8,IF('Matris 2'!N24>(10^Inställningar!V$45),(LOG10('Matris 2'!N24)-Inställningar!V$45)/(Inställningar!V$44-Inställningar!V$45)*'Skalor o färg'!$B$8,0)),'Matris 2'!N24/Inställningar!V$43*'Skalor o färg'!$B$8)","v":{"$error":"#DIV/0!"}},{"$f":"IF(Inställningar!W$46,IF('Matris 2'!O24<-(10^Inställningar!W$45),-(LOG10(ABS('Matris 2'!O24))-Inställningar!W$45)/(Inställningar!W$44-Inställningar!W$45)*'Skalor o färg'!$B$8,IF('Matris 2'!O24>(10^Inställningar!W$45),(LOG10('Matris 2'!O24)-Inställningar!W$45)/(Inställningar!W$44-Inställningar!W$45)*'Skalor o färg'!$B$8,0)),'Matris 2'!O24/Inställningar!W$43*'Skalor o färg'!$B$8)","v":{"$error":"#DIV/0!"}},{"$f":"IF(Inställningar!X$46,IF('Matris 2'!P24<-(10^Inställningar!X$45),-(LOG10(ABS('Matris 2'!P24))-Inställningar!X$45)/(Inställningar!X$44-Inställningar!X$45)*'Skalor o färg'!$B$8,IF('Matris 2'!P24>(10^Inställningar!X$45),(LOG10('Matris 2'!P24)-Inställningar!X$45)/(Inställningar!X$44-Inställningar!X$45)*'Skalor o färg'!$B$8,0)),'Matris 2'!P24/Inställningar!X$43*'Skalor o färg'!$B$8)","v":{"$error":"#DIV/0!"}},{"$f":"IF(Inställningar!Y$46,IF('Matris 2'!Q24<-(10^Inställningar!Y$45),-(LOG10(ABS('Matris 2'!Q24))-Inställningar!Y$45)/(Inställningar!Y$44-Inställningar!Y$45)*'Skalor o färg'!$B$8,IF('Matris 2'!Q24>(10^Inställningar!Y$45),(LOG10('Matris 2'!Q24)-Inställningar!Y$45)/(Inställningar!Y$44-Inställningar!Y$45)*'Skalor o färg'!$B$8,0)),'Matris 2'!Q24/Inställningar!Y$43*'Skalor o färg'!$B$8)","v":{"$error":"#DIV/0!"}},{"$f":"IF(Inställningar!Z$46,IF('Matris 2'!R24<-(10^Inställningar!Z$45),-(LOG10(ABS('Matris 2'!R24))-Inställningar!Z$45)/(Inställningar!Z$44-Inställningar!Z$45)*'Skalor o färg'!$B$8,IF('Matris 2'!R24>(10^Inställningar!Z$45),(LOG10('Matris 2'!R24)-Inställningar!Z$45)/(Inställningar!Z$44-Inställningar!Z$45)*'Skalor o färg'!$B$8,0)),'Matris 2'!R24/Inställningar!Z$43*'Skalor o färg'!$B$8)","v":{"$error":"#DIV/0!"}}]
[null,"Lång sikt",{"$f":"IF(Inställningar!K$46,IF('Matris 2'!C26<-(10^Inställningar!K$45),-(LOG10(ABS('Matris 2'!C26))-Inställningar!K$45)/(Inställningar!K$44-Inställningar!K$45)*'Skalor o färg'!$B$8,IF('Matris 2'!C26>(10^Inställningar!K$45),(LOG10('Matris 2'!C26)-Inställningar!K$45)/(Inställningar!K$44-Inställningar!K$45)*'Skalor o färg'!$B$8,0)),'Matris 2'!C26/Inställningar!K$43*'Skalor o färg'!$B$8)","v":{"$error":"#DIV/0!"}},{"$f":"IF(Inställningar!L$46,IF('Matris 2'!D26<-(10^Inställningar!L$45),-(LOG10(ABS('Matris 2'!D26))-Inställningar!L$45)/(Inställningar!L$44-Inställningar!L$45)*'Skalor o färg'!$B$8,IF('Matris 2'!D26>(10^Inställningar!L$45),(LOG10('Matris 2'!D26)-Inställningar!L$45)/(Inställningar!L$44-Inställningar!L$45)*'Skalor o färg'!$B$8,0)),'Matris 2'!D26/Inställningar!L$43*'Skalor o färg'!$B$8)","v":{"$error":"#DIV/0!"}},{"$f":"IF(Inställningar!M$46,IF('Matris 2'!E26<-(10^Inställningar!M$45),-(LOG10(ABS('Matris 2'!E26))-Inställningar!M$45)/(Inställningar!M$44-Inställningar!M$45)*'Skalor o färg'!$B$8,IF('Matris 2'!E26>(10^Inställningar!M$45),(LOG10('Matris 2'!E26)-Inställningar!M$45)/(Inställningar!M$44-Inställningar!M$45)*'Skalor o färg'!$B$8,0)),'Matris 2'!E26/Inställningar!M$43*'Skalor o färg'!$B$8)","v":{"$error":"#DIV/0!"}},{"$f":"IF(Inställningar!N$46,IF('Matris 2'!F26<-(10^Inställningar!N$45),-(LOG10(ABS('Matris 2'!F26))-Inställningar!N$45)/(Inställningar!N$44-Inställningar!N$45)*'Skalor o färg'!$B$8,IF('Matris 2'!F26>(10^Inställningar!N$45),(LOG10('Matris 2'!F26)-Inställningar!N$45)/(Inställningar!N$44-Inställningar!N$45)*'Skalor o färg'!$B$8,0)),'Matris 2'!F26/Inställningar!N$43*'Skalor o färg'!$B$8)","v":{"$error":"#DIV/0!"}},{"$f":"IF(Inställningar!O$46,IF('Matris 2'!G26<-(10^Inställningar!O$45),-(LOG10(ABS('Matris 2'!G26))-Inställningar!O$45)/(Inställningar!O$44-Inställningar!O$45)*'Skalor o färg'!$B$8,IF('Matris 2'!G26>(10^Inställningar!O$45),(LOG10('Matris 2'!G26)-Inställningar!O$45)/(Inställningar!O$44-Inställningar!O$45)*'Skalor o färg'!$B$8,0)),'Matris 2'!G26/Inställningar!O$43*'Skalor o färg'!$B$8)","v":{"$error":"#DIV/0!"}},{"$f":"IF(Inställningar!P$46,IF('Matris 2'!H26<-(10^Inställningar!P$45),-(LOG10(ABS('Matris 2'!H26))-Inställningar!P$45)/(Inställningar!P$44-Inställningar!P$45)*'Skalor o färg'!$B$8,IF('Matris 2'!H26>(10^Inställningar!P$45),(LOG10('Matris 2'!H26)-Inställningar!P$45)/(Inställningar!P$44-Inställningar!P$45)*'Skalor o färg'!$B$8,0)),'Matris 2'!H26/Inställningar!P$43*'Skalor o färg'!$B$8)","v":{"$error":"#DIV/0!"}},{"$f":"IF(Inställningar!Q$46,IF('Matris 2'!I26<-(10^Inställningar!Q$45),-(LOG10(ABS('Matris 2'!I26))-Inställningar!Q$45)/(Inställningar!Q$44-Inställningar!Q$45)*'Skalor o färg'!$B$8,IF('Matris 2'!I26>(10^Inställningar!Q$45),(LOG10('Matris 2'!I26)-Inställningar!Q$45)/(Inställningar!Q$44-Inställningar!Q$45)*'Skalor o färg'!$B$8,0)),'Matris 2'!I26/Inställningar!Q$43*'Skalor o färg'!$B$8)","v":{"$error":"#DIV/0!"}},{"$f":"IF(Inställningar!R$46,IF('Matris 2'!J26<-(10^Inställningar!R$45),-(LOG10(ABS('Matris 2'!J26))-Inställningar!R$45)/(Inställningar!R$44-Inställningar!R$45)*'Skalor o färg'!$B$8,IF('Matris 2'!J26>(10^Inställningar!R$45),(LOG10('Matris 2'!J26)-Inställningar!R$45)/(Inställningar!R$44-Inställningar!R$45)*'Skalor o färg'!$B$8,0)),'Matris 2'!J26/Inställningar!R$43*'Skalor o färg'!$B$8)","v":{"$error":"#DIV/0!"}},{"$f":"IF(Inställningar!S$46,IF('Matris 2'!K26<-(10^Inställningar!S$45),-(LOG10(ABS('Matris 2'!K26))-Inställningar!S$45)/(Inställningar!S$44-Inställningar!S$45)*'Skalor o färg'!$B$8,IF('Matris 2'!K26>(10^Inställningar!S$45),(LOG10('Matris 2'!K26)-Inställningar!S$45)/(Inställningar!S$44-Inställningar!S$45)*'Skalor o färg'!$B$8,0)),'Matris 2'!K26/Inställningar!S$43*'Skalor o färg'!$B$8)","v":{"$error":"#DIV/0!"}},{"$f":"IF(Inställningar!T$46,IF('Matris 2'!L26<-(10^Inställningar!T$45),-(LOG10(ABS('Matris 2'!L26))-Inställningar!T$45)/(Inställningar!T$44-Inställningar!T$45)*'Skalor o färg'!$B$8,IF('Matris 2'!L26>(10^Inställningar!T$45),(LOG10('Matris 2'!L26)-Inställningar!T$45)/(Inställningar!T$44-Inställningar!T$45)*'Skalor o färg'!$B$8,0)),'Matris 2'!L26/Inställningar!T$43*'Skalor o färg'!$B$8)","v":{"$error":"#DIV/0!"}},{"$f":"IF(Inställningar!U$46,IF('Matris 2'!M26<-(10^Inställningar!U$45),-(LOG10(ABS('Matris 2'!M26))-Inställningar!U$45)/(Inställningar!U$44-Inställningar!U$45)*'Skalor o färg'!$B$8,IF('Matris 2'!M26>(10^Inställningar!U$45),(LOG10('Matris 2'!M26)-Inställningar!U$45)/(Inställningar!U$44-Inställningar!U$45)*'Skalor o färg'!$B$8,0)),'Matris 2'!M26/Inställningar!U$43*'Skalor o färg'!$B$8)","v":{"$error":"#DIV/0!"}},{"$f":"IF(Inställningar!V$46,IF('Matris 2'!N26<-(10^Inställningar!V$45),-(LOG10(ABS('Matris 2'!N26))-Inställningar!V$45)/(Inställningar!V$44-Inställningar!V$45)*'Skalor o färg'!$B$8,IF('Matris 2'!N26>(10^Inställningar!V$45),(LOG10('Matris 2'!N26)-Inställningar!V$45)/(Inställningar!V$44-Inställningar!V$45)*'Skalor o färg'!$B$8,0)),'Matris 2'!N26/Inställningar!V$43*'Skalor o färg'!$B$8)","v":{"$error":"#DIV/0!"}},{"$f":"IF(Inställningar!W$46,IF('Matris 2'!O26<-(10^Inställningar!W$45),-(LOG10(ABS('Matris 2'!O26))-Inställningar!W$45)/(Inställningar!W$44-Inställningar!W$45)*'Skalor o färg'!$B$8,IF('Matris 2'!O26>(10^Inställningar!W$45),(LOG10('Matris 2'!O26)-Inställningar!W$45)/(Inställningar!W$44-Inställningar!W$45)*'Skalor o färg'!$B$8,0)),'Matris 2'!O26/Inställningar!W$43*'Skalor o färg'!$B$8)","v":{"$error":"#DIV/0!"}},{"$f":"IF(Inställningar!X$46,IF('Matris 2'!P26<-(10^Inställningar!X$45),-(LOG10(ABS('Matris 2'!P26))-Inställningar!X$45)/(Inställningar!X$44-Inställningar!X$45)*'Skalor o färg'!$B$8,IF('Matris 2'!P26>(10^Inställningar!X$45),(LOG10('Matris 2'!P26)-Inställningar!X$45)/(Inställningar!X$44-Inställningar!X$45)*'Skalor o färg'!$B$8,0)),'Matris 2'!P26/Inställningar!X$43*'Skalor o färg'!$B$8)","v":{"$error":"#DIV/0!"}},{"$f":"IF(Inställningar!Y$46,IF('Matris 2'!Q26<-(10^Inställningar!Y$45),-(LOG10(ABS('Matris 2'!Q26))-Inställningar!Y$45)/(Inställningar!Y$44-Inställningar!Y$45)*'Skalor o färg'!$B$8,IF('Matris 2'!Q26>(10^Inställningar!Y$45),(LOG10('Matris 2'!Q26)-Inställningar!Y$45)/(Inställningar!Y$44-Inställningar!Y$45)*'Skalor o färg'!$B$8,0)),'Matris 2'!Q26/Inställningar!Y$43*'Skalor o färg'!$B$8)","v":{"$error":"#DIV/0!"}},{"$f":"IF(Inställningar!Z$46,IF('Matris 2'!R26<-(10^Inställningar!Z$45),-(LOG10(ABS('Matris 2'!R26))-Inställningar!Z$45)/(Inställningar!Z$44-Inställningar!Z$45)*'Skalor o färg'!$B$8,IF('Matris 2'!R26>(10^Inställningar!Z$45),(LOG10('Matris 2'!R26)-Inställningar!Z$45)/(Inställningar!Z$44-Inställningar!Z$45)*'Skalor o färg'!$B$8,0)),'Matris 2'!R26/Inställningar!Z$43*'Skalor o färg'!$B$8)","v":{"$error":"#DIV/0!"}}]
[{"$f":"'Matris 1'!A12","v":"Åtgärdsförslag 4"},"Kort sikt",{"$f":"IF(Inställningar!K$46,IF('Matris 2'!C28<-(10^Inställningar!K$45),-(LOG10(ABS('Matris 2'!C28))-Inställningar!K$45)/(Inställningar!K$44-Inställningar!K$45)*'Skalor o färg'!$B$8,IF('Matris 2'!C28>(10^Inställningar!K$45),(LOG10('Matris 2'!C28)-Inställningar!K$45)/(Inställningar!K$44-Inställningar!K$45)*'Skalor o färg'!$B$8,0)),'Matris 2'!C28/Inställningar!K$43*'Skalor o färg'!$B$8)","v":{"$error":"#DIV/0!"}},{"$f":"IF(Inställningar!L$46,IF('Matris 2'!D28<-(10^Inställningar!L$45),-(LOG10(ABS('Matris 2'!D28))-Inställningar!L$45)/(Inställningar!L$44-Inställningar!L$45)*'Skalor o färg'!$B$8,IF('Matris 2'!D28>(10^Inställningar!L$45),(LOG10('Matris 2'!D28)-Inställningar!L$45)/(Inställningar!L$44-Inställningar!L$45)*'Skalor o färg'!$B$8,0)),'Matris 2'!D28/Inställningar!L$43*'Skalor o färg'!$B$8)","v":{"$error":"#DIV/0!"}},{"$f":"IF(Inställningar!M$46,IF('Matris 2'!E28<-(10^Inställningar!M$45),-(LOG10(ABS('Matris 2'!E28))-Inställningar!M$45)/(Inställningar!M$44-Inställningar!M$45)*'Skalor o färg'!$B$8,IF('Matris 2'!E28>(10^Inställningar!M$45),(LOG10('Matris 2'!E28)-Inställningar!M$45)/(Inställningar!M$44-Inställningar!M$45)*'Skalor o färg'!$B$8,0)),'Matris 2'!E28/Inställningar!M$43*'Skalor o färg'!$B$8)","v":{"$error":"#DIV/0!"}},{"$f":"IF(Inställningar!N$46,IF('Matris 2'!F28<-(10^Inställningar!N$45),-(LOG10(ABS('Matris 2'!F28))-Inställningar!N$45)/(Inställningar!N$44-Inställningar!N$45)*'Skalor o färg'!$B$8,IF('Matris 2'!F28>(10^Inställningar!N$45),(LOG10('Matris 2'!F28)-Inställningar!N$45)/(Inställningar!N$44-Inställningar!N$45)*'Skalor o färg'!$B$8,0)),'Matris 2'!F28/Inställningar!N$43*'Skalor o färg'!$B$8)","v":{"$error":"#DIV/0!"}},{"$f":"IF(Inställningar!O$46,IF('Matris 2'!G28<-(10^Inställningar!O$45),-(LOG10(ABS('Matris 2'!G28))-Inställningar!O$45)/(Inställningar!O$44-Inställningar!O$45)*'Skalor o färg'!$B$8,IF('Matris 2'!G28>(10^Inställningar!O$45),(LOG10('Matris 2'!G28)-Inställningar!O$45)/(Inställningar!O$44-Inställningar!O$45)*'Skalor o färg'!$B$8,0)),'Matris 2'!G28/Inställningar!O$43*'Skalor o färg'!$B$8)","v":{"$error":"#DIV/0!"}},{"$f":"IF(Inställningar!P$46,IF('Matris 2'!H28<-(10^Inställningar!P$45),-(LOG10(ABS('Matris 2'!H28))-Inställningar!P$45)/(Inställningar!P$44-Inställningar!P$45)*'Skalor o färg'!$B$8,IF('Matris 2'!H28>(10^Inställningar!P$45),(LOG10('Matris 2'!H28)-Inställningar!P$45)/(Inställningar!P$44-Inställningar!P$45)*'Skalor o färg'!$B$8,0)),'Matris 2'!H28/Inställningar!P$43*'Skalor o färg'!$B$8)","v":{"$error":"#DIV/0!"}},{"$f":"IF(Inställningar!Q$46,IF('Matris 2'!I28<-(10^Inställningar!Q$45),-(LOG10(ABS('Matris 2'!I28))-Inställningar!Q$45)/(Inställningar!Q$44-Inställningar!Q$45)*'Skalor o färg'!$B$8,IF('Matris 2'!I28>(10^Inställningar!Q$45),(LOG10('Matris 2'!I28)-Inställningar!Q$45)/(Inställningar!Q$44-Inställningar!Q$45)*'Skalor o färg'!$B$8,0)),'Matris 2'!I28/Inställningar!Q$43*'Skalor o färg'!$B$8)","v":{"$error":"#DIV/0!"}},{"$f":"IF(Inställningar!R$46,IF('Matris 2'!J28<-(10^Inställningar!R$45),-(LOG10(ABS('Matris 2'!J28))-Inställningar!R$45)/(Inställningar!R$44-Inställningar!R$45)*'Skalor o färg'!$B$8,IF('Matris 2'!J28>(10^Inställningar!R$45),(LOG10('Matris 2'!J28)-Inställningar!R$45)/(Inställningar!R$44-Inställningar!R$45)*'Skalor o färg'!$B$8,0)),'Matris 2'!J28/Inställningar!R$43*'Skalor o färg'!$B$8)","v":{"$error":"#DIV/0!"}},{"$f":"IF(Inställningar!S$46,IF('Matris 2'!K28<-(10^Inställningar!S$45),-(LOG10(ABS('Matris 2'!K28))-Inställningar!S$45)/(Inställningar!S$44-Inställningar!S$45)*'Skalor o färg'!$B$8,IF('Matris 2'!K28>(10^Inställningar!S$45),(LOG10('Matris 2'!K28)-Inställningar!S$45)/(Inställningar!S$44-Inställningar!S$45)*'Skalor o färg'!$B$8,0)),'Matris 2'!K28/Inställningar!S$43*'Skalor o färg'!$B$8)","v":{"$error":"#DIV/0!"}},{"$f":"IF(Inställningar!T$46,IF('Matris 2'!L28<-(10^Inställningar!T$45),-(LOG10(ABS('Matris 2'!L28))-Inställningar!T$45)/(Inställningar!T$44-Inställningar!T$45)*'Skalor o färg'!$B$8,IF('Matris 2'!L28>(10^Inställningar!T$45),(LOG10('Matris 2'!L28)-Inställningar!T$45)/(Inställningar!T$44-Inställningar!T$45)*'Skalor o färg'!$B$8,0)),'Matris 2'!L28/Inställningar!T$43*'Skalor o färg'!$B$8)","v":{"$error":"#DIV/0!"}},{"$f":"IF(Inställningar!U$46,IF('Matris 2'!M28<-(10^Inställningar!U$45),-(LOG10(ABS('Matris 2'!M28))-Inställningar!U$45)/(Inställningar!U$44-Inställningar!U$45)*'Skalor o färg'!$B$8,IF('Matris 2'!M28>(10^Inställningar!U$45),(LOG10('Matris 2'!M28)-Inställningar!U$45)/(Inställningar!U$44-Inställningar!U$45)*'Skalor o färg'!$B$8,0)),'Matris 2'!M28/Inställningar!U$43*'Skalor o färg'!$B$8)","v":{"$error":"#DIV/0!"}},{"$f":"IF(Inställningar!V$46,IF('Matris 2'!N28<-(10^Inställningar!V$45),-(LOG10(ABS('Matris 2'!N28))-Inställningar!V$45)/(Inställningar!V$44-Inställningar!V$45)*'Skalor o färg'!$B$8,IF('Matris 2'!N28>(10^Inställningar!V$45),(LOG10('Matris 2'!N28)-Inställningar!V$45)/(Inställningar!V$44-Inställningar!V$45)*'Skalor o färg'!$B$8,0)),'Matris 2'!N28/Inställningar!V$43*'Skalor o färg'!$B$8)","v":{"$error":"#DIV/0!"}},{"$f":"IF(Inställningar!W$46,IF('Matris 2'!O28<-(10^Inställningar!W$45),-(LOG10(ABS('Matris 2'!O28))-Inställningar!W$45)/(Inställningar!W$44-Inställningar!W$45)*'Skalor o färg'!$B$8,IF('Matris 2'!O28>(10^Inställningar!W$45),(LOG10('Matris 2'!O28)-Inställningar!W$45)/(Inställningar!W$44-Inställningar!W$45)*'Skalor o färg'!$B$8,0)),'Matris 2'!O28/Inställningar!W$43*'Skalor o färg'!$B$8)","v":{"$error":"#DIV/0!"}},{"$f":"IF(Inställningar!X$46,IF('Matris 2'!P28<-(10^Inställningar!X$45),-(LOG10(ABS('Matris 2'!P28))-Inställningar!X$45)/(Inställningar!X$44-Inställningar!X$45)*'Skalor o färg'!$B$8,IF('Matris 2'!P28>(10^Inställningar!X$45),(LOG10('Matris 2'!P28)-Inställningar!X$45)/(Inställningar!X$44-Inställningar!X$45)*'Skalor o färg'!$B$8,0)),'Matris 2'!P28/Inställningar!X$43*'Skalor o färg'!$B$8)","v":{"$error":"#DIV/0!"}},{"$f":"IF(Inställningar!Y$46,IF('Matris 2'!Q28<-(10^Inställningar!Y$45),-(LOG10(ABS('Matris 2'!Q28))-Inställningar!Y$45)/(Inställningar!Y$44-Inställningar!Y$45)*'Skalor o färg'!$B$8,IF('Matris 2'!Q28>(10^Inställningar!Y$45),(LOG10('Matris 2'!Q28)-Inställningar!Y$45)/(Inställningar!Y$44-Inställningar!Y$45)*'Skalor o färg'!$B$8,0)),'Matris 2'!Q28/Inställningar!Y$43*'Skalor o färg'!$B$8)","v":{"$error":"#DIV/0!"}},{"$f":"IF(Inställningar!Z$46,IF('Matris 2'!R28<-(10^Inställningar!Z$45),-(LOG10(ABS('Matris 2'!R28))-Inställningar!Z$45)/(Inställningar!Z$44-Inställningar!Z$45)*'Skalor o färg'!$B$8,IF('Matris 2'!R28>(10^Inställningar!Z$45),(LOG10('Matris 2'!R28)-Inställningar!Z$45)/(Inställningar!Z$44-Inställningar!Z$45)*'Skalor o färg'!$B$8,0)),'Matris 2'!R28/Inställningar!Z$43*'Skalor o färg'!$B$8)","v":{"$error":"#DIV/0!"}}]
[null,"Lång sikt",{"$f":"IF(Inställningar!K$46,IF('Matris 2'!C30<-(10^Inställningar!K$45),-(LOG10(ABS('Matris 2'!C30))-Inställningar!K$45)/(Inställningar!K$44-Inställningar!K$45)*'Skalor o färg'!$B$8,IF('Matris 2'!C30>(10^Inställningar!K$45),(LOG10('Matris 2'!C30)-Inställningar!K$45)/(Inställningar!K$44-Inställningar!K$45)*'Skalor o färg'!$B$8,0)),'Matris 2'!C30/Inställningar!K$43*'Skalor o färg'!$B$8)","v":{"$error":"#DIV/0!"}},{"$f":"IF(Inställningar!L$46,IF('Matris 2'!D30<-(10^Inställningar!L$45),-(LOG10(ABS('Matris 2'!D30))-Inställningar!L$45)/(Inställningar!L$44-Inställningar!L$45)*'Skalor o färg'!$B$8,IF('Matris 2'!D30>(10^Inställningar!L$45),(LOG10('Matris 2'!D30)-Inställningar!L$45)/(Inställningar!L$44-Inställningar!L$45)*'Skalor o färg'!$B$8,0)),'Matris 2'!D30/Inställningar!L$43*'Skalor o färg'!$B$8)","v":{"$error":"#DIV/0!"}},{"$f":"IF(Inställningar!M$46,IF('Matris 2'!E30<-(10^Inställningar!M$45),-(LOG10(ABS('Matris 2'!E30))-Inställningar!M$45)/(Inställningar!M$44-Inställningar!M$45)*'Skalor o färg'!$B$8,IF('Matris 2'!E30>(10^Inställningar!M$45),(LOG10('Matris 2'!E30)-Inställningar!M$45)/(Inställningar!M$44-Inställningar!M$45)*'Skalor o färg'!$B$8,0)),'Matris 2'!E30/Inställningar!M$43*'Skalor o färg'!$B$8)","v":{"$error":"#DIV/0!"}},{"$f":"IF(Inställningar!N$46,IF('Matris 2'!F30<-(10^Inställningar!N$45),-(LOG10(ABS('Matris 2'!F30))-Inställningar!N$45)/(Inställningar!N$44-Inställningar!N$45)*'Skalor o färg'!$B$8,IF('Matris 2'!F30>(10^Inställningar!N$45),(LOG10('Matris 2'!F30)-Inställningar!N$45)/(Inställningar!N$44-Inställningar!N$45)*'Skalor o färg'!$B$8,0)),'Matris 2'!F30/Inställningar!N$43*'Skalor o färg'!$B$8)","v":{"$error":"#DIV/0!"}},{"$f":"IF(Inställningar!O$46,IF('Matris 2'!G30<-(10^Inställningar!O$45),-(LOG10(ABS('Matris 2'!G30))-Inställningar!O$45)/(Inställningar!O$44-Inställningar!O$45)*'Skalor o färg'!$B$8,IF('Matris 2'!G30>(10^Inställningar!O$45),(LOG10('Matris 2'!G30)-Inställningar!O$45)/(Inställningar!O$44-Inställningar!O$45)*'Skalor o färg'!$B$8,0)),'Matris 2'!G30/Inställningar!O$43*'Skalor o färg'!$B$8)","v":{"$error":"#DIV/0!"}},{"$f":"IF(Inställningar!P$46,IF('Matris 2'!H30<-(10^Inställningar!P$45),-(LOG10(ABS('Matris 2'!H30))-Inställningar!P$45)/(Inställningar!P$44-Inställningar!P$45)*'Skalor o färg'!$B$8,IF('Matris 2'!H30>(10^Inställningar!P$45),(LOG10('Matris 2'!H30)-Inställningar!P$45)/(Inställningar!P$44-Inställningar!P$45)*'Skalor o färg'!$B$8,0)),'Matris 2'!H30/Inställningar!P$43*'Skalor o färg'!$B$8)","v":{"$error":"#DIV/0!"}},{"$f":"IF(Inställningar!Q$46,IF('Matris 2'!I30<-(10^Inställningar!Q$45),-(LOG10(ABS('Matris 2'!I30))-Inställningar!Q$45)/(Inställningar!Q$44-Inställningar!Q$45)*'Skalor o färg'!$B$8,IF('Matris 2'!I30>(10^Inställningar!Q$45),(LOG10('Matris 2'!I30)-Inställningar!Q$45)/(Inställningar!Q$44-Inställningar!Q$45)*'Skalor o färg'!$B$8,0)),'Matris 2'!I30/Inställningar!Q$43*'Skalor o färg'!$B$8)","v":{"$error":"#DIV/0!"}},{"$f":"IF(Inställningar!R$46,IF('Matris 2'!J30<-(10^Inställningar!R$45),-(LOG10(ABS('Matris 2'!J30))-Inställningar!R$45)/(Inställningar!R$44-Inställningar!R$45)*'Skalor o färg'!$B$8,IF('Matris 2'!J30>(10^Inställningar!R$45),(LOG10('Matris 2'!J30)-Inställningar!R$45)/(Inställningar!R$44-Inställningar!R$45)*'Skalor o färg'!$B$8,0)),'Matris 2'!J30/Inställningar!R$43*'Skalor o färg'!$B$8)","v":{"$error":"#DIV/0!"}},{"$f":"IF(Inställningar!S$46,IF('Matris 2'!K30<-(10^Inställningar!S$45),-(LOG10(ABS('Matris 2'!K30))-Inställningar!S$45)/(Inställningar!S$44-Inställningar!S$45)*'Skalor o färg'!$B$8,IF('Matris 2'!K30>(10^Inställningar!S$45),(LOG10('Matris 2'!K30)-Inställningar!S$45)/(Inställningar!S$44-Inställningar!S$45)*'Skalor o färg'!$B$8,0)),'Matris 2'!K30/Inställningar!S$43*'Skalor o färg'!$B$8)","v":{"$error":"#DIV/0!"}},{"$f":"IF(Inställningar!T$46,IF('Matris 2'!L30<-(10^Inställningar!T$45),-(LOG10(ABS('Matris 2'!L30))-Inställningar!T$45)/(Inställningar!T$44-Inställningar!T$45)*'Skalor o färg'!$B$8,IF('Matris 2'!L30>(10^Inställningar!T$45),(LOG10('Matris 2'!L30)-Inställningar!T$45)/(Inställningar!T$44-Inställningar!T$45)*'Skalor o färg'!$B$8,0)),'Matris 2'!L30/Inställningar!T$43*'Skalor o färg'!$B$8)","v":{"$error":"#DIV/0!"}},{"$f":"IF(Inställningar!U$46,IF('Matris 2'!M30<-(10^Inställningar!U$45),-(LOG10(ABS('Matris 2'!M30))-Inställningar!U$45)/(Inställningar!U$44-Inställningar!U$45)*'Skalor o färg'!$B$8,IF('Matris 2'!M30>(10^Inställningar!U$45),(LOG10('Matris 2'!M30)-Inställningar!U$45)/(Inställningar!U$44-Inställningar!U$45)*'Skalor o färg'!$B$8,0)),'Matris 2'!M30/Inställningar!U$43*'Skalor o färg'!$B$8)","v":{"$error":"#DIV/0!"}},{"$f":"IF(Inställningar!V$46,IF('Matris 2'!N30<-(10^Inställningar!V$45),-(LOG10(ABS('Matris 2'!N30))-Inställningar!V$45)/(Inställningar!V$44-Inställningar!V$45)*'Skalor o färg'!$B$8,IF('Matris 2'!N30>(10^Inställningar!V$45),(LOG10('Matris 2'!N30)-Inställningar!V$45)/(Inställningar!V$44-Inställningar!V$45)*'Skalor o färg'!$B$8,0)),'Matris 2'!N30/Inställningar!V$43*'Skalor o färg'!$B$8)","v":{"$error":"#DIV/0!"}},{"$f":"IF(Inställningar!W$46,IF('Matris 2'!O30<-(10^Inställningar!W$45),-(LOG10(ABS('Matris 2'!O30))-Inställningar!W$45)/(Inställningar!W$44-Inställningar!W$45)*'Skalor o färg'!$B$8,IF('Matris 2'!O30>(10^Inställningar!W$45),(LOG10('Matris 2'!O30)-Inställningar!W$45)/(Inställningar!W$44-Inställningar!W$45)*'Skalor o färg'!$B$8,0)),'Matris 2'!O30/Inställningar!W$43*'Skalor o färg'!$B$8)","v":{"$error":"#DIV/0!"}},{"$f":"IF(Inställningar!X$46,IF('Matris 2'!P30<-(10^Inställningar!X$45),-(LOG10(ABS('Matris 2'!P30))-Inställningar!X$45)/(Inställningar!X$44-Inställningar!X$45)*'Skalor o färg'!$B$8,IF('Matris 2'!P30>(10^Inställningar!X$45),(LOG10('Matris 2'!P30)-Inställningar!X$45)/(Inställningar!X$44-Inställningar!X$45)*'Skalor o färg'!$B$8,0)),'Matris 2'!P30/Inställningar!X$43*'Skalor o färg'!$B$8)","v":{"$error":"#DIV/0!"}},{"$f":"IF(Inställningar!Y$46,IF('Matris 2'!Q30<-(10^Inställningar!Y$45),-(LOG10(ABS('Matris 2'!Q30))-Inställningar!Y$45)/(Inställningar!Y$44-Inställningar!Y$45)*'Skalor o färg'!$B$8,IF('Matris 2'!Q30>(10^Inställningar!Y$45),(LOG10('Matris 2'!Q30)-Inställningar!Y$45)/(Inställningar!Y$44-Inställningar!Y$45)*'Skalor o färg'!$B$8,0)),'Matris 2'!Q30/Inställningar!Y$43*'Skalor o färg'!$B$8)","v":{"$error":"#DIV/0!"}},{"$f":"IF(Inställningar!Z$46,IF('Matris 2'!R30<-(10^Inställningar!Z$45),-(LOG10(ABS('Matris 2'!R30))-Inställningar!Z$45)/(Inställningar!Z$44-Inställningar!Z$45)*'Skalor o färg'!$B$8,IF('Matris 2'!R30>(10^Inställningar!Z$45),(LOG10('Matris 2'!R30)-Inställningar!Z$45)/(Inställningar!Z$44-Inställningar!Z$45)*'Skalor o färg'!$B$8,0)),'Matris 2'!R30/Inställningar!Z$43*'Skalor o färg'!$B$8)","v":{"$error":"#DIV/0!"}}]
[{"$f":"'Matris 1'!A13","v":"Åtgärdsförslag 5"},"Kort sikt",{"$f":"IF(Inställningar!K$46,IF('Matris 2'!C32<-(10^Inställningar!K$45),-(LOG10(ABS('Matris 2'!C32))-Inställningar!K$45)/(Inställningar!K$44-Inställningar!K$45)*'Skalor o färg'!$B$8,IF('Matris 2'!C32>(10^Inställningar!K$45),(LOG10('Matris 2'!C32)-Inställningar!K$45)/(Inställningar!K$44-Inställningar!K$45)*'Skalor o färg'!$B$8,0)),'Matris 2'!C32/Inställningar!K$43*'Skalor o färg'!$B$8)","v":{"$error":"#DIV/0!"}},{"$f":"IF(Inställningar!L$46,IF('Matris 2'!D32<-(10^Inställningar!L$45),-(LOG10(ABS('Matris 2'!D32))-Inställningar!L$45)/(Inställningar!L$44-Inställningar!L$45)*'Skalor o färg'!$B$8,IF('Matris 2'!D32>(10^Inställningar!L$45),(LOG10('Matris 2'!D32)-Inställningar!L$45)/(Inställningar!L$44-Inställningar!L$45)*'Skalor o färg'!$B$8,0)),'Matris 2'!D32/Inställningar!L$43*'Skalor o färg'!$B$8)","v":{"$error":"#DIV/0!"}},{"$f":"IF(Inställningar!M$46,IF('Matris 2'!E32<-(10^Inställningar!M$45),-(LOG10(ABS('Matris 2'!E32))-Inställningar!M$45)/(Inställningar!M$44-Inställningar!M$45)*'Skalor o färg'!$B$8,IF('Matris 2'!E32>(10^Inställningar!M$45),(LOG10('Matris 2'!E32)-Inställningar!M$45)/(Inställningar!M$44-Inställningar!M$45)*'Skalor o färg'!$B$8,0)),'Matris 2'!E32/Inställningar!M$43*'Skalor o färg'!$B$8)","v":{"$error":"#DIV/0!"}},{"$f":"IF(Inställningar!N$46,IF('Matris 2'!F32<-(10^Inställningar!N$45),-(LOG10(ABS('Matris 2'!F32))-Inställningar!N$45)/(Inställningar!N$44-Inställningar!N$45)*'Skalor o färg'!$B$8,IF('Matris 2'!F32>(10^Inställningar!N$45),(LOG10('Matris 2'!F32)-Inställningar!N$45)/(Inställningar!N$44-Inställningar!N$45)*'Skalor o färg'!$B$8,0)),'Matris 2'!F32/Inställningar!N$43*'Skalor o färg'!$B$8)","v":{"$error":"#DIV/0!"}},{"$f":"IF(Inställningar!O$46,IF('Matris 2'!G32<-(10^Inställningar!O$45),-(LOG10(ABS('Matris 2'!G32))-Inställningar!O$45)/(Inställningar!O$44-Inställningar!O$45)*'Skalor o färg'!$B$8,IF('Matris 2'!G32>(10^Inställningar!O$45),(LOG10('Matris 2'!G32)-Inställningar!O$45)/(Inställningar!O$44-Inställningar!O$45)*'Skalor o färg'!$B$8,0)),'Matris 2'!G32/Inställningar!O$43*'Skalor o färg'!$B$8)","v":{"$error":"#DIV/0!"}},{"$f":"IF(Inställningar!P$46,IF('Matris 2'!H32<-(10^Inställningar!P$45),-(LOG10(ABS('Matris 2'!H32))-Inställningar!P$45)/(Inställningar!P$44-Inställningar!P$45)*'Skalor o färg'!$B$8,IF('Matris 2'!H32>(10^Inställningar!P$45),(LOG10('Matris 2'!H32)-Inställningar!P$45)/(Inställningar!P$44-Inställningar!P$45)*'Skalor o färg'!$B$8,0)),'Matris 2'!H32/Inställningar!P$43*'Skalor o färg'!$B$8)","v":{"$error":"#DIV/0!"}},{"$f":"IF(Inställningar!Q$46,IF('Matris 2'!I32<-(10^Inställningar!Q$45),-(LOG10(ABS('Matris 2'!I32))-Inställningar!Q$45)/(Inställningar!Q$44-Inställningar!Q$45)*'Skalor o färg'!$B$8,IF('Matris 2'!I32>(10^Inställningar!Q$45),(LOG10('Matris 2'!I32)-Inställningar!Q$45)/(Inställningar!Q$44-Inställningar!Q$45)*'Skalor o färg'!$B$8,0)),'Matris 2'!I32/Inställningar!Q$43*'Skalor o färg'!$B$8)","v":{"$error":"#DIV/0!"}},{"$f":"IF(Inställningar!R$46,IF('Matris 2'!J32<-(10^Inställningar!R$45),-(LOG10(ABS('Matris 2'!J32))-Inställningar!R$45)/(Inställningar!R$44-Inställningar!R$45)*'Skalor o färg'!$B$8,IF('Matris 2'!J32>(10^Inställningar!R$45),(LOG10('Matris 2'!J32)-Inställningar!R$45)/(Inställningar!R$44-Inställningar!R$45)*'Skalor o färg'!$B$8,0)),'Matris 2'!J32/Inställningar!R$43*'Skalor o färg'!$B$8)","v":{"$error":"#DIV/0!"}},{"$f":"IF(Inställningar!S$46,IF('Matris 2'!K32<-(10^Inställningar!S$45),-(LOG10(ABS('Matris 2'!K32))-Inställningar!S$45)/(Inställningar!S$44-Inställningar!S$45)*'Skalor o färg'!$B$8,IF('Matris 2'!K32>(10^Inställningar!S$45),(LOG10('Matris 2'!K32)-Inställningar!S$45)/(Inställningar!S$44-Inställningar!S$45)*'Skalor o färg'!$B$8,0)),'Matris 2'!K32/Inställningar!S$43*'Skalor o färg'!$B$8)","v":{"$error":"#DIV/0!"}},{"$f":"IF(Inställningar!T$46,IF('Matris 2'!L32<-(10^Inställningar!T$45),-(LOG10(ABS('Matris 2'!L32))-Inställningar!T$45)/(Inställningar!T$44-Inställningar!T$45)*'Skalor o färg'!$B$8,IF('Matris 2'!L32>(10^Inställningar!T$45),(LOG10('Matris 2'!L32)-Inställningar!T$45)/(Inställningar!T$44-Inställningar!T$45)*'Skalor o färg'!$B$8,0)),'Matris 2'!L32/Inställningar!T$43*'Skalor o färg'!$B$8)","v":{"$error":"#DIV/0!"}},{"$f":"IF(Inställningar!U$46,IF('Matris 2'!M32<-(10^Inställningar!U$45),-(LOG10(ABS('Matris 2'!M32))-Inställningar!U$45)/(Inställningar!U$44-Inställningar!U$45)*'Skalor o färg'!$B$8,IF('Matris 2'!M32>(10^Inställningar!U$45),(LOG10('Matris 2'!M32)-Inställningar!U$45)/(Inställningar!U$44-Inställningar!U$45)*'Skalor o färg'!$B$8,0)),'Matris 2'!M32/Inställningar!U$43*'Skalor o färg'!$B$8)","v":{"$error":"#DIV/0!"}},{"$f":"IF(Inställningar!V$46,IF('Matris 2'!N32<-(10^Inställningar!V$45),-(LOG10(ABS('Matris 2'!N32))-Inställningar!V$45)/(Inställningar!V$44-Inställningar!V$45)*'Skalor o färg'!$B$8,IF('Matris 2'!N32>(10^Inställningar!V$45),(LOG10('Matris 2'!N32)-Inställningar!V$45)/(Inställningar!V$44-Inställningar!V$45)*'Skalor o färg'!$B$8,0)),'Matris 2'!N32/Inställningar!V$43*'Skalor o färg'!$B$8)","v":{"$error":"#DIV/0!"}},{"$f":"IF(Inställningar!W$46,IF('Matris 2'!O32<-(10^Inställningar!W$45),-(LOG10(ABS('Matris 2'!O32))-Inställningar!W$45)/(Inställningar!W$44-Inställningar!W$45)*'Skalor o färg'!$B$8,IF('Matris 2'!O32>(10^Inställningar!W$45),(LOG10('Matris 2'!O32)-Inställningar!W$45)/(Inställningar!W$44-Inställningar!W$45)*'Skalor o färg'!$B$8,0)),'Matris 2'!O32/Inställningar!W$43*'Skalor o färg'!$B$8)","v":{"$error":"#DIV/0!"}},{"$f":"IF(Inställningar!X$46,IF('Matris 2'!P32<-(10^Inställningar!X$45),-(LOG10(ABS('Matris 2'!P32))-Inställningar!X$45)/(Inställningar!X$44-Inställningar!X$45)*'Skalor o färg'!$B$8,IF('Matris 2'!P32>(10^Inställningar!X$45),(LOG10('Matris 2'!P32)-Inställningar!X$45)/(Inställningar!X$44-Inställningar!X$45)*'Skalor o färg'!$B$8,0)),'Matris 2'!P32/Inställningar!X$43*'Skalor o färg'!$B$8)","v":{"$error":"#DIV/0!"}},{"$f":"IF(Inställningar!Y$46,IF('Matris 2'!Q32<-(10^Inställningar!Y$45),-(LOG10(ABS('Matris 2'!Q32))-Inställningar!Y$45)/(Inställningar!Y$44-Inställningar!Y$45)*'Skalor o färg'!$B$8,IF('Matris 2'!Q32>(10^Inställningar!Y$45),(LOG10('Matris 2'!Q32)-Inställningar!Y$45)/(Inställningar!Y$44-Inställningar!Y$45)*'Skalor o färg'!$B$8,0)),'Matris 2'!Q32/Inställningar!Y$43*'Skalor o färg'!$B$8)","v":{"$error":"#DIV/0!"}},{"$f":"IF(Inställningar!Z$46,IF('Matris 2'!R32<-(10^Inställningar!Z$45),-(LOG10(ABS('Matris 2'!R32))-Inställningar!Z$45)/(Inställningar!Z$44-Inställningar!Z$45)*'Skalor o färg'!$B$8,IF('Matris 2'!R32>(10^Inställningar!Z$45),(LOG10('Matris 2'!R32)-Inställningar!Z$45)/(Inställningar!Z$44-Inställningar!Z$45)*'Skalor o färg'!$B$8,0)),'Matris 2'!R32/Inställningar!Z$43*'Skalor o färg'!$B$8)","v":{"$error":"#DIV/0!"}}]
[null,"Lång sikt",{"$f":"IF(Inställningar!K$46,IF('Matris 2'!C34<-(10^Inställningar!K$45),-(LOG10(ABS('Matris 2'!C34))-Inställningar!K$45)/(Inställningar!K$44-Inställningar!K$45)*'Skalor o färg'!$B$8,IF('Matris 2'!C34>(10^Inställningar!K$45),(LOG10('Matris 2'!C34)-Inställningar!K$45)/(Inställningar!K$44-Inställningar!K$45)*'Skalor o färg'!$B$8,0)),'Matris 2'!C34/Inställningar!K$43*'Skalor o färg'!$B$8)","v":{"$error":"#DIV/0!"}},{"$f":"IF(Inställningar!L$46,IF('Matris 2'!D34<-(10^Inställningar!L$45),-(LOG10(ABS('Matris 2'!D34))-Inställningar!L$45)/(Inställningar!L$44-Inställningar!L$45)*'Skalor o färg'!$B$8,IF('Matris 2'!D34>(10^Inställningar!L$45),(LOG10('Matris 2'!D34)-Inställningar!L$45)/(Inställningar!L$44-Inställningar!L$45)*'Skalor o färg'!$B$8,0)),'Matris 2'!D34/Inställningar!L$43*'Skalor o färg'!$B$8)","v":{"$error":"#DIV/0!"}},{"$f":"IF(Inställningar!M$46,IF('Matris 2'!E34<-(10^Inställningar!M$45),-(LOG10(ABS('Matris 2'!E34))-Inställningar!M$45)/(Inställningar!M$44-Inställningar!M$45)*'Skalor o färg'!$B$8,IF('Matris 2'!E34>(10^Inställningar!M$45),(LOG10('Matris 2'!E34)-Inställningar!M$45)/(Inställningar!M$44-Inställningar!M$45)*'Skalor o färg'!$B$8,0)),'Matris 2'!E34/Inställningar!M$43*'Skalor o färg'!$B$8)","v":{"$error":"#DIV/0!"}},{"$f":"IF(Inställningar!N$46,IF('Matris 2'!F34<-(10^Inställningar!N$45),-(LOG10(ABS('Matris 2'!F34))-Inställningar!N$45)/(Inställningar!N$44-Inställningar!N$45)*'Skalor o färg'!$B$8,IF('Matris 2'!F34>(10^Inställningar!N$45),(LOG10('Matris 2'!F34)-Inställningar!N$45)/(Inställningar!N$44-Inställningar!N$45)*'Skalor o färg'!$B$8,0)),'Matris 2'!F34/Inställningar!N$43*'Skalor o färg'!$B$8)","v":{"$error":"#DIV/0!"}},{"$f":"IF(Inställningar!O$46,IF('Matris 2'!G34<-(10^Inställningar!O$45),-(LOG10(ABS('Matris 2'!G34))-Inställningar!O$45)/(Inställningar!O$44-Inställningar!O$45)*'Skalor o färg'!$B$8,IF('Matris 2'!G34>(10^Inställningar!O$45),(LOG10('Matris 2'!G34)-Inställningar!O$45)/(Inställningar!O$44-Inställningar!O$45)*'Skalor o färg'!$B$8,0)),'Matris 2'!G34/Inställningar!O$43*'Skalor o färg'!$B$8)","v":{"$error":"#DIV/0!"}},{"$f":"IF(Inställningar!P$46,IF('Matris 2'!H34<-(10^Inställningar!P$45),-(LOG10(ABS('Matris 2'!H34))-Inställningar!P$45)/(Inställningar!P$44-Inställningar!P$45)*'Skalor o färg'!$B$8,IF('Matris 2'!H34>(10^Inställningar!P$45),(LOG10('Matris 2'!H34)-Inställningar!P$45)/(Inställningar!P$44-Inställningar!P$45)*'Skalor o färg'!$B$8,0)),'Matris 2'!H34/Inställningar!P$43*'Skalor o färg'!$B$8)","v":{"$error":"#DIV/0!"}},{"$f":"IF(Inställningar!Q$46,IF('Matris 2'!I34<-(10^Inställningar!Q$45),-(LOG10(ABS('Matris 2'!I34))-Inställningar!Q$45)/(Inställningar!Q$44-Inställningar!Q$45)*'Skalor o färg'!$B$8,IF('Matris 2'!I34>(10^Inställningar!Q$45),(LOG10('Matris 2'!I34)-Inställningar!Q$45)/(Inställningar!Q$44-Inställningar!Q$45)*'Skalor o färg'!$B$8,0)),'Matris 2'!I34/Inställningar!Q$43*'Skalor o färg'!$B$8)","v":{"$error":"#DIV/0!"}},{"$f":"IF(Inställningar!R$46,IF('Matris 2'!J34<-(10^Inställningar!R$45),-(LOG10(ABS('Matris 2'!J34))-Inställningar!R$45)/(Inställningar!R$44-Inställningar!R$45)*'Skalor o färg'!$B$8,IF('Matris 2'!J34>(10^Inställningar!R$45),(LOG10('Matris 2'!J34)-Inställningar!R$45)/(Inställningar!R$44-Inställningar!R$45)*'Skalor o färg'!$B$8,0)),'Matris 2'!J34/Inställningar!R$43*'Skalor o färg'!$B$8)","v":{"$error":"#DIV/0!"}},{"$f":"IF(Inställningar!S$46,IF('Matris 2'!K34<-(10^Inställningar!S$45),-(LOG10(ABS('Matris 2'!K34))-Inställningar!S$45)/(Inställningar!S$44-Inställningar!S$45)*'Skalor o färg'!$B$8,IF('Matris 2'!K34>(10^Inställningar!S$45),(LOG10('Matris 2'!K34)-Inställningar!S$45)/(Inställningar!S$44-Inställningar!S$45)*'Skalor o färg'!$B$8,0)),'Matris 2'!K34/Inställningar!S$43*'Skalor o färg'!$B$8)","v":{"$error":"#DIV/0!"}},{"$f":"IF(Inställningar!T$46,IF('Matris 2'!L34<-(10^Inställningar!T$45),-(LOG10(ABS('Matris 2'!L34))-Inställningar!T$45)/(Inställningar!T$44-Inställningar!T$45)*'Skalor o färg'!$B$8,IF('Matris 2'!L34>(10^Inställningar!T$45),(LOG10('Matris 2'!L34)-Inställningar!T$45)/(Inställningar!T$44-Inställningar!T$45)*'Skalor o färg'!$B$8,0)),'Matris 2'!L34/Inställningar!T$43*'Skalor o färg'!$B$8)","v":{"$error":"#DIV/0!"}},{"$f":"IF(Inställningar!U$46,IF('Matris 2'!M34<-(10^Inställningar!U$45),-(LOG10(ABS('Matris 2'!M34))-Inställningar!U$45)/(Inställningar!U$44-Inställningar!U$45)*'Skalor o färg'!$B$8,IF('Matris 2'!M34>(10^Inställningar!U$45),(LOG10('Matris 2'!M34)-Inställningar!U$45)/(Inställningar!U$44-Inställningar!U$45)*'Skalor o färg'!$B$8,0)),'Matris 2'!M34/Inställningar!U$43*'Skalor o färg'!$B$8)","v":{"$error":"#DIV/0!"}},{"$f":"IF(Inställningar!V$46,IF('Matris 2'!N34<-(10^Inställningar!V$45),-(LOG10(ABS('Matris 2'!N34))-Inställningar!V$45)/(Inställningar!V$44-Inställningar!V$45)*'Skalor o färg'!$B$8,IF('Matris 2'!N34>(10^Inställningar!V$45),(LOG10('Matris 2'!N34)-Inställningar!V$45)/(Inställningar!V$44-Inställningar!V$45)*'Skalor o färg'!$B$8,0)),'Matris 2'!N34/Inställningar!V$43*'Skalor o färg'!$B$8)","v":{"$error":"#DIV/0!"}},{"$f":"IF(Inställningar!W$46,IF('Matris 2'!O34<-(10^Inställningar!W$45),-(LOG10(ABS('Matris 2'!O34))-Inställningar!W$45)/(Inställningar!W$44-Inställningar!W$45)*'Skalor o färg'!$B$8,IF('Matris 2'!O34>(10^Inställningar!W$45),(LOG10('Matris 2'!O34)-Inställningar!W$45)/(Inställningar!W$44-Inställningar!W$45)*'Skalor o färg'!$B$8,0)),'Matris 2'!O34/Inställningar!W$43*'Skalor o färg'!$B$8)","v":{"$error":"#DIV/0!"}},{"$f":"IF(Inställningar!X$46,IF('Matris 2'!P34<-(10^Inställningar!X$45),-(LOG10(ABS('Matris 2'!P34))-Inställningar!X$45)/(Inställningar!X$44-Inställningar!X$45)*'Skalor o färg'!$B$8,IF('Matris 2'!P34>(10^Inställningar!X$45),(LOG10('Matris 2'!P34)-Inställningar!X$45)/(Inställningar!X$44-Inställningar!X$45)*'Skalor o färg'!$B$8,0)),'Matris 2'!P34/Inställningar!X$43*'Skalor o färg'!$B$8)","v":{"$error":"#DIV/0!"}},{"$f":"IF(Inställningar!Y$46,IF('Matris 2'!Q34<-(10^Inställningar!Y$45),-(LOG10(ABS('Matris 2'!Q34))-Inställningar!Y$45)/(Inställningar!Y$44-Inställningar!Y$45)*'Skalor o färg'!$B$8,IF('Matris 2'!Q34>(10^Inställningar!Y$45),(LOG10('Matris 2'!Q34)-Inställningar!Y$45)/(Inställningar!Y$44-Inställningar!Y$45)*'Skalor o färg'!$B$8,0)),'Matris 2'!Q34/Inställningar!Y$43*'Skalor o färg'!$B$8)","v":{"$error":"#DIV/0!"}},{"$f":"IF(Inställningar!Z$46,IF('Matris 2'!R34<-(10^Inställningar!Z$45),-(LOG10(ABS('Matris 2'!R34))-Inställningar!Z$45)/(Inställningar!Z$44-Inställningar!Z$45)*'Skalor o färg'!$B$8,IF('Matris 2'!R34>(10^Inställningar!Z$45),(LOG10('Matris 2'!R34)-Inställningar!Z$45)/(Inställningar!Z$44-Inställningar!Z$45)*'Skalor o färg'!$B$8,0)),'Matris 2'!R34/Inställningar!Z$43*'Skalor o färg'!$B$8)","v":{"$error":"#DIV/0!"}}]

{"sheet":"Matris 3","index":5,"n_rows":33,"n_cols":24,"rows_kept":33,"cut":false,"hidden":false,"merged":[[5,0,5,3],[0,0,0,1],[6,0,6,1],[6,18,7,18],[0,2,0,16],[3,0,3,19],[33,0,43,18],[30,0,30,1],[19,0,20,0],[30,2,30,18],[13,0,14,0],[15,0,16,0],[8,0,8,1],[19,19,20,19],[6,19,7,19],[9,19,10,19],[11,19,12,19],[13,19,14,19],[15,19,16,19],[17,19,18,19],[9,0,10,0],[17,0,18,0],[11,0,12,0]]}
["Objekt:",null,{"$f":"'Matris 1'!B1","v":"XYZ-köping"},null,null,null,null,null,null,null,null,null,null,null,null,null,null,null,null,{"$f":"Inställningar!D1","v":"SAMLA version 2.5"}]
[]
["Övergripande åtgärdsmål:"]
[{"$f":"IF('Matris 1'!A4=\"\",\"\",'Matris 1'!A4)","v":""}]
[]
["Matris 3 - Oviktad bedömning",null,null,null,null,{"$f":"IF(SUM(COUNTIF(C10:R21,\"> \"&TEXT('Skalor o färg'!B8,0)),COUNTIF(C10:R21,\"< \"&TEXT(0-'Skalor o färg'!B8,0)))>0,\"VARNING! Du har angett ett eller flera tal utanför vald poängskala. Talen används ändå i beräkningarna men färgmarkeringar och grafer kan bli missvisande.\",IF(SUM(COUNTIF(C9:R9,\"> \"&TEXT('Skalor o färg'!B18,0)),COUNTIF(C9:R9,\"< 0\"))>0,\"VARNING! Du har angett ett eller flera tal utanför vald viktningsskala. Vikterna används ändå i beräkningarna men färgmarkeringar och grafer kan bli missvisande.\",\"\"))","v":""},null,null,null,null,null,null,null,null,null,null,null,null,null,"Skriv ut i A3 format. Liggande."]
["Åtgärd",null,{"$f":"Inställningar!K47","v":"Ekologisk"},{"$f":"Inställningar!L47","v":"Ekologisk"},{"$f":"Inställningar!M47","v":"Ekologisk"},{"$f":"Inställningar!N47","v":"Ekologisk"},{"$f":"Inställningar!O47","v":"Ekologisk"},{"$f":"Inställningar!P47","v":"Ekologisk"},{"$f":"Inställningar!Q47","v":"Social"},{"$f":"Inställningar!R47","v":"Social"},{"$f":"Inställningar!S47","v":"Social"},{"$f":"Inställningar!T47","v":"Social"},{"$f":"Inställningar!U47","v":"Social"},{"$f":"Inställningar!V47","v":"Ekonomisk"},{"$f":"Inställningar!W47","v":"Ekonomisk"},{"$f":"Inställningar!X47","v":"Ekonomisk"},{"$f":"Inställningar!Y47","v":"Ekonomisk"},{"$f":"Inställningar!Z47","v":""},"Delsumma","Summa"]
[null,null,{"$f":"IF(ISBLANK(Inställningar!C24),\"\",Inställningar!C24)","v":"1. Utsläpp till luft"},{"$f":"IF(ISBLANK(Inställningar!C25),\"\",Inställningar!C25)","v":"2. Jord och mark"},{"$f":"IF(ISBLANK(Inställningar!C26),\"\",Inställningar!C26)","v":"3. Grundvatten"},{"$f":"IF(ISBLANK(Inställningar!C27),\"\",Inställningar!C27)","v":"4. Ytvatten och sediment"},{"$f":"IF(ISBLANK(Inställningar!C28),\"\",Inställningar!C28)","v":"5. Ekologi"},{"$f":"IF(ISBLANK(Inställningar!C29),\"\",Inställningar!C29)","v":"6. Naturresurser och avfall"},{"$f":"IF(ISBLANK(Inställningar!C30),\"\",Inställningar!C30)","v":"7. Hälsa och säkerhet"},{"$f":"IF(ISBLANK(Inställningar!C31),\"\",Inställningar!C31)","v":"8. Etik och jämlikhet"},{"$f":"IF(ISBLANK(Inställningar!C32),\"\",Inställningar!C32)","v":"9. Närmiljö"},{"$f":"IF(ISBLANK(Inställningar!C33),\"\",Inställningar!C33)","v":"10. Lokalsamhälle"},{"$f":"IF(ISBLANK(Inställningar!C34),\"\",Inställningar!C34)","v":"11. Osäkerhet och evidens"},{"$f":"IF(ISBLANK(Inställningar!C35),\"\",Inställningar!C35)","v":"12. Direkta kostnader och nyttor"},{"$f":"IF(ISBLANK(Inställningar!C36),\"\",Inställningar!C36)","v":"13. Indirekta kostnader och nyttor"},{"$f":"IF(ISBLANK(Inställningar!C37),\"\",Inställningar!C37)","v":"14. Inducerade kostnader och nyttor"},{"$f":"IF(ISBLANK(Inställningar!C38),\"\",Inställningar!C38)","v":"15. Beständighet och flexibilitet"},{"$f":"IF(ISBLANK(Inställningar!C39),\"\",Inställningar!C39)","v":""}]
["Vikt",null,{"$f":"IF((C8=0),\"\",'Matris 2'!C9)","v":1},{"$f":"IF((D8=0),\"\",'Matris 2'!D9)","v":1},{"$f":"IF((E8=0),\"\",'Matris 2'!E9)","v":1},{"$f":"IF((F8=0),\"\",'Matris 2'!F9)","v":1},{"$f":"IF((G8=0),\"\",'Matris 2'!G9)","v":1},{"$f":"IF((H8=0),\"\",'Matris 2'!H9)","v":1},{"$f":"IF((I8=0),\"\",'Matris 2'!I9)","v":1},{"$f":"IF((J8=0),\"\",'Matris 2'!J9)","v":1},{"$f":"IF((K8=0),\"\",'Matris 2'!K9)","v":1},{"$f":"IF((L8=0),\"\",'Matris 2'!L9)","v":1},{"$f":"IF((M8=0),\"\",'Matris 2'!M9)","v":1},{"$f":"IF((N8=0),\"\",'Matris 2'!N9)","v":1},{"$f":"IF((O8=0),\"\",'Matris 2'!O9)","v":1},{"$f":"IF((P8=0),\"\",'Matris 2'!P9)","v":1},{"$f":"IF((Q8=0),\"\",'Matris 2'!Q9)","v":1},{"$f":"IF((R8=0),\"\",'Matris 2'!R9)","v":0}]
[{"$f":"IF('Matris 1'!A8=\"\",\"\",'Matris 1'!A8)","v":"Nollalternativ: ingen åtgärd"},"Kort sikt",{"$f":"IF(Inställningar!K$42=1,'Matris 2'!C12+0,IF(Inställningar!K$42=2,Kvantitativ!C9+0,\"\"))","v":0},{"$f":"IF(Inställningar!L$42=1,'Matris 2'!D12+0,IF(Inställningar!L$42=2,Kvantitativ!D9+0,\"\"))","v":0},{"$f":"IF(Inställningar!M$42=1,'Matris 2'!E12+0,IF(Inställningar!M$42=2,Kvantitativ!E9+0,\"\"))","v":0},{"$f":"IF(Inställningar!N$42=1,'Matris 2'!F12+0,IF(Inställningar!N$42=2,Kvantitativ!F9+0,\"\"))","v":0},{"$f":"IF(Inställningar!O$42=1,'Matris 2'!G12+0,IF(Inställningar!O$42=2,Kvantitativ!G9+0,\"\"))","v":0},{"$f":"IF(Inställningar!P$42=1,'Matris 2'!H12+0,IF(Inställningar!P$42=2,Kvantitativ!H9+0,\"\"))","v":0},{"$f":"IF(Inställningar!Q$42=1,'Matris 2'!I12+0,IF(Inställningar!Q$42=2,Kvantitativ!I9+0,\"\"))","v":0},{"$f":"IF(Inställningar!R$42=1,'Matris 2'!J12+0,IF(Inställningar!R$42=2,Kvantitativ!J9+0,\"\"))","v":0},{"$f":"IF(Inställningar!S$42=1,'Matris 2'!K12+0,IF(Inställningar!S$42=2,Kvantitativ!K9+0,\"\"))","v":0},{"$f":"IF(Inställningar!T$42=1,'Matris 2'!L12+0,IF(Inställningar!T$42=2,Kvantitativ!L9+0,\"\"))","v":0},{"$f":"IF(Inställningar!U$42=1,'Matris 2'!M12+0,IF(Inställningar!U$42=2,Kvantitativ!M9+0,\"\"))","v":0},{"$f":"IF(Inställningar!V$42=1,'Matris 2'!N12+0,IF(Inställningar!V$42=2,Kvantitativ!N9+0,\"\"))","v":0},{"$f":"IF(Inställningar!W$42=1,'Matris 2'!O12+0,IF(Inställningar!W$42=2,Kvantitativ!O9+0,\"\"))","v":0},{"$f":"IF(Inställningar!X$42=1,'Matris 2'!P12+0,IF(Inställningar!X$42=2,Kvantitativ!P9+0,\"\"))","v":0},{"$f":"IF(Inställningar!Y$42=1,'Matris 2'!Q12+0,IF(Inställningar!Y$42=2,Kvantitativ!Q9+0,\"\"))","v":0},{"$f":"IF(Inställningar!Z$42=1,'Matris 2'!R12+0,IF(Inställningar!Z$42=2,Kvantitativ!R9+0,\"\"))","v":""},{"$f":"IF(AND(ISBLANK(C10),ISBLANK(D10),ISBLANK(E10),ISBLANK(F10),ISBLANK(G10),ISBLANK(H10),ISBLANK(I10),ISBLANK(J10),ISBLANK(K10),ISBLANK(L10),ISBLANK(M10),ISBLANK(N10),ISBLANK(O10),ISBLANK(P10),ISBLANK(Q10),ISBLANK(R10)),\"\",SUM(C10:R10))","v":0},{"$f":"IF(AND(ISBLANK(C10),ISBLANK(D10),ISBLANK(E10),ISBLANK(F10),ISBLANK(G10),ISBLANK(H10),ISBLANK(I10),ISBLANK(J10),ISBLANK(K10),ISBLANK(L10),ISBLANK(M10),ISBLANK(N10),ISBLANK(O10),ISBLANK(P10),ISBLANK(Q10),ISBLANK(R10),ISBLANK(C11),ISBLANK(D11),ISBLANK(E11),ISBLANK(F11),ISBLANK(G11),ISBLANK(H11),ISBLANK(I11),ISBLANK(J11),ISBLANK(K11),ISBLANK(L11),ISBLANK(M11),ISBLANK(N11),ISBLANK(O11),ISBLANK(P11),ISBLANK(Q11),ISBLANK(R11)),\"\",SUM(S10:S11))","v":0},null,"Ämne","Mottaget","Storlek"]
[null,"Lång sikt",{"$f":"IF(Inställningar!K$42=1,'Matris 2'!C14+0,IF(Inställningar!K$42=2,Kvantitativ!C10+0,\"\"))","v":0},{"$f":"IF(Inställningar!L$42=1,'Matris 2'!D14+0,IF(Inställningar!L$42=2,Kvantitativ!D10+0,\"\"))","v":0},{"$f":"IF(Inställningar!M$42=1,'Matris 2'!E14+0,IF(Inställningar!M$42=2,Kvantitativ!E10+0,\"\"))","v":0},{"$f":"IF(Inställningar!N$42=1,'Matris 2'!F14+0,IF(Inställningar!N$42=2,Kvantitativ!F10+0,\"\"))","v":0},{"$f":"IF(Inställningar!O$42=1,'Matris 2'!G14+0,IF(Inställningar!O$42=2,Kvantitativ!G10+0,\"\"))","v":0},{"$f":"IF(Inställningar!P$42=1,'Matris 2'!H14+0,IF(Inställningar!P$42=2,Kvantitativ!H10+0,\"\"))","v":0},{"$f":"IF(Inställningar!Q$42=1,'Matris 2'!I14+0,IF(Inställningar!Q$42=2,Kvantitativ!I10+0,\"\"))","v":0},{"$f":"IF(Inställningar!R$42=1,'Matris 2'!J14+0,IF(Inställningar!R$42=2,Kvantitativ!J10+0,\"\"))","v":0},{"$f":"IF(Inställningar!S$42=1,'Matris 2'!K14+0,IF(Inställningar!S$42=2,Kvantitativ!K10+0,\"\"))","v":0},{"$f":"IF(Inställningar!T$42=1,'Matris 2'!L14+0,IF(Inställningar!T$42=2,Kvantitativ!L10+0,\"\"))","v":0},{"$f":"IF(Inställningar!U$42=1,'Matris 2'!M14+0,IF(Inställningar!U$42=2,Kvantitativ!M10+0,\"\"))","v":0},{"$f":"IF(Inställningar!V$42=1,'Matris 2'!N14+0,IF(Inställningar!V$42=2,Kvantitativ!N10+0,\"\"))","v":0},{"$f":"IF(Inställningar!W$42=1,'Matris 2'!O14+0,IF(Inställningar!W$42=2,Kvantitativ!O10+0,\"\"))","v":0},{"$f":"IF(Inställningar!X$42=1,'Matris 2'!P14+0,IF(Inställningar!X$42=2,Kvantitativ!P10+0,\"\"))","v":0},{"$f":"IF(Inställningar!Y$42=1,'Matris 2'!Q14+0,IF(Inställningar!Y$42=2,Kvantitativ!Q10+0,\"\"))","v":0},{"$f":"IF(Inställningar!Z$42=1,'Matris 2'!R14+0,IF(Inställningar!Z$42=2,Kvantitativ!R10+0,\"\"))","v":""},0,null,null,"SV: Programvaror","09:46:00","20 KB"]
[{"$f":"IF('Matris 1'!A9=\"\",\"\",'Matris 1'!A9)","v":"Åtgärdsförslag 1"},"Kort sikt",{"$f":"IF(Inställningar!K$42=1,'Matris 2'!C16+0,IF(Inställningar!K$42=2,Kvantitativ!C11+0,\"\"))","v":0},{"$f":"IF(Inställningar!L$42=1,'Matris 2'!D16+0,IF(Inställningar!L$42=2,Kvantitativ!D11+0,\"\"))","v":0},{"$f":"IF(Inställningar!M$42=1,'Matris 2'!E16+0,IF(Inställningar!M$42=2,Kvantitativ!E11+0,\"\"))","v":0},{"$f":"IF(Inställningar!N$42=1,'Matris 2'!F16+0,IF(Inställningar!N$42=2,Kvantitativ!F11+0,\"\"))","v":0},{"$f":"IF(Inställningar!O$42=1,'Matris 2'!G16+0,IF(Inställningar!O$42=2,Kvantitativ!G11+0,\"\"))","v":0},{"$f":"IF(Inställningar!P$42=1,'Matris 2'!H16+0,IF(Inställningar!P$42=2,Kvantitativ!H11+0,\"\"))","v":0},{"$f":"IF(Inställningar!Q$42=1,'Matris 2'!I16+0,IF(Inställningar!Q$42=2,Kvantitativ!I11+0,\"\"))","v":0},{"$f":"IF(Inställningar!R$42=1,'Matris 2'!J16+0,IF(Inställningar!R$42=2,Kvantitativ!J11+0,\"\"))","v":0},{"$f":"IF(Inställningar!S$42=1,'Matris 2'!K16+0,IF(Inställningar!S$42=2,Kvantitativ!K11+0,\"\"))","v":0},{"$f":"IF(Inställningar!T$42=1,'Matris 2'!L16+0,IF(Inställningar!T$42=2,Kvantitativ!L11+0,\"\"))","v":0},{"$f":"IF(Inställningar!U$42=1,'Matris 2'!M16+0,IF(Inställningar!U$42=2,Kvantitativ!M11+0,\"\"))","v":0},{"$f":"IF(Inställningar!V$42=1,'Matris 2'!N16+0,IF(Inställningar!V$42=2,Kvantitativ!N11+0,\"\"))","v":0},{"$f":"IF(Inställningar!W$42=1,'Matris 2'!O16+0,IF(Inställningar!W$42=2,Kvantitativ!O11+0,\"\"))","v":0},{"$f":"IF(Inställningar!X$42=1,'Matris 2'!P16+0,IF(Inställningar!X$42=2,Kvantitativ!P11+0,\"\"))","v":0},{"$f":"IF(Inställningar!Y$42=1,'Matris 2'!Q16+0,IF(Inställningar!Y$42=2,Kvantitativ!Q11+0,\"\"))","v":0},{"$f":"IF(Inställningar!Z$42=1,'Matris 2'!R16+0,IF(Inställningar!Z$42=2,Kvantitativ!R11+0,\"\"))","v":""},0,{"$f":"IF(AND(ISBLANK(C12),ISBLANK(D12),ISBLANK(E12),ISBLANK(F12),ISBLANK(G12),ISBLANK(H12),ISBLANK(I12),ISBLANK(J12),ISBLANK(K12),ISBLANK(L12),ISBLANK(M12),ISBLANK(N12),ISBLANK(O12),ISBLANK(P12),ISBLANK(Q12),ISBLANK(R12),ISBLANK(C13),ISBLANK(D13),ISBLANK(E13),ISBLANK(F13),ISBLANK(G13),ISBLANK(H13),ISBLANK(I13),ISBLANK(J13),ISBLANK(K13),ISBLANK(L13),ISBLANK(M13),ISBLANK(N13),ISBLANK(O13),ISBLANK(P13),ISBLANK(Q13),ISBLANK(R13)),\"\",SUM(S12:S13))","v":0}]
[null,"Lång sikt",{"$f":"IF(Inställningar!K$42=1,'Matris 2'!C18+0,IF(Inställningar!K$42=2,Kvantitativ!C12+0,\"\"))","v":0},{"$f":"IF(Inställningar!L$42=1,'Matris 2'!D18+0,IF(Inställningar!L$42=2,Kvantitativ!D12+0,\"\"))","v":0},{"$f":"IF(Inställningar!M$42=1,'Matris 2'!E18+0,IF(Inställningar!M$42=2,Kvantitativ!E12+0,\"\"))","v":0},{"$f":"IF(Inställningar!N$42=1,'Matris 2'!F18+0,IF(Inställningar!N$42=2,Kvantitativ!F12+0,\"\"))","v":0},{"$f":"IF(Inställningar!O$42=1,'Matris 2'!G18+0,IF(Inställningar!O$42=2,Kvantitativ!G12+0,\"\"))","v":0},{"$f":"IF(Inställningar!P$42=1,'Matris 2'!H18+0,IF(Inställningar!P$42=2,Kvantitativ!H12+0,\"\"))","v":0},{"$f":"IF(Inställningar!Q$42=1,'Matris 2'!I18+0,IF(Inställningar!Q$42=2,Kvantitativ!I12+0,\"\"))","v":0},{"$f":"IF(Inställningar!R$42=1,'Matris 2'!J18+0,IF(Inställningar!R$42=2,Kvantitativ!J12+0,\"\"))","v":0},{"$f":"IF(Inställningar!S$42=1,'Matris 2'!K18+0,IF(Inställningar!S$42=2,Kvantitativ!K12+0,\"\"))","v":0},{"$f":"IF(Inställningar!T$42=1,'Matris 2'!L18+0,IF(Inställningar!T$42=2,Kvantitativ!L12+0,\"\"))","v":0},{"$f":"IF(Inställningar!U$42=1,'Matris 2'!M18+0,IF(Inställningar!U$42=2,Kvantitativ!M12+0,\"\"))","v":0},{"$f":"IF(Inställningar!V$42=1,'Matris 2'!N18+0,IF(Inställningar!V$42=2,Kvantitativ!N12+0,\"\"))","v":0},{"$f":"IF(Inställningar!W$42=1,'Matris 2'!O18+0,IF(Inställningar!W$42=2,Kvantitativ!O12+0,\"\"))","v":0},{"$f":"IF(Inställningar!X$42=1,'Matris 2'!P18+0,IF(Inställningar!X$42=2,Kvantitativ!P12+0,\"\"))","v":0},{"$f":"IF(Inställningar!Y$42=1,'Matris 2'!Q18+0,IF(Inställningar!Y$42=2,Kvantitativ!Q12+0,\"\"))","v":0},{"$f":"IF(Inställningar!Z$42=1,'Matris 2'!R18+0,IF(Inställningar!Z$42=2,Kvantitativ!R12+0,\"\"))","v":""},0]
[{"$f":"IF('Matris 1'!A10=\"\",\"\",'Matris 1'!A10)","v":"Åtgärdsförslag 2"},"Kort sikt",{"$f":"IF(Inställningar!K$42=1,'Matris 2'!C20+0,IF(Inställningar!K$42=2,Kvantitativ!C13+0,\"\"))","v":0},{"$f":"IF(Inställningar!L$42=1,'Matris 2'!D20+0,IF(Inställningar!L$42=2,Kvantitativ!D13+0,\"\"))","v":0},{"$f":"IF(Inställningar!M$42=1,'Matris 2'!E20+0,IF(Inställningar!M$42=2,Kvantitativ!E13+0,\"\"))","v":0},{"$f":"IF(Inställningar!N$42=1,'Matris 2'!F20+0,IF(Inställningar!N$42=2,Kvantitativ!F13+0,\"\"))","v":0},{"$f":"IF(Inställningar!O$42=1,'Matris 2'!G20+0,IF(Inställningar!O$42=2,Kvantitativ!G13+0,\"\"))","v":0},{"$f":"IF(Inställningar!P$42=1,'Matris 2'!H20+0,IF(Inställningar!P$42=2,Kvantitativ!H13+0,\"\"))","v":0},{"$f":"IF(Inställningar!Q$42=1,'Matris 2'!I20+0,IF(Inställningar!Q$42=2,Kvantitativ!I13+0,\"\"))","v":0},{"$f":"IF(Inställningar!R$42=1,'Matris 2'!J20+0,IF(Inställningar!R$42=2,Kvantitativ!J13+0,\"\"))","v":0},{"$f":"IF(Inställningar!S$42=1,'Matris 2'!K20+0,IF(Inställningar!S$42=2,Kvantitativ!K13+0,\"\"))","v":0},{"$f":"IF(Inställningar!T$42=1,'Matris 2'!L20+0,IF(Inställningar!T$42=2,Kvantitativ!L13+0,\"\"))","v":0},{"$f":"IF(Inställningar!U$42=1,'Matris 2'!M20+0,IF(Inställningar!U$42=2,Kvantitativ!M13+0,\"\"))","v":0},{"$f":"IF(Inställningar!V$42=1,'Matris 2'!N20+0,IF(Inställningar!V$42=2,Kvantitativ!N13+0,\"\"))","v":0},{"$f":"IF(Inställningar!W$42=1,'Matris 2'!O20+0,IF(Inställningar!W$42=2,Kvantitativ!O13+0,\"\"))","v":0},{"$f":"IF(Inställningar!X$42=1,'Matris 2'!P20+0,IF(Inställningar!X$42=2,Kvantitativ!P13+0,\"\"))","v":0},{"$f":"IF(Inställningar!Y$42=1,'Matris 2'!Q20+0,IF(Inställningar!Y$42=2,Kvantitativ!Q13+0,\"\"))","v":0},{"$f":"IF(Inställningar!Z$42=1,'Matris 2'!R20+0,IF(Inställningar!Z$42=2,Kvantitativ!R13+0,\"\"))","v":""},0,{"$f":"IF(AND(ISBLANK(C14),ISBLANK(D14),ISBLANK(E14),ISBLANK(F14),ISBLANK(G14),ISBLANK(H14),ISBLANK(I14),ISBLANK(J14),ISBLANK(K14),ISBLANK(L14),ISBLANK(M14),ISBLANK(N14),ISBLANK(O14),ISBLANK(P14),ISBLANK(Q14),ISBLANK(R14),ISBLANK(C15),ISBLANK(D15),ISBLANK(E15),ISBLANK(F15),ISBLANK(G15),ISBLANK(H15),ISBLANK(I15),ISBLANK(J15),ISBLANK(K15),ISBLANK(L15),ISBLANK(M15),ISBLANK(N15),ISBLANK(O15),ISBLANK(P15),ISBLANK(Q15),ISBLANK(R15)),\"\",SUM(S14:S15))","v":0}]
[null,"Lång sikt",{"$f":"IF(Inställningar!K$42=1,'Matris 2'!C22+0,IF(Inställningar!K$42=2,Kvantitativ!C14+0,\"\"))","v":0},{"$f":"IF(Inställningar!L$42=1,'Matris 2'!D22+0,IF(Inställningar!L$42=2,Kvantitativ!D14+0,\"\"))","v":0},{"$f":"IF(Inställningar!M$42=1,'Matris 2'!E22+0,IF(Inställningar!M$42=2,Kvantitativ!E14+0,\"\"))","v":0},{"$f":"IF(Inställningar!N$42=1,'Matris 2'!F22+0,IF(Inställningar!N$42=2,Kvantitativ!F14+0,\"\"))","v":0},{"$f":"IF(Inställningar!O$42=1,'Matris 2'!G22+0,IF(Inställningar!O$42=2,Kvantitativ!G14+0,\"\"))","v":0},{"$f":"IF(Inställningar!P$42=1,'Matris 2'!H22+0,IF(Inställningar!P$42=2,Kvantitativ!H14+0,\"\"))","v":0},{"$f":"IF(Inställningar!Q$42=1,'Matris 2'!I22+0,IF(Inställningar!Q$42=2,Kvantitativ!I14+0,\"\"))","v":0},{"$f":"IF(Inställningar!R$42=1,'Matris 2'!J22+0,IF(Inställningar!R$42=2,Kvantitativ!J14+0,\"\"))","v":0},{"$f":"IF(Inställningar!S$42=1,'Matris 2'!K22+0,IF(Inställningar!S$42=2,Kvantitativ!K14+0,\"\"))","v":0},{"$f":"IF(Inställningar!T$42=1,'Matris 2'!L22+0,IF(Inställningar!T$42=2,Kvantitativ!L14+0,\"\"))","v":0},{"$f":"IF(Inställningar!U$42=1,'Matris 2'!M22+0,IF(Inställningar!U$42=2,Kvantitativ!M14+0,\"\"))","v":0},{"$f":"IF(Inställningar!V$42=1,'Matris 2'!N22+0,IF(Inställningar!V$42=2,Kvantitativ!N14+0,\"\"))","v":0},{"$f":"IF(Inställningar!W$42=1,'Matris 2'!O22+0,IF(Inställningar!W$42=2,Kvantitativ!O14+0,\"\"))","v":0},{"$f":"IF(Inställningar!X$42=1,'Matris 2'!P22+0,IF(Inställningar!X$42=2,Kvantitativ!P14+0,\"\"))","v":0},{"$f":"IF(Inställningar!Y$42=1,'Matris 2'!Q22+0,IF(Inställningar!Y$42=2,Kvantitativ!Q14+0,\"\"))","v":0},{"$f":"IF(Inställningar!Z$42=1,'Matris 2'!R22+0,IF(Inställningar!Z$42=2,Kvantitativ!R14+0,\"\"))","v":""},0]
[{"$f":"IF('Matris 1'!A11=\"\",\"\",'Matris 1'!A11)","v":"Åtgärdsförslag 3"},"Kort sikt",{"$f":"IF(Inställningar!K$42=1,'Matris 2'!C24+0,IF(Inställningar!K$42=2,Kvantitativ!C15+0,\"\"))","v":0},{"$f":"IF(Inställningar!L$42=1,'Matris 2'!D24+0,IF(Inställningar!L$42=2,Kvantitativ!D15+0,\"\"))","v":0},{"$f":"IF(Inställningar!M$42=1,'Matris 2'!E24+0,IF(Inställningar!M$42=2,Kvantitativ!E15+0,\"\"))","v":0},{"$f":"IF(Inställningar!N$42=1,'Matris 2'!F24+0,IF(Inställningar!N$42=2,Kvantitativ!F15+0,\"\"))","v":0},{"$f":"IF(Inställningar!O$42=1,'Matris 2'!G24+0,IF(Inställningar!O$42=2,Kvantitativ!G15+0,\"\"))","v":0},{"$f":"IF(Inställningar!P$42=1,'Matris 2'!H24+0,IF(Inställningar!P$42=2,Kvantitativ!H15+0,\"\"))","v":0},{"$f":"IF(Inställningar!Q$42=1,'Matris 2'!I24+0,IF(Inställningar!Q$42=2,Kvantitativ!I15+0,\"\"))","v":0},{"$f":"IF(Inställningar!R$42=1,'Matris 2'!J24+0,IF(Inställningar!R$42=2,Kvantitativ!J15+0,\"\"))","v":0},{"$f":"IF(Inställningar!S$42=1,'Matris 2'!K24+0,IF(Inställningar!S$42=2,Kvantitativ!K15+0,\"\"))","v":0},{"$f":"IF(Inställningar!T$42=1,'Matris 2'!L24+0,IF(Inställningar!T$42=2,Kvantitativ!L15+0,\"\"))","v":0},{"$f":"IF(Inställningar!U$42=1,'Matris 2'!M24+0,IF(Inställningar!U$42=2,Kvantitativ!M15+0,\"\"))","v":0},{"$f":"IF(Inställningar!V$42=1,'Matris 2'!N24+0,IF(Inställningar!V$42=2,Kvantitativ!N15+0,\"\"))","v":0},{"$f":"IF(Inställningar!W$42=1,'Matris 2'!O24+0,IF(Inställningar!W$42=2,Kvantitativ!O15+0,\"\"))","v":0},{"$f":"IF(Inställningar!X$42=1,'Matris 2'!P24+0,IF(Inställningar!X$42=2,Kvantitativ!P15+0,\"\"))","v":0},{"$f":"IF(Inställningar!Y$42=1,'Matris 2'!Q24+0,IF(Inställningar!Y$42=2,Kvantitativ!Q15+0,\"\"))","v":0},{"$f":"IF(Inställningar!Z$42=1,'Matris 2'!R24+0,IF(Inställningar!Z$42=2,Kvantitativ!R15+0,\"\"))","v":""},0,{"$f":"IF(AND(ISBLANK(C16),ISBLANK(D16),ISBLANK(E16),ISBLANK(F16),ISBLANK(G16),ISBLANK(H16),ISBLANK(I16),ISBLANK(J16),ISBLANK(K16),ISBLANK(L16),ISBLANK(M16),ISBLANK(N16),ISBLANK(O16),ISBLANK(P16),ISBLANK(Q16),ISBLANK(R16),ISBLANK(C17),ISBLANK(D17),ISBLANK(E17),ISBLANK(F17),ISBLANK(G17),ISBLANK(H17),ISBLANK(I17),ISBLANK(J17),ISBLANK(K17),ISBLANK(L17),ISBLANK(M17),ISBLANK(N17),ISBLANK(O17),ISBLANK(P17),ISBLANK(Q17),ISBLANK(R17)),\"\",SUM(S16:S17))","v":0}]
[null,"Lång sikt",{"$f":"IF(Inställningar!K$42=1,'Matris 2'!C26+0,IF(Inställningar!K$42=2,Kvantitativ!C16+0,\"\"))","v":0},{"$f":"IF(Inställningar!L$42=1,'Matris 2'!D26+0,IF(Inställningar!L$42=2,Kvantitativ!D16+0,\"\"))","v":0},{"$f":"IF(Inställningar!M$42=1,'Matris 2'!E26+0,IF(Inställningar!M$42=2,Kvantitativ!E16+0,\"\"))","v":0},{"$f":"IF(Inställningar!N$42=1,'Matris 2'!F26+0,IF(Inställningar!N$42=2,Kvantitativ!F16+0,\"\"))","v":0},{"$f":"IF(Inställningar!O$42=1,'Matris 2'!G26+0,IF(Inställningar!O$42=2,Kvantitativ!G16+0,\"\"))","v":0},{"$f":"IF(Inställningar!P$42=1,'Matris 2'!H26+0,IF(Inställningar!P$42=2,Kvantitativ!H16+0,\"\"))","v":0},{"$f":"IF(Inställningar!Q$42=1,'Matris 2'!I26+0,IF(Inställningar!Q$42=2,Kvantitativ!I16+0,\"\"))","v":0},{"$f":"IF(Inställningar!R$42=1,'Matris 2'!J26+0,IF(Inställningar!R$42=2,Kvantitativ!J16+0,\"\"))","v":0},{"$f":"IF(Inställningar!S$42=1,'Matris 2'!K26+0,IF(Inställningar!S$42=2,Kvantitativ!K16+0,\"\"))","v":0},{"$f":"IF(Inställningar!T$42=1,'Matris 2'!L26+0,IF(Inställningar!T$42=2,Kvantitativ!L16+0,\"\"))","v":0},{"$f":"IF(Inställningar!U$42=1,'Matris 2'!M26+0,IF(Inställningar!U$42=2,Kvantitativ!M16+0,\"\"))","v":0},{"$f":"IF(Inställningar!V$42=1,'Matris 2'!N26+0,IF(Inställningar!V$42=2,Kvantitativ!N16+0,\"\"))","v":0},{"$f":"IF(Inställningar!W$42=1,'Matris 2'!O26+0,IF(Inställningar!W$42=2,Kvantitativ!O16+0,\"\"))","v":0},{"$f":"IF(Inställningar!X$42=1,'Matris 2'!P26+0,IF(Inställningar!X$42=2,Kvantitativ!P16+0,\"\"))","v":0},{"$f":"IF(Inställningar!Y$42=1,'Matris 2'!Q26+0,IF(Inställningar!Y$42=2,Kvantitativ!Q16+0,\"\"))","v":0},{"$f":"IF(Inställningar!Z$42=1,'Matris 2'!R26+0,IF(Inställningar!Z$42=2,Kvantitativ!R16+0,\"\"))","v":""},0]
[{"$f":"IF('Matris 1'!A12=\"\",\"\",'Matris 1'!A12)","v":"Åtgärdsförslag 4"},"Kort sikt",{"$f":"IF(Inställningar!K$42=1,'Matris 2'!C28+0,IF(Inställningar!K$42=2,Kvantitativ!C17+0,\"\"))","v":0},{"$f":"IF(Inställningar!L$42=1,'Matris 2'!D28+0,IF(Inställningar!L$42=2,Kvantitativ!D17+0,\"\"))","v":0},{"$f":"IF(Inställningar!M$42=1,'Matris 2'!E28+0,IF(Inställningar!M$42=2,Kvantitativ!E17+0,\"\"))","v":0},{"$f":"IF(Inställningar!N$42=1,'Matris 2'!F28+0,IF(Inställningar!N$42=2,Kvantitativ!F17+0,\"\"))","v":0},{"$f":"IF(Inställningar!O$42=1,'Matris 2'!G28+0,IF(Inställningar!O$42=2,Kvantitativ!G17+0,\"\"))","v":0},{"$f":"IF(Inställningar!P$42=1,'Matris 2'!H28+0,IF(Inställningar!P$42=2,Kvantitativ!H17+0,\"\"))","v":0},{"$f":"IF(Inställningar!Q$42=1,'Matris 2'!I28+0,IF(Inställningar!Q$42=2,Kvantitativ!I17+0,\"\"))","v":0},{"$f":"IF(Inställningar!R$42=1,'Matris 2'!J28+0,IF(Inställningar!R$42=2,Kvantitativ!J17+0,\"\"))","v":0},{"$f":"IF(Inställningar!S$42=1,'Matris 2'!K28+0,IF(Inställningar!S$42=2,Kvantitativ!K17+0,\"\"))","v":0},{"$f":"IF(Inställningar!T$42=1,'Matris 2'!L28+0,IF(Inställningar!T$42=2,Kvantitativ!L17+0,\"\"))","v":0},{"$f":"IF(Inställningar!U$42=1,'Matris 2'!M28+0,IF(Inställningar!U$42=2,Kvantitativ!M17+0,\"\"))","v":0},{"$f":"IF(Inställningar!V$42=1,'Matris 2'!N28+0,IF(Inställningar!V$42=2,Kvantitativ!N17+0,\"\"))","v":0},{"$f":"IF(Inställningar!W$42=1,'Matris 2'!O28+0,IF(Inställningar!W$42=2,Kvantitativ!O17+0,\"\"))","v":0},{"$f":"IF(Inställningar!X$42=1,'Matris 2'!P28+0,IF(Inställningar!X$42=2,Kvantitativ!P17+0,\"\"))","v":0},{"$f":"IF(Inställningar!Y$42=1,'Matris 2'!Q28+0,IF(Inställningar!Y$42=2,Kvantitativ!Q17+0,\"\"))","v":0},{"$f":"IF(Inställningar!Z$42=1,'Matris 2'!R28+0,IF(Inställningar!Z$42=2,Kvantitativ!R17+0,\"\"))","v":""},0,{"$f":"IF(AND(ISBLANK(C18),ISBLANK(D18),ISBLANK(E18),ISBLANK(F18),ISBLANK(G18),ISBLANK(H18),ISBLANK(I18),ISBLANK(J18),ISBLANK(K18),ISBLANK(L18),ISBLANK(M18),ISBLANK(N18),ISBLANK(O18),ISBLANK(P18),ISBLANK(Q18),ISBLANK(R18),ISBLANK(C19),ISBLANK(D19),ISBLANK(E19),ISBLANK(F19),ISBLANK(G19),ISBLANK(H19),ISBLANK(I19),ISBLANK(J19),ISBLANK(K19),ISBLANK(L19),ISBLANK(M19),ISBLANK(N19),ISBLANK(O19),ISBLANK(P19),ISBLANK(Q19),ISBLANK(R19)),\"\",SUM(S18:S19))","v":0}]
[null,"Lång sikt",{"$f":"IF(Inställningar!K$42=1,'Matris 2'!C30+0,IF(Inställningar!K$42=2,Kvantitativ!C18+0,\"\"))","v":0},{"$f":"IF(Inställningar!L$42=1,'Matris 2'!D30+0,IF(Inställningar!L$42=2,Kvantitativ!D18+0,\"\"))","v":0},{"$f":"IF(Inställningar!M$42=1,'Matris 2'!E30+0,IF(Inställningar!M$42=2,Kvantitativ!E18+0,\"\"))","v":0},{"$f":"IF(Inställningar!N$42=1,'Matris 2'!F30+0,IF(Inställningar!N$42=2,Kvantitativ!F18+0,\"\"))","v":0},{"$f":"IF(Inställningar!O$42=1,'Matris 2'!G30+0,IF(Inställningar!O$42=2,Kvantitativ!G18+0,\"\"))","v":0},{"$f":"IF(Inställningar!P$42=1,'Matris 2'!H30+0,IF(Inställningar!P$42=2,Kvantitativ!H18+0,\"\"))","v":0},{"$f":"IF(Inställningar!Q$42=1,'Matris 2'!I30+0,IF(Inställningar!Q$42=2,Kvantitativ!I18+0,\"\"))","v":0},{"$f":"IF(Inställningar!R$42=1,'Matris 2'!J30+0,IF(Inställningar!R$42=2,Kvantitativ!J18+0,\"\"))","v":0},{"$f":"IF(Inställningar!S$42=1,'Matris 2'!K30+0,IF(Inställningar!S$42=2,Kvantitativ!K18+0,\"\"))","v":0},{"$f":"IF(Inställningar!T$42=1,'Matris 2'!L30+0,IF(Inställningar!T$42=2,Kvantitativ!L18+0,\"\"))","v":0},{"$f":"IF(Inställningar!U$42=1,'Matris 2'!M30+0,IF(Inställningar!U$42=2,Kvantitativ!M18+0,\"\"))","v":0},{"$f":"IF(Inställningar!V$42=1,'Matris 2'!N30+0,IF(Inställningar!V$42=2,Kvantitativ!N18+0,\"\"))","v":0},{"$f":"IF(Inställningar!W$42=1,'Matris 2'!O30+0,IF(Inställningar!W$42=2,Kvantitativ!O18+0,\"\"))","v":0},{"$f":"IF(Inställningar!X$42=1,'Matris 2'!P30+0,IF(Inställningar!X$42=2,Kvantitativ!P18+0,\"\"))","v":0},{"$f":"IF(Inställningar!Y$42=1,'Matris 2'!Q30+0,IF(Inställningar!Y$42=2,Kvantitativ!Q18+0,\"\"))","v":0},{"$f":"IF(Inställningar!Z$42=1,'Matris 2'!R30+0,IF(Inställningar!Z$42=2,Kvantitativ!R18+0,\"\"))","v":""},0]
[{"$f":"IF('Matris 1'!A13=\"\",\"\",'Matris 1'!A13)","v":"Åtgärdsförslag 5"},"Kort sikt",{"$f":"IF(Inställningar!K$42=1,'Matris 2'!C32+0,IF(Inställningar!K$42=2,Kvantitativ!C19+0,\"\"))","v":0},{"$f":"IF(Inställningar!L$42=1,'Matris 2'!D32+0,IF(Inställningar!L$42=2,Kvantitativ!D19+0,\"\"))","v":0},{"$f":"IF(Inställningar!M$42=1,'Matris 2'!E32+0,IF(Inställningar!M$42=2,Kvantitativ!E19+0,\"\"))","v":0},{"$f":"IF(Inställningar!N$42=1,'Matris 2'!F32+0,IF(Inställningar!N$42=2,Kvantitativ!F19+0,\"\"))","v":0},{"$f":"IF(Inställningar!O$42=1,'Matris 2'!G32+0,IF(Inställningar!O$42=2,Kvantitativ!G19+0,\"\"))","v":0},{"$f":"IF(Inställningar!P$42=1,'Matris 2'!H32+0,IF(Inställningar!P$42=2,Kvantitativ!H19+0,\"\"))","v":0},{"$f":"IF(Inställningar!Q$42=1,'Matris 2'!I32+0,IF(Inställningar!Q$42=2,Kvantitativ!I19+0,\"\"))","v":0},{"$f":"IF(Inställningar!R$42=1,'Matris 2'!J32+0,IF(Inställningar!R$42=2,Kvantitativ!J19+0,\"\"))","v":0},{"$f":"IF(Inställningar!S$42=1,'Matris 2'!K32+0,IF(Inställningar!S$42=2,Kvantitativ!K19+0,\"\"))","v":0},{"$f":"IF(Inställningar!T$42=1,'Matris 2'!L32+0,IF(Inställningar!T$42=2,Kvantitativ!L19+0,\"\"))","v":0},{"$f":"IF(Inställningar!U$42=1,'Matris 2'!M32+0,IF(Inställningar!U$42=2,Kvantitativ!M19+0,\"\"))","v":0},{"$f":"IF(Inställningar!V$42=1,'Matris 2'!N32+0,IF(Inställningar!V$42=2,Kvantitativ!N19+0,\"\"))","v":0},{"$f":"IF(Inställningar!W$42=1,'Matris 2'!O32+0,IF(Inställningar!W$42=2,Kvantitativ!O19+0,\"\"))","v":0},{"$f":"IF(Inställningar!X$42=1,'Matris 2'!P32+0,IF(Inställningar!X$42=2,Kvantitativ!P19+0,\"\"))","v":0},{"$f":"IF(Inställningar!Y$42=1,'Matris 2'!Q32+0,IF(Inställningar!Y$42=2,Kvantitativ!Q19+0,\"\"))","v":0},{"$f":"IF(Inställningar!Z$42=1,'Matris 2'!R32+0,IF(Inställningar!Z$42=2,Kvantitativ!R19+0,\"\"))","v":""},0,{"$f":"IF(AND(ISBLANK(C20),ISBLANK(D20),ISBLANK(E20),ISBLANK(F20),ISBLANK(G20),ISBLANK(H20),ISBLANK(I20),ISBLANK(J20),ISBLANK(K20),ISBLANK(L20),ISBLANK(M20),ISBLANK(N20),ISBLANK(O20),ISBLANK(P20),ISBLANK(Q20),ISBLANK(R20),ISBLANK(C21),ISBLANK(D21),ISBLANK(E21),ISBLANK(F21),ISBLANK(G21),ISBLANK(H21),ISBLANK(I21),ISBLANK(J21),ISBLANK(K21),ISBLANK(L21),ISBLANK(M21),ISBLANK(N21),ISBLANK(O21),ISBLANK(P21),ISBLANK(Q21),ISBLANK(R21)),\"\",SUM(S20:S21))","v":0}]
[null,"Lång sikt",{"$f":"IF(Inställningar!K$42=1,'Matris 2'!C34+0,IF(Inställningar!K$42=2,Kvantitativ!C20+0,\"\"))","v":0},{"$f":"IF(Inställningar!L$42=1,'Matris 2'!D34+0,IF(Inställningar!L$42=2,Kvantitativ!D20+0,\"\"))","v":0},{"$f":"IF(Inställningar!M$42=1,'Matris 2'!E34+0,IF(Inställningar!M$42=2,Kvantitativ!E20+0,\"\"))","v":0},{"$f":"IF(Inställningar!N$42=1,'Matris 2'!F34+0,IF(Inställningar!N$42=2,Kvantitativ!F20+0,\"\"))","v":0},{"$f":"IF(Inställningar!O$42=1,'Matris 2'!G34+0,IF(Inställningar!O$42=2,Kvantitativ!G20+0,\"\"))","v":0},{"$f":"IF(Inställningar!P$42=1,'Matris 2'!H34+0,IF(Inställningar!P$42=2,Kvantitativ!H20+0,\"\"))","v":0},{"$f":"IF(Inställningar!Q$42=1,'Matris 2'!I34+0,IF(Inställningar!Q$42=2,Kvantitativ!I20+0,\"\"))","v":0},{"$f":"IF(Inställningar!R$42=1,'Matris 2'!J34+0,IF(Inställningar!R$42=2,Kvantitativ!J20+0,\"\"))","v":0},{"$f":"IF(Inställningar!S$42=1,'Matris 2'!K34+0,IF(Inställningar!S$42=2,Kvantitativ!K20+0,\"\"))","v":0},{"$f":"IF(Inställningar!T$42=1,'Matris 2'!L34+0,IF(Inställningar!T$42=2,Kvantitativ!L20+0,\"\"))","v":0},{"$f":"IF(Inställningar!U$42=1,'Matris 2'!M34+0,IF(Inställningar!U$42=2,Kvantitativ!M20+0,\"\"))","v":0},{"$f":"IF(Inställningar!V$42=1,'Matris 2'!N34+0,IF(Inställningar!V$42=2,Kvantitativ!N20+0,\"\"))","v":0},{"$f":"IF(Inställningar!W$42=1,'Matris 2'!O34+0,IF(Inställningar!W$42=2,Kvantitativ!O20+0,\"\"))","v":0},{"$f":"IF(Inställningar!X$42=1,'Matris 2'!P34+0,IF(Inställningar!X$42=2,Kvantitativ!P20+0,\"\"))","v":0},{"$f":"IF(Inställningar!Y$42=1,'Matris 2'!Q34+0,IF(Inställningar!Y$42=2,Kvantitativ!Q20+0,\"\"))","v":0},{"$f":"IF(Inställningar!Z$42=1,'Matris 2'!R34+0,IF(Inställningar!Z$42=2,Kvantitativ!R20+0,\"\"))","v":""},0]
[]
[null,null,null,null,null,null,null,null,"Legend ",{"$f":"'Skalor o färg'!J29","v":"> 4"}]
[null,null,null,null,null,null,null,null,null,{"$f":"'Skalor o färg'!I29","v":"2 till 4"}]
[null,null,null,null,null,null,null,null,null,{"$f":"'Skalor o färg'!H29","v":"1 till 2"}]
[null,null,null,null,null,null,null,null,null,{"$f":"'Skalor o färg'!G29","v":"-1 till 1"}]
[null,null,null,null,null,null,null,null,null,{"$f":"'Skalor o färg'!F29","v":"-2 till -1"}]
[null,null,null,null,null,null,null,null,null,{"$f":"'Skalor o färg'!E29","v":"-4 till -2"}]
[null,null,null,null,null,null,null,null,null,{"$f":"'Skalor o färg'!D29","v":"< -4"}]
[]
["Objekt:",null,{"$f":"'Matris 1'!B1","v":"XYZ-köping"}]
[]
["Resultat av bedömning "]

{"sheet":"Matris 4","index":6,"n_rows":50,"n_cols":20,"rows_kept":50,"cut":false,"hidden":false,"merged":[[50,0,59,18],[6,19,7,19],[9,19,10,19],[11,19,12,19],[13,19,14,19],[19,0,20,0],[9,0,10,0],[11,0,12,0],[13,0,14,0],[15,19,16,19],[17,19,18,19],[19,19,20,19],[15,0,16,0],[6,0,6,1],[7,0,7,1],[6,18,8,18],[34,0,41,18],[43,0,48,18],[0,0,0,1],[17,0,18,0],[31,0,31,1],[31,2,31,18],[4,0,4,3],[8,0,8,1],[5,0,5,3],[3,0,3,19]]}
["Objekt:",null,{"$f":"'Matris 1'!B1","v":"XYZ-köping"},null,null,null,null,null,null,null,null,null,null,null,null,null,null,null,null,{"$f":"Inställningar!D1","v":"SAMLA version 2.5"}]
[]
["Övergripande åtgärdsmål:"]
[{"$f":"IF('Matris 1'!A4=\"\",\"\",'Matris 1'!A4)","v":""}]
[]
["Matris 4 - Viktad bedömning",null,null,null,null,{"$f":"IF(SUM(COUNTIF('Matris 3'!C10:R21,\"> \"&TEXT('Skalor o färg'!B8,0)),COUNTIF('Matris 3'!C10:R21,\"< \"&TEXT(0-'Skalor o färg'!B8,0)))>0,\"VARNING! Du har angett ett eller flera tal utanför vald poängskala. Talen används ändå i beräkningarna men färgmarkeringar och grafer kan bli missvisande.\",IF(SUM(COUNTIF(C9:R9,\"> \"&TEXT('Skalor o färg'!B18,0)),COUNTIF(C9:R9,\"< 0\"))>0,\"VARNING! Du har angett ett eller flera tal utanför vald viktningsskala. Vikterna används ändå i beräkningarna men färgmarkeringar och grafer kan bli missvisande.\",\"\"))","v":""},null,null,null,null,null,null,null,null,null,null,null,null,null,"Skriv ut i A3-format, liggande."]
["Åtgärd",null,{"$f":"Inställningar!K47","v":"Ekologisk"},{"$f":"Inställningar!L47","v":"Ekologisk"},{"$f":"Inställningar!M47","v":"Ekologisk"},{"$f":"Inställningar!N47","v":"Ekologisk"},{"$f":"Inställningar!O47","v":"Ekologisk"},{"$f":"Inställningar!P47","v":"Ekologisk"},{"$f":"Inställningar!Q47","v":"Social"},{"$f":"Inställningar!R47","v":"Social"},{"$f":"Inställningar!S47","v":"Social"},{"$f":"Inställningar!T47","v":"Social"},{"$f":"Inställningar!U47","v":"Social"},{"$f":"Inställningar!V47","v":"Ekonomisk"},{"$f":"Inställningar!W47","v":"Ekonomisk"},{"$f":"Inställningar!X47","v":"Ekonomisk"},{"$f":"Inställningar!Y47","v":"Ekonomisk"},{"$f":"Inställningar!Z47","v":""},"Delsumma","Summa"]
[null,null,{"$f":"'Matris 2'!C8","v":"1. Utsläpp till luft"},{"$f":"'Matris 2'!D8","v":"2. Jord och mark"},{"$f":"'Matris 2'!E8","v":"3. Grundvatten"},{"$f":"'Matris 2'!F8","v":"4. Ytvatten och sediment"},{"$f":"'Matris 2'!G8","v":"5. Ekologi"},{"$f":"'Matris 2'!H8","v":"6. Naturresurser och avfall"},{"$f":"'Matris 2'!I8","v":"7. Hälsa och säkerhet"},{"$f":"'Matris 2'!J8","v":"8. Etik och jämlikhet"},{"$f":"'Matris 2'!K8","v":"9. Närmiljö"},{"$f":"'Matris 2'!L8","v":"10. Lokalsamhälle"},{"$f":"'Matris 2'!M8","v":"11. Osäkerhet och evidens"},{"$f":"'Matris 2'!N8","v":"12. Direkta kostnader och nyttor"},{"$f":"'Matris 2'!O8","v":"13. Indirekta kostnader och nyttor"},{"$f":"'Matris 2'!P8","v":"14. Inducerade kostnader och nyttor"},{"$f":"'Matris 2'!Q8","v":"15. Beständighet och flexibilitet"},{"$f":"'Matris 2'!R8","v":""}]
["Vikt",null,{"$f":"IF((C8=0),\"\",'Matris 2'!C9)","v":1},{"$f":"IF((D8=0),\"\",'Matris 2'!D9)","v":1},{"$f":"IF((E8=0),\"\",'Matris 2'!E9)","v":1},{"$f":"IF((F8=0),\"\",'Matris 2'!F9)","v":1},{"$f":"IF((G8=0),\"\",'Matris 2'!G9)","v":1},{"$f":"IF((H8=0),\"\",'Matris 2'!H9)","v":1},{"$f":"IF((I8=0),\"\",'Matris 2'!I9)","v":1},{"$f":"IF((J8=0),\"\",'Matris 2'!J9)","v":1},{"$f":"IF((K8=0),\"\",'Matris 2'!K9)","v":1},{"$f":"IF((L8=0),\"\",'Matris 2'!L9)","v":1},{"$f":"IF((M8=0),\"\",'Matris 2'!M9)","v":1},{"$f":"IF((N8=0),\"\",'Matris 2'!N9)","v":1},{"$f":"IF((O8=0),\"\",'Matris 2'!O9)","v":1},{"$f":"IF((P8=0),\"\",'Matris 2'!P9)","v":1},{"$f":"IF((Q8=0),\"\",'Matris 2'!Q9)","v":1},{"$f":"IF((R8=0),\"\",'Matris 2'!R9)","v":0}]
[{"$f":"IF('Matris 1'!A8=\"\",\"\",'Matris 1'!A8)","v":"Nollalternativ: ingen åtgärd"},"Kort sikt",{"$f":"IF(ISERROR('Matris 3'!C10*'Matris 3'!C$9),\"\",'Matris 3'!C10*'Matris 3'!C$9)","v":0},{"$f":"IF(ISERROR('Matris 3'!D10*'Matris 3'!D$9),\"\",'Matris 3'!D10*'Matris 3'!D$9)","v":0},{"$f":"IF(ISERROR('Matris 3'!E10*'Matris 3'!E$9),\"\",'Matris 3'!E10*'Matris 3'!E$9)","v":0},{"$f":"IF(ISERROR('Matris 3'!F10*'Matris 3'!F$9),\"\",'Matris 3'!F10*'Matris 3'!F$9)","v":0},{"$f":"IF(ISERROR('Matris 3'!G10*'Matris 3'!G$9),\"\",'Matris 3'!G10*'Matris 3'!G$9)","v":0},{"$f":"IF(ISERROR('Matris 3'!H10*'Matris 3'!H$9),\"\",'Matris 3'!H10*'Matris 3'!H$9)","v":0},{"$f":"IF(ISERROR('Matris 3'!I10*'Matris 3'!I$9),\"\",'Matris 3'!I10*'Matris 3'!I$9)","v":0},{"$f":"IF(ISERROR('Matris 3'!J10*'Matris 3'!J$9),\"\",'Matris 3'!J10*'Matris 3'!J$9)","v":0},{"$f":"IF(ISERROR('Matris 3'!K10*'Matris 3'!K$9),\"\",'Matris 3'!K10*'Matris 3'!K$9)","v":0},{"$f":"IF(ISERROR('Matris 3'!L10*'Matris 3'!L$9),\"\",'Matris 3'!L10*'Matris 3'!L$9)","v":0},{"$f":"IF(ISERROR('Matris 3'!M10*'Matris 3'!M$9),\"\",'Matris 3'!M10*'Matris 3'!M$9)","v":0},{"$f":"IF(ISERROR('Matris 3'!N10*'Matris 3'!N$9),\"\",'Matris 3'!N10*'Matris 3'!N$9)","v":0},{"$f":"IF(ISERROR('Matris 3'!O10*'Matris 3'!O$9),\"\",'Matris 3'!O10*'Matris 3'!O$9)","v":0},{"$f":"IF(ISERROR('Matris 3'!P10*'Matris 3'!P$9),\"\",'Matris 3'!P10*'Matris 3'!P$9)","v":0},{"$f":"IF(ISERROR('Matris 3'!Q10*'Matris 3'!Q$9),\"\",'Matris 3'!Q10*'Matris 3'!Q$9)","v":0},{"$f":"IF(ISERROR('Matris 3'!R10*'Matris 3'!R$9),\"\",'Matris 3'!R10*'Matris 3'!R$9)","v":""},{"$f":"IF(ISNUMBER('Matris 3'!S10),(SUM(C10:R10)),\"\")","v":0},{"$f":"IF((ISNUMBER('Matris 3'!T10)),(SUM(S10:S11)),\"\")","v":0}]
[null,"Lång sikt",{"$f":"IF(ISERROR('Matris 3'!C11*'Matris 3'!C$9),\"\",'Matris 3'!C11*'Matris 3'!C$9)","v":0},{"$f":"IF(ISERROR('Matris 3'!D11*'Matris 3'!D$9),\"\",'Matris 3'!D11*'Matris 3'!D$9)","v":0},{"$f":"IF(ISERROR('Matris 3'!E11*'Matris 3'!E$9),\"\",'Matris 3'!E11*'Matris 3'!E$9)","v":0},{"$f":"IF(ISERROR('Matris 3'!F11*'Matris 3'!F$9),\"\",'Matris 3'!F11*'Matris 3'!F$9)","v":0},{"$f":"IF(ISERROR('Matris 3'!G11*'Matris 3'!G$9),\"\",'Matris 3'!G11*'Matris 3'!G$9)","v":0},{"$f":"IF(ISERROR('Matris 3'!H11*'Matris 3'!H$9),\"\",'Matris 3'!H11*'Matris 3'!H$9)","v":0},{"$f":"IF(ISERROR('Matris 3'!I11*'Matris 3'!I$9),\"\",'Matris 3'!I11*'Matris 3'!I$9)","v":0},{"$f":"IF(ISERROR('Matris 3'!J11*'Matris 3'!J$9),\"\",'Matris 3'!J11*'Matris 3'!J$9)","v":0},{"$f":"IF(ISERROR('Matris 3'!K11*'Matris 3'!K$9),\"\",'Matris 3'!K11*'Matris 3'!K$9)","v":0},{"$f":"IF(ISERROR('Matris 3'!L11*'Matris 3'!L$9),\"\",'Matris 3'!L11*'Matris 3'!L$9)","v":0},{"$f":"IF(ISERROR('Matris 3'!M11*'Matris 3'!M$9),\"\",'Matris 3'!M11*'Matris 3'!M$9)","v":0},{"$f":"IF(ISERROR('Matris 3'!N11*'Matris 3'!N$9),\"\",'Matris 3'!N11*'Matris 3'!N$9)","v":0},{"$f":"IF(ISERROR('Matris 3'!O11*'Matris 3'!O$9),\"\",'Matris 3'!O11*'Matris 3'!O$9)","v":0},{"$f":"IF(ISERROR('Matris 3'!P11*'Matris 3'!P$9),\"\",'Matris 3'!P11*'Matris 3'!P$9)","v":0},{"$f":"IF(ISERROR('Matris 3'!Q11*'Matris 3'!Q$9),\"\",'Matris 3'!Q11*'Matris 3'!Q$9)","v":0},{"$f":"IF(ISERROR('Matris 3'!R11*'Matris 3'!R$9),\"\",'Matris 3'!R11*'Matris 3'!R$9)","v":""},{"$f":"IF(ISNUMBER('Matris 3'!S11),(SUM(C11:R11)),\"\")","v":0}]
[{"$f":"IF('Matris 1'!A9=\"\",\"\",'Matris 1'!A9)","v":"Åtgärdsförslag 1"},"Kort sikt",{"$f":"IF(ISERROR('Matris 3'!C12*'Matris 3'!C$9),\"\",'Matris 3'!C12*'Matris 3'!C$9)","v":0},{"$f":"IF(ISERROR('Matris 3'!D12*'Matris 3'!D$9),\"\",'Matris 3'!D12*'Matris 3'!D$9)","v":0},{"$f":"IF(ISERROR('Matris 3'!E12*'Matris 3'!E$9),\"\",'Matris 3'!E12*'Matris 3'!E$9)","v":0},{"$f":"IF(ISERROR('Matris 3'!F12*'Matris 3'!F$9),\"\",'Matris 3'!F12*'Matris 3'!F$9)","v":0},{"$f":"IF(ISERROR('Matris 3'!G12*'Matris 3'!G$9),\"\",'Matris 3'!G12*'Matris 3'!G$9)","v":0},{"$f":"IF(ISERROR('Matris 3'!H12*'Matris 3'!H$9),\"\",'Matris 3'!H12*'Matris 3'!H$9)","v":0},{"$f":"IF(ISERROR('Matris 3'!I12*'Matris 3'!I$9),\"\",'Matris 3'!I12*'Matris 3'!I$9)","v":0},{"$f":"IF(ISERROR('Matris 3'!J12*'Matris 3'!J$9),\"\",'Matris 3'!J12*'Matris 3'!J$9)","v":0},{"$f":"IF(ISERROR('Matris 3'!K12*'Matris 3'!K$9),\"\",'Matris 3'!K12*'Matris 3'!K$9)","v":0},{"$f":"IF(ISERROR('Matris 3'!L12*'Matris 3'!L$9),\"\",'Matris 3'!L12*'Matris 3'!L$9)","v":0},{"$f":"IF(ISERROR('Matris 3'!M12*'Matris 3'!M$9),\"\",'Matris 3'!M12*'Matris 3'!M$9)","v":0},{"$f":"IF(ISERROR('Matris 3'!N12*'Matris 3'!N$9),\"\",'Matris 3'!N12*'Matris 3'!N$9)","v":0},{"$f":"IF(ISERROR('Matris 3'!O12*'Matris 3'!O$9),\"\",'Matris 3'!O12*'Matris 3'!O$9)","v":0},{"$f":"IF(ISERROR('Matris 3'!P12*'Matris 3'!P$9),\"\",'Matris 3'!P12*'Matris 3'!P$9)","v":0},{"$f":"IF(ISERROR('Matris 3'!Q12*'Matris 3'!Q$9),\"\",'Matris 3'!Q12*'Matris 3'!Q$9)","v":0},{"$f":"IF(ISERROR('Matris 3'!R12*'Matris 3'!R$9),\"\",'Matris 3'!R12*'Matris 3'!R$9)","v":""},{"$f":"IF(ISNUMBER('Matris 3'!S12),(SUM(C12:R12)),\"\")","v":0},{"$f":"IF((ISNUMBER('Matris 3'!T12)),(SUM(S12:S13)),\"\")","v":0}]
[null,"Lång sikt",{"$f":"IF(ISERROR('Matris 3'!C13*'Matris 3'!C$9),\"\",'Matris 3'!C13*'Matris 3'!C$9)","v":0},{"$f":"IF(ISERROR('Matris 3'!D13*'Matris 3'!D$9),\"\",'Matris 3'!D13*'Matris 3'!D$9)","v":0},{"$f":"IF(ISERROR('Matris 3'!E13*'Matris 3'!E$9),\"\",'Matris 3'!E13*'Matris 3'!E$9)","v":0},{"$f":"IF(ISERROR('Matris 3'!F13*'Matris 3'!F$9),\"\",'Matris 3'!F13*'Matris 3'!F$9)","v":0},{"$f":"IF(ISERROR('Matris 3'!G13*'Matris 3'!G$9),\"\",'Matris 3'!G13*'Matris 3'!G$9)","v":0},{"$f":"IF(ISERROR('Matris 3'!H13*'Matris 3'!H$9),\"\",'Matris 3'!H13*'Matris 3'!H$9)","v":0},{"$f":"IF(ISERROR('Matris 3'!I13*'Matris 3'!I$9),\"\",'Matris 3'!I13*'Matris 3'!I$9)","v":0},{"$f":"IF(ISERROR('Matris 3'!J13*'Matris 3'!J$9),\"\",'Matris 3'!J13*'Matris 3'!J$9)","v":0},{"$f":"IF(ISERROR('Matris 3'!K13*'Matris 3'!K$9),\"\",'Matris 3'!K13*'Matris 3'!K$9)","v":0},{"$f":"IF(ISERROR('Matris 3'!L13*'Matris 3'!L$9),\"\",'Matris 3'!L13*'Matris 3'!L$9)","v":0},{"$f":"IF(ISERROR('Matris 3'!M13*'Matris 3'!M$9),\"\",'Matris 3'!M13*'Matris 3'!M$9)","v":0},{"$f":"IF(ISERROR('Matris 3'!N13*'Matris 3'!N$9),\"\",'Matris 3'!N13*'Matris 3'!N$9)","v":0},{"$f":"IF(ISERROR('Matris 3'!O13*'Matris 3'!O$9),\"\",'Matris 3'!O13*'Matris 3'!O$9)","v":0},{"$f":"IF(ISERROR('Matris 3'!P13*'Matris 3'!P$9),\"\",'Matris 3'!P13*'Matris 3'!P$9)","v":0},{"$f":"IF(ISERROR('Matris 3'!Q13*'Matris 3'!Q$9),\"\",'Matris 3'!Q13*'Matris 3'!Q$9)","v":0},{"$f":"IF(ISERROR('Matris 3'!R13*'Matris 3'!R$9),\"\",'Matris 3'!R13*'Matris 3'!R$9)","v":""},{"$f":"IF(ISNUMBER('Matris 3'!S13),(SUM(C13:R13)),\"\")","v":0}]
[{"$f":"IF('Matris 1'!A10=\"\",\"\",'Matris 1'!A10)","v":"Åtgärdsförslag 2"},"Kort sikt",{"$f":"IF(ISERROR('Matris 3'!C14*'Matris 3'!C$9),\"\",'Matris 3'!C14*'Matris 3'!C$9)","v":0},{"$f":"IF(ISERROR('Matris 3'!D14*'Matris 3'!D$9),\"\",'Matris 3'!D14*'Matris 3'!D$9)","v":0},{"$f":"IF(ISERROR('Matris 3'!E14*'Matris 3'!E$9),\"\",'Matris 3'!E14*'Matris 3'!E$9)","v":0},{"$f":"IF(ISERROR('Matris 3'!F14*'Matris 3'!F$9),\"\",'Matris 3'!F14*'Matris 3'!F$9)","v":0},{"$f":"IF(ISERROR('Matris 3'!G14*'Matris 3'!G$9),\"\",'Matris 3'!G14*'Matris 3'!G$9)","v":0},{"$f":"IF(ISERROR('Matris 3'!H14*'Matris 3'!H$9),\"\",'Matris 3'!H14*'Matris 3'!H$9)","v":0},{"$f":"IF(ISERROR('Matris 3'!I14*'Matris 3'!I$9),\"\",'Matris 3'!I14*'Matris 3'!I$9)","v":0},{"$f":"IF(ISERROR('Matris 3'!J14*'Matris 3'!J$9),\"\",'Matris 3'!J14*'Matris 3'!J$9)","v":0},{"$f":"IF(ISERROR('Matris 3'!K14*'Matris 3'!K$9),\"\",'Matris 3'!K14*'Matris 3'!K$9)","v":0},{"$f":"IF(ISERROR('Matris 3'!L14*'Matris 3'!L$9),\"\",'Matris 3'!L14*'Matris 3'!L$9)","v":0},{"$f":"IF(ISERROR('Matris 3'!M14*'Matris 3'!M$9),\"\",'Matris 3'!M14*'Matris 3'!M$9)","v":0},{"$f":"IF(ISERROR('Matris 3'!N14*'Matris 3'!N$9),\"\",'Matris 3'!N14*'Matris 3'!N$9)","v":0},{"$f":"IF(ISERROR('Matris 3'!O14*'Matris 3'!O$9),\"\",'Matris 3'!O14*'Matris 3'!O$9)","v":0},{"$f":"IF(ISERROR('Matris 3'!P14*'Matris 3'!P$9),\"\",'Matris 3'!P14*'Matris 3'!P$9)","v":0},{"$f":"IF(ISERROR('Matris 3'!Q14*'Matris 3'!Q$9),\"\",'Matris 3'!Q14*'Matris 3'!Q$9)","v":0},{"$f":"IF(ISERROR('Matris 3'!R14*'Matris 3'!R$9),\"\",'Matris 3'!R14*'Matris 3'!R$9)","v":""},{"$f":"IF(ISNUMBER('Matris 3'!S14),(SUM(C14:R14)),\"\")","v":0},{"$f":"IF((ISNUMBER('Matris 3'!T14)),(SUM(S14:S15)),\"\")","v":0}]
[null,"Lång sikt",{"$f":"IF(ISERROR('Matris 3'!C15*'Matris 3'!C$9),\"\",'Matris 3'!C15*'Matris 3'!C$9)","v":0},{"$f":"IF(ISERROR('Matris 3'!D15*'Matris 3'!D$9),\"\",'Matris 3'!D15*'Matris 3'!D$9)","v":0},{"$f":"IF(ISERROR('Matris 3'!E15*'Matris 3'!E$9),\"\",'Matris 3'!E15*'Matris 3'!E$9)","v":0},{"$f":"IF(ISERROR('Matris 3'!F15*'Matris 3'!F$9),\"\",'Matris 3'!F15*'Matris 3'!F$9)","v":0},{"$f":"IF(ISERROR('Matris 3'!G15*'Matris 3'!G$9),\"\",'Matris 3'!G15*'Matris 3'!G$9)","v":0},{"$f":"IF(ISERROR('Matris 3'!H15*'Matris 3'!H$9),\"\",'Matris 3'!H15*'Matris 3'!H$9)","v":0},{"$f":"IF(ISERROR('Matris 3'!I15*'Matris 3'!I$9),\"\",'Matris 3'!I15*'Matris 3'!I$9)","v":0},{"$f":"IF(ISERROR('Matris 3'!J15*'Matris 3'!J$9),\"\",'Matris 3'!J15*'Matris 3'!J$9)","v":0},{"$f":"IF(ISERROR('Matris 3'!K15*'Matris 3'!K$9),\"\",'Matris 3'!K15*'Matris 3'!K$9)","v":0},{"$f":"IF(ISERROR('Matris 3'!L15*'Matris 3'!L$9),\"\",'Matris 3'!L15*'Matris 3'!L$9)","v":0},{"$f":"IF(ISERROR('Matris 3'!M15*'Matris 3'!M$9),\"\",'Matris 3'!M15*'Matris 3'!M$9)","v":0},{"$f":"IF(ISERROR('Matris 3'!N15*'Matris 3'!N$9),\"\",'Matris 3'!N15*'Matris 3'!N$9)","v":0},{"$f":"IF(ISERROR('Matris 3'!O15*'Matris 3'!O$9),\"\",'Matris 3'!O15*'Matris 3'!O$9)","v":0},{"$f":"IF(ISERROR('Matris 3'!P15*'Matris 3'!P$9),\"\",'Matris 3'!P15*'Matris 3'!P$9)","v":0},{"$f":"IF(ISERROR('Matris 3'!Q15*'Matris 3'!Q$9),\"\",'Matris 3'!Q15*'Matris 3'!Q$9)","v":0},{"$f":"IF(ISERROR('Matris 3'!R15*'Matris 3'!R$9),\"\",'Matris 3'!R15*'Matris 3'!R$9)","v":""},{"$f":"IF(ISNUMBER('Matris 3'!S15),(SUM(C15:R15)),\"\")","v":0}]
[{"$f":"IF('Matris 1'!A11=\"\",\"\",'Matris 1'!A11)","v":"Åtgärdsförslag 3"},"Kort sikt",{"$f":"IF(ISERROR('Matris 3'!C16*'Matris 3'!C$9),\"\",'Matris 3'!C16*'Matris 3'!C$9)","v":0},{"$f":"IF(ISERROR('Matris 3'!D16*'Matris 3'!D$9),\"\",'Matris 3'!D16*'Matris 3'!D$9)","v":0},{"$f":"IF(ISERROR('Matris 3'!E16*'Matris 3'!E$9),\"\",'Matris 3'!E16*'Matris 3'!E$9)","v":0},{"$f":"IF(ISERROR('Matris 3'!F16*'Matris 3'!F$9),\"\",'Matris 3'!F16*'Matris 3'!F$9)","v":0},{"$f":"IF(ISERROR('Matris 3'!G16*'Matris 3'!G$9),\"\",'Matris 3'!G16*'Matris 3'!G$9)","v":0},{"$f":"IF(ISERROR('Matris 3'!H16*'Matris 3'!H$9),\"\",'Matris 3'!H16*'Matris 3'!H$9)","v":0},{"$f":"IF(ISERROR('Matris 3'!I16*'Matris 3'!I$9),\"\",'Matris 3'!I16*'Matris 3'!I$9)","v":0},{"$f":"IF(ISERROR('Matris 3'!J16*'Matris 3'!J$9),\"\",'Matris 3'!J16*'Matris 3'!J$9)","v":0},{"$f":"IF(ISERROR('Matris 3'!K16*'Matris 3'!K$9),\"\",'Matris 3'!K16*'Matris 3'!K$9)","v":0},{"$f":"IF(ISERROR('Matris 3'!L16*'Matris 3'!L$9),\"\",'Matris 3'!L16*'Matris 3'!L$9)","v":0},{"$f":"IF(ISERROR('Matris 3'!M16*'Matris 3'!M$9),\"\",'Matris 3'!M16*'Matris 3'!M$9)","v":0},{"$f":"IF(ISERROR('Matris 3'!N16*'Matris 3'!N$9),\"\",'Matris 3'!N16*'Matris 3'!N$9)","v":0},{"$f":"IF(ISERROR('Matris 3'!O16*'Matris 3'!O$9),\"\",'Matris 3'!O16*'Matris 3'!O$9)","v":0},{"$f":"IF(ISERROR('Matris 3'!P16*'Matris 3'!P$9),\"\",'Matris 3'!P16*'Matris 3'!P$9)","v":0},{"$f":"IF(ISERROR('Matris 3'!Q16*'Matris 3'!Q$9),\"\",'Matris 3'!Q16*'Matris 3'!Q$9)","v":0},{"$f":"IF(ISERROR('Matris 3'!R16*'Matris 3'!R$9),\"\",'Matris 3'!R16*'Matris 3'!R$9)","v":""},{"$f":"IF(ISNUMBER('Matris 3'!S16),(SUM(C16:R16)),\"\")","v":0},{"$f":"IF((ISNUMBER('Matris 3'!T16)),(SUM(S16:S17)),\"\")","v":0}]
[null,"Lång sikt",{"$f":"IF(ISERROR('Matris 3'!C17*'Matris 3'!C$9),\"\",'Matris 3'!C17*'Matris 3'!C$9)","v":0},{"$f":"IF(ISERROR('Matris 3'!D17*'Matris 3'!D$9),\"\",'Matris 3'!D17*'Matris 3'!D$9)","v":0},{"$f":"IF(ISERROR('Matris 3'!E17*'Matris 3'!E$9),\"\",'Matris 3'!E17*'Matris 3'!E$9)","v":0},{"$f":"IF(ISERROR('Matris 3'!F17*'Matris 3'!F$9),\"\",'Matris 3'!F17*'Matris 3'!F$9)","v":0},{"$f":"IF(ISERROR('Matris 3'!G17*'Matris 3'!G$9),\"\",'Matris 3'!G17*'Matris 3'!G$9)","v":0},{"$f":"IF(ISERROR('Matris 3'!H17*'Matris 3'!H$9),\"\",'Matris 3'!H17*'Matris 3'!H$9)","v":0},{"$f":"IF(ISERROR('Matris 3'!I17*'Matris 3'!I$9),\"\",'Matris 3'!I17*'Matris 3'!I$9)","v":0},{"$f":"IF(ISERROR('Matris 3'!J17*'Matris 3'!J$9),\"\",'Matris 3'!J17*'Matris 3'!J$9)","v":0},{"$f":"IF(ISERROR('Matris 3'!K17*'Matris 3'!K$9),\"\",'Matris 3'!K17*'Matris 3'!K$9)","v":0},{"$f":"IF(ISERROR('Matris 3'!L17*'Matris 3'!L$9),\"\",'Matris 3'!L17*'Matris 3'!L$9)","v":0},{"$f":"IF(ISERROR('Matris 3'!M17*'Matris 3'!M$9),\"\",'Matris 3'!M17*'Matris 3'!M$9)","v":0},{"$f":"IF(ISERROR('Matris 3'!N17*'Matris 3'!N$9),\"\",'Matris 3'!N17*'Matris 3'!N$9)","v":0},{"$f":"IF(ISERROR('Matris 3'!O17*'Matris 3'!O$9),\"\",'Matris 3'!O17*'Matris 3'!O$9)","v":0},{"$f":"IF(ISERROR('Matris 3'!P17*'Matris 3'!P$9),\"\",'Matris 3'!P17*'Matris 3'!P$9)","v":0},{"$f":"IF(ISERROR('Matris 3'!Q17*'Matris 3'!Q$9),\"\",'Matris 3'!Q17*'Matris 3'!Q$9)","v":0},{"$f":"IF(ISERROR('Matris 3'!R17*'Matris 3'!R$9),\"\",'Matris 3'!R17*'Matris 3'!R$9)","v":""},{"$f":"IF(ISNUMBER('Matris 3'!S17),(SUM(C17:R17)),\"\")","v":0}]
[{"$f":"IF('Matris 1'!A12=\"\",\"\",'Matris 1'!A12)","v":"Åtgärdsförslag 4"},"Kort sikt",{"$f":"IF(ISERROR('Matris 3'!C18*'Matris 3'!C$9),\"\",'Matris 3'!C18*'Matris 3'!C$9)","v":0},{"$f":"IF(ISERROR('Matris 3'!D18*'Matris 3'!D$9),\"\",'Matris 3'!D18*'Matris 3'!D$9)","v":0},{"$f":"IF(ISERROR('Matris 3'!E18*'Matris 3'!E$9),\"\",'Matris 3'!E18*'Matris 3'!E$9)","v":0},{"$f":"IF(ISERROR('Matris 3'!F18*'Matris 3'!F$9),\"\",'Matris 3'!F18*'Matris 3'!F$9)","v":0},{"$f":"IF(ISERROR('Matris 3'!G18*'Matris 3'!G$9),\"\",'Matris 3'!G18*'Matris 3'!G$9)","v":0},{"$f":"IF(ISERROR('Matris 3'!H18*'Matris 3'!H$9),\"\",'Matris 3'!H18*'Matris 3'!H$9)","v":0},{"$f":"IF(ISERROR('Matris 3'!I18*'Matris 3'!I$9),\"\",'Matris 3'!I18*'Matris 3'!I$9)","v":0},{"$f":"IF(ISERROR('Matris 3'!J18*'Matris 3'!J$9),\"\",'Matris 3'!J18*'Matris 3'!J$9)","v":0},{"$f":"IF(ISERROR('Matris 3'!K18*'Matris 3'!K$9),\"\",'Matris 3'!K18*'Matris 3'!K$9)","v":0},{"$f":"IF(ISERROR('Matris 3'!L18*'Matris 3'!L$9),\"\",'Matris 3'!L18*'Matris 3'!L$9)","v":0},{"$f":"IF(ISERROR('Matris 3'!M18*'Matris 3'!M$9),\"\",'Matris 3'!M18*'Matris 3'!M$9)","v":0},{"$f":"IF(ISERROR('Matris 3'!N18*'Matris 3'!N$9),\"\",'Matris 3'!N18*'Matris 3'!N$9)","v":0},{"$f":"IF(ISERROR('Matris 3'!O18*'Matris 3'!O$9),\"\",'Matris 3'!O18*'Matris 3'!O$9)","v":0},{"$f":"IF(ISERROR('Matris 3'!P18*'Matris 3'!P$9),\"\",'Matris 3'!P18*'Matris 3'!P$9)","v":0},{"$f":"IF(ISERROR('Matris 3'!Q18*'Matris 3'!Q$9),\"\",'Matris 3'!Q18*'Matris 3'!Q$9)","v":0},{"$f":"IF(ISERROR('Matris 3'!R18*'Matris 3'!R$9),\"\",'Matris 3'!R18*'Matris 3'!R$9)","v":""},{"$f":"IF(ISNUMBER('Matris 3'!S18),(SUM(C18:R18)),\"\")","v":0},{"$f":"IF((ISNUMBER('Matris 3'!T18)),(SUM(S18:S19)),\"\")","v":0}]
[null,"Lång sikt",{"$f":"IF(ISERROR('Matris 3'!C19*'Matris 3'!C$9),\"\",'Matris 3'!C19*'Matris 3'!C$9)","v":0},{"$f":"IF(ISERROR('Matris 3'!D19*'Matris 3'!D$9),\"\",'Matris 3'!D19*'Matris 3'!D$9)","v":0},{"$f":"IF(ISERROR('Matris 3'!E19*'Matris 3'!E$9),\"\",'Matris 3'!E19*'Matris 3'!E$9)","v":0},{"$f":"IF(ISERROR('Matris 3'!F19*'Matris 3'!F$9),\"\",'Matris 3'!F19*'Matris 3'!F$9)","v":0},{"$f":"IF(ISERROR('Matris 3'!G19*'Matris 3'!G$9),\"\",'Matris 3'!G19*'Matris 3'!G$9)","v":0},{"$f":"IF(ISERROR('Matris 3'!H19*'Matris 3'!H$9),\"\",'Matris 3'!H19*'Matris 3'!H$9)","v":0},{"$f":"IF(ISERROR('Matris 3'!I19*'Matris 3'!I$9),\"\",'Matris 3'!I19*'Matris 3'!I$9)","v":0},{"$f":"IF(ISERROR('Matris 3'!J19*'Matris 3'!J$9),\"\",'Matris 3'!J19*'Matris 3'!J$9)","v":0},{"$f":"IF(ISERROR('Matris 3'!K19*'Matris 3'!K$9),\"\",'Matris 3'!K19*'Matris 3'!K$9)","v":0},{"$f":"IF(ISERROR('Matris 3'!L19*'Matris 3'!L$9),\"\",'Matris 3'!L19*'Matris 3'!L$9)","v":0},{"$f":"IF(ISERROR('Matris 3'!M19*'Matris 3'!M$9),\"\",'Matris 3'!M19*'Matris 3'!M$9)","v":0},{"$f":"IF(ISERROR('Matris 3'!N19*'Matris 3'!N$9),\"\",'Matris 3'!N19*'Matris 3'!N$9)","v":0},{"$f":"IF(ISERROR('Matris 3'!O19*'Matris 3'!O$9),\"\",'Matris 3'!O19*'Matris 3'!O$9)","v":0},{"$f":"IF(ISERROR('Matris 3'!P19*'Matris 3'!P$9),\"\",'Matris 3'!P19*'Matris 3'!P$9)","v":0},{"$f":"IF(ISERROR('Matris 3'!Q19*'Matris 3'!Q$9),\"\",'Matris 3'!Q19*'Matris 3'!Q$9)","v":0},{"$f":"IF(ISERROR('Matris 3'!R19*'Matris 3'!R$9),\"\",'Matris 3'!R19*'Matris 3'!R$9)","v":""},{"$f":"IF(ISNUMBER('Matris 3'!S19),(SUM(C19:R19)),\"\")","v":0}]
[{"$f":"IF('Matris 1'!A13=\"\",\"\",'Matris 1'!A13)","v":"Åtgärdsförslag 5"},"Kort sikt",{"$f":"IF(ISERROR('Matris 3'!C20*'Matris 3'!C$9),\"\",'Matris 3'!C20*'Matris 3'!C$9)","v":0},{"$f":"IF(ISERROR('Matris 3'!D20*'Matris 3'!D$9),\"\",'Matris 3'!D20*'Matris 3'!D$9)","v":0},{"$f":"IF(ISERROR('Matris 3'!E20*'Matris 3'!E$9),\"\",'Matris 3'!E20*'Matris 3'!E$9)","v":0},{"$f":"IF(ISERROR('Matris 3'!F20*'Matris 3'!F$9),\"\",'Matris 3'!F20*'Matris 3'!F$9)","v":0},{"$f":"IF(ISERROR('Matris 3'!G20*'Matris 3'!G$9),\"\",'Matris 3'!G20*'Matris 3'!G$9)","v":0},{"$f":"IF(ISERROR('Matris 3'!H20*'Matris 3'!H$9),\"\",'Matris 3'!H20*'Matris 3'!H$9)","v":0},{"$f":"IF(ISERROR('Matris 3'!I20*'Matris 3'!I$9),\"\",'Matris 3'!I20*'Matris 3'!I$9)","v":0},{"$f":"IF(ISERROR('Matris 3'!J20*'Matris 3'!J$9),\"\",'Matris 3'!J20*'Matris 3'!J$9)","v":0},{"$f":"IF(ISERROR('Matris 3'!K20*'Matris 3'!K$9),\"\",'Matris 3'!K20*'Matris 3'!K$9)","v":0},{"$f":"IF(ISERROR('Matris 3'!L20*'Matris 3'!L$9),\"\",'Matris 3'!L20*'Matris 3'!L$9)","v":0},{"$f":"IF(ISERROR('Matris 3'!M20*'Matris 3'!M$9),\"\",'Matris 3'!M20*'Matris 3'!M$9)","v":0},{"$f":"IF(ISERROR('Matris 3'!N20*'Matris 3'!N$9),\"\",'Matris 3'!N20*'Matris 3'!N$9)","v":0},{"$f":"IF(ISERROR('Matris 3'!O20*'Matris 3'!O$9),\"\",'Matris 3'!O20*'Matris 3'!O$9)","v":0},{"$f":"IF(ISERROR('Matris 3'!P20*'Matris 3'!P$9),\"\",'Matris 3'!P20*'Matris 3'!P$9)","v":0},{"$f":"IF(ISERROR('Matris 3'!Q20*'Matris 3'!Q$9),\"\",'Matris 3'!Q20*'Matris 3'!Q$9)","v":0},{"$f":"IF(ISERROR('Matris 3'!R20*'Matris 3'!R$9),\"\",'Matris 3'!R20*'Matris 3'!R$9)","v":""},{"$f":"IF(ISNUMBER('Matris 3'!S20),(SUM(C20:R20)),\"\")","v":0},{"$f":"IF((ISNUMBER('Matris 3'!T20)),(SUM(S20:S21)),\"\")","v":0}]
[null,"Lång sikt",{"$f":"IF(ISERROR('Matris 3'!C21*'Matris 3'!C$9),\"\",'Matris 3'!C21*'Matris 3'!C$9)","v":0},{"$f":"IF(ISERROR('Matris 3'!D21*'Matris 3'!D$9),\"\",'Matris 3'!D21*'Matris 3'!D$9)","v":0},{"$f":"IF(ISERROR('Matris 3'!E21*'Matris 3'!E$9),\"\",'Matris 3'!E21*'Matris 3'!E$9)","v":0},{"$f":"IF(ISERROR('Matris 3'!F21*'Matris 3'!F$9),\"\",'Matris 3'!F21*'Matris 3'!F$9)","v":0},{"$f":"IF(ISERROR('Matris 3'!G21*'Matris 3'!G$9),\"\",'Matris 3'!G21*'Matris 3'!G$9)","v":0},{"$f":"IF(ISERROR('Matris 3'!H21*'Matris 3'!H$9),\"\",'Matris 3'!H21*'Matris 3'!H$9)","v":0},{"$f":"IF(ISERROR('Matris 3'!I21*'Matris 3'!I$9),\"\",'Matris 3'!I21*'Matris 3'!I$9)","v":0},{"$f":"IF(ISERROR('Matris 3'!J21*'Matris 3'!J$9),\"\",'Matris 3'!J21*'Matris 3'!J$9)","v":0},{"$f":"IF(ISERROR('Matris 3'!K21*'Matris 3'!K$9),\"\",'Matris 3'!K21*'Matris 3'!K$9)","v":0},{"$f":"IF(ISERROR('Matris 3'!L21*'Matris 3'!L$9),\"\",'Matris 3'!L21*'Matris 3'!L$9)","v":0},{"$f":"IF(ISERROR('Matris 3'!M21*'Matris 3'!M$9),\"\",'Matris 3'!M21*'Matris 3'!M$9)","v":0},{"$f":"IF(ISERROR('Matris 3'!N21*'Matris 3'!N$9),\"\",'Matris 3'!N21*'Matris 3'!N$9)","v":0},{"$f":"IF(ISERROR('Matris 3'!O21*'Matris 3'!O$9),\"\",'Matris 3'!O21*'Matris 3'!O$9)","v":0},{"$f":"IF(ISERROR('Matris 3'!P21*'Matris 3'!P$9),\"\",'Matris 3'!P21*'Matris 3'!P$9)","v":0},{"$f":"IF(ISERROR('Matris 3'!Q21*'Matris 3'!Q$9),\"\",'Matris 3'!Q21*'Matris 3'!Q$9)","v":0},{"$f":"IF(ISERROR('Matris 3'!R21*'Matris 3'!R$9),\"\",'Matris 3'!R21*'Matris 3'!R$9)","v":""},{"$f":"IF(ISNUMBER('Matris 3'!S21),(SUM(C21:R21)),\"\")","v":0}]
[]
[null,null,null,null,null,null,null,null,"Legend ",{"$f":"'Skalor o färg'!J50","v":"> 12"}]
[null,null,null,null,null,null,null,null,null,{"$f":"'Skalor o färg'!I50","v":"9 till 12"}]
[null,null,null,null,null,null,null,null,null,{"$f":"'Skalor o färg'!H50","v":"3 till 9"}]
[null,null,null,null,null,null,null,null,null,{"$f":"'Skalor o färg'!G50","v":"-3 till 3"}]
[null,null,null,null,null,null,null,null,null,{"$f":"'Skalor o färg'!F50","v":"-9 till -3"}]
[null,null,null,null,null,null,null,null,null,{"$f":"'Skalor o färg'!E50","v":"-12 till -9"}]
[null,null,null,null,null,null,null,null,null,{"$f":"'Skalor o färg'!D50","v":"< -12"}]
[]
[]
["Objekt:",null,{"$f":"'Matris 1'!B1","v":"XYZ-köping"}]
[]
["Resultat av bedömning: "]
[]
[]
[]
[]
[]
[]
[]
[]
[]
[]
[]
[]
[]
[]
[]
["Bilagor:"]

{"sheet":"Resultat vikter","index":7,"n_rows":33,"n_cols":23,"rows_kept":33,"cut":false,"hidden":false,"merged":[[34,1,34,2],[7,22,7,23],[30,1,30,2],[31,1,31,2],[32,1,32,2],[33,1,33,2]]}
[{"$f":"'Matris 1'!B1","v":"XYZ-köping"},null,null,null,null,null,null,null,null,null,null,null,null,null,null,null,null,null,null,{"$f":"Inställningar!D1","v":"SAMLA version 2.5"}]
[]
[]
[null,null,null,null,null,null,null,null,null,null,null,null,null,null,null,null,null,null,null,null,null,"Vikt per hållbarhetsdimension","Summa vikt"]
[null,null,null,null,null,null,null,null,null,null,null,null,null,null,null,null,null,null,null,null,null,{"$f":"IF(ISBLANK(Inställningar!C18),\" \",Inställningar!C18)","v":"Ekologisk"},{"$f":"'Vikt dim 1'!S10","v":6}]
[null,null,null,null,null,null,null,null,null,null,null,null,null,null,null,null,null,null,null,null,null,{"$f":"IF(ISBLANK(Inställningar!C19),\" \",Inställningar!C19)","v":"Social"},{"$f":"'Vikt dim 2'!S10","v":5}]
[null,null,null,null,null,null,null,null,null,null,null,null,null,null,null,null,null,null,null,null,null,{"$f":"IF(ISBLANK(Inställningar!C20),\" \",Inställningar!C20)","v":"Ekonomisk"},{"$f":"'Vikt dim 3'!S10","v":4}]
[]
[]
[]
[]
[]
[]
[]
[]
[]
[null,null,null,null,null,null,null,null,null,null,null,null,null,null,null,null,null,null,null,null,null,"Vikt per kriterium","Vikt"]
[null,null,null,null,null,null,null,null,null,null,null,null,null,null,null,null,null,null,null,null,null,{"$f":"IF(ISBLANK(Inställningar!C24),\" \",Inställningar!C24)","v":"1. Utsläpp till luft"},{"$f":"IF('Matris 2'!C8=\"\",\"\",'Matris 3'!C9)","v":1}]
[null,null,null,null,null,null,null,null,null,null,null,null,null,null,null,null,null,null,null,null,null,{"$f":"IF(ISBLANK(Inställningar!C25),\" \",Inställningar!C25)","v":"2. Jord och mark"},{"$f":"IF('Matris 2'!D8=\"\",\"\",'Matris 3'!D9)","v":1}]
[null,null,null,null,null,null,null,null,null,null,null,null,null,null,null,null,null,null,null,null,null,{"$f":"IF(ISBLANK(Inställningar!C26),\" \",Inställningar!C26)","v":"3. Grundvatten"},{"$f":"IF('Matris 2'!E8=\"\",\"\",'Matris 3'!E9)","v":1}]
[null,null,null,null,null,null,null,null,null,null,null,null,null,null,null,null,null,null,null,null,null,{"$f":"IF(ISBLANK(Inställningar!C27),\" \",Inställningar!C27)","v":"4. Ytvatten och sediment"},{"$f":"IF('Matris 2'!F8=\"\",\"\",'Matris 3'!F9)","v":1}]
[null,null,null,null,null,null,null,null,null,null,null,null,null,null,null,null,null,null,null,null,null,{"$f":"IF(ISBLANK(Inställningar!C28),\" \",Inställningar!C28)","v":"5. Ekologi"},{"$f":"IF('Matris 2'!G8=\"\",\"\",'Matris 3'!G9)","v":1}]
[null,null,null,null,null,null,null,null,null,null,null,null,null,null,null,null,null,null,null,null,null,{"$f":"IF(ISBLANK(Inställningar!C29),\" \",Inställningar!C29)","v":"6. Naturresurser och avfall"},{"$f":"IF('Matris 2'!H8=\"\",\"\",'Matris 3'!H9)","v":1}]
[null,null,null,null,null,null,null,null,null,null,null,null,null,null,null,null,null,null,null,null,null,{"$f":"IF(ISBLANK(Inställningar!C30),\" \",Inställningar!C30)","v":"7. Hälsa och säkerhet"},{"$f":"IF('Matris 2'!I8=\"\",\"\",'Matris 3'!I9)","v":1}]
[null,null,null,null,null,null,null,null,null,null,null,null,null,null,null,null,null,null,null,null,null,{"$f":"IF(ISBLANK(Inställningar!C31),\" \",Inställningar!C31)","v":"8. Etik och jämlikhet"},{"$f":"IF('Matris 2'!J8=\"\",\"\",'Matris 3'!J9)","v":1}]
[null,null,null,null,null,null,null,null,null,null,null,null,null,null,null,null,null,null,null,null,null,{"$f":"IF(ISBLANK(Inställningar!C32),\" \",Inställningar!C32)","v":"9. Närmiljö"},{"$f":"IF('Matris 2'!K8=\"\",\"\",'Matris 3'!K9)","v":1}]
[null,null,null,null,null,null,null,null,null,null,null,null,null,null,null,null,null,null,null,null,null,{"$f":"IF(ISBLANK(Inställningar!C33),\" \",Inställningar!C33)","v":"10. Lokalsamhälle"},{"$f":"IF('Matris 2'!L8=\"\",\"\",'Matris 3'!L9)","v":1}]
[null,null,null,null,null,null,null,null,null,null,null,null,null,null,null,null,null,null,null,null,null,{"$f":"IF(ISBLANK(Inställningar!C34),\" \",Inställningar!C34)","v":"11. Osäkerhet och evidens"},{"$f":"IF('Matris 2'!M8=\"\",\"\",'Matris 3'!M9)","v":1}]
[null,null,null,null,null,null,null,null,null,null,null,null,null,null,null,null,null,null,null,null,null,{"$f":"IF(ISBLANK(Inställningar!C35),\" \",Inställningar!C35)","v":"12. Direkta kostnader och nyttor"},{"$f":"IF('Matris 2'!N8=\"\",\"\",'Matris 3'!N9)","v":1}]
[null,null,null,null,null,null,null,null,null,null,null,null,null,null,null,null,null,null,null,null,null,{"$f":"IF(ISBLANK(Inställningar!C36),\" \",Inställningar!C36)","v":"13. Indirekta kostnader och nyttor"},{"$f":"IF('Matris 2'!O8=\"\",\"\",'Matris 3'!O9)","v":1}]
[null,null,null,null,null,null,null,null,null,null,null,null,null,null,null,null,null,null,null,null,null,{"$f":"IF(ISBLANK(Inställningar!C37),\" \",Inställningar!C37)","v":"14. Inducerade kostnader och nyttor"},{"$f":"IF('Matris 2'!P8=\"\",\"\",'Matris 3'!P9)","v":1}]
[null,null,null,null,null,null,null,null,null,null,null,null,null,null,null,null,null,null,null,null,null,{"$f":"IF(ISBLANK(Inställningar!C38),\" \",Inställningar!C38)","v":"15. Beständighet och flexibilitet"},{"$f":"IF('Matris 2'!Q8=\"\",\"\",'Matris 3'!Q9)","v":1}]
[null,null,null,null,null,null,null,null,null,null,null,null,null,null,null,null,null,null,null,null,null,{"$f":"IF(ISBLANK(Inställningar!C39),\" \",Inställningar!C39)","v":" "},{"$f":"IF('Matris 2'!R8=\"\",\"\",'Matris 3'!R9)","v":""}]

{"sheet":"Resultat totalt","index":8,"n_rows":1,"n_cols":11,"rows_kept":1,"cut":false,"hidden":false,"merged":[]}
[{"$f":"'Matris 1'!B1","v":"XYZ-köping"},null,null,null,null,null,null,null,null,null,{"$f":"Inställningar!$D$1","v":"SAMLA version 2.5"}]

{"sheet":"Resultat detalj","index":9,"n_rows":30,"n_cols":26,"rows_kept":30,"cut":false,"hidden":false,"merged":[[33,1,33,2],[34,1,34,2],[30,22,30,23],[31,22,31,23],[32,22,32,23],[33,22,33,23],[34,22,34,23],[11,22,11,23],[21,22,21,23],[30,1,30,2],[31,1,31,2],[32,1,32,2]]}
[{"$f":"'Matris 1'!B1","v":"XYZ-köping"},null,null,null,null,null,null,null,null,null,null,null,null,null,null,null,null,null,null,{"$f":"Inställningar!D1","v":"SAMLA version 2.5"}]
[]
[null,null,null,null,null,null,null,null,null,null,null,null,null,null,null,null,null,null,null,null,null,"Summa kort sikt"]
[null,null,null,null,null,null,null,null,null,null,null,null,null,null,null,null,null,null,null,null,null,"Alternativ",{"$f":"Inställningar!$C$18","v":"Ekologisk"},{"$f":"Inställningar!$C$19","v":"Social"},{"$f":"Inställningar!$C$20","v":"Ekonomisk"},"Summa"]
[null,null,null,null,null,null,null,null,null,null,null,null,null,null,null,null,null,null,null,null,null,{"$f":"IF('Matris 1'!A8=\"\",\"\",'Matris 1'!A8)","v":"Nollalternativ: ingen åtgärd"},{"$f":"'Sum. dim 1'!S10","v":0},{"$f":"'Sum. dim 2'!S10","v":0},{"$f":"'Sum. dim 3'!S10","v":0},{"$f":"SUM(W5:Y5)","v":0}]
[null,null,null,null,null,null,null,null,null,null,null,null,null,null,null,null,null,null,null,null,null,{"$f":"IF('Matris 1'!A9=\"\",\"\",'Matris 1'!A9)","v":"Åtgärdsförslag 1"},{"$f":"'Sum. dim 1'!S12","v":0},{"$f":"'Sum. dim 2'!S12","v":0},{"$f":"'Sum. dim 3'!S12","v":0},0]
[null,null,null,null,null,null,null,null,null,null,null,null,null,null,null,null,null,null,null,null,null,{"$f":"IF('Matris 1'!A10=\"\",\"\",'Matris 1'!A10)","v":"Åtgärdsförslag 2"},{"$f":"'Sum. dim 1'!S14","v":0},{"$f":"'Sum. dim 2'!S14","v":0},{"$f":"'Sum. dim 3'!S14","v":0},0]
[null,null,null,null,null,null,null,null,null,null,null,null,null,null,null,null,null,null,null,null,null,{"$f":"IF('Matris 1'!A11=\"\",\"\",'Matris 1'!A11)","v":"Åtgärdsförslag 3"},{"$f":"'Sum. dim 1'!S16","v":0},{"$f":"'Sum. dim 2'!S16","v":0},{"$f":"'Sum. dim 3'!S16","v":0},0]
[null,null,null,null,null,null,null,null,null,null,null,null,null,null,null,null,null,null,null,null,null,{"$f":"IF('Matris 1'!A12=\"\",\"\",'Matris 1'!A12)","v":"Åtgärdsförslag 4"},{"$f":"'Sum. dim 1'!S18","v":0},{"$f":"'Sum. dim 2'!S18","v":0},{"$f":"'Sum. dim 3'!S18","v":0},0]
[null,null,null,null,null,null,null,null,null,null,null,null,null,null,null,null,null,null,null,null,null,{"$f":"IF('Matris 1'!A13=\"\",\"\",'Matris 1'!A13)","v":"Åtgärdsförslag 5"},{"$f":"'Sum. dim 1'!S20","v":0},{"$f":"'Sum. dim 2'!S20","v":0},{"$f":"'Sum. dim 3'!S20","v":0},0]
[]
[]
[null,null,null,null,null,null,null,null,null,null,null,null,null,null,null,null,null,null,null,null,null,"Summa lång sikt"]
[null,null,null,null,null,null,null,null,null,null,null,null,null,null,null,null,null,null,null,null,null,"Alternativ",{"$f":"Inställningar!$C$18","v":"Ekologisk"},{"$f":"Inställningar!$C$19","v":"Social"},{"$f":"Inställningar!$C$20","v":"Ekonomisk"},"Summa"]
[null,null,null,null,null,null,null,null,null,null,null,null,null,null,null,null,null,null,null,null,null,{"$f":"IF('Matris 1'!A8=\"\",\"\",'Matris 1'!A8)","v":"Nollalternativ: ingen åtgärd"},{"$f":"'Sum. dim 1'!S11","v":0},{"$f":"'Sum. dim 2'!S11","v":0},{"$f":"'Sum. dim 3'!S11","v":0},{"$f":"SUM(W15:Y15)","v":0}]
[null,null,null,null,null,null,null,null,null,null,null,null,null,null,null,null,null,null,null,null,null,{"$f":"IF('Matris 1'!A9=\"\",\"\",'Matris 1'!A9)","v":"Åtgärdsförslag 1"},{"$f":"'Sum. dim 1'!S13","v":0},{"$f":"'Sum. dim 2'!S13","v":0},{"$f":"'Sum. dim 3'!S13","v":0},0]
[null,null,null,null,null,null,null,null,null,null,null,null,null,null,null,null,null,null,null,null,null,{"$f":"IF('Matris 1'!A10=\"\",\"\",'Matris 1'!A10)","v":"Åtgärdsförslag 2"},{"$f":"'Sum. dim 1'!S15","v":0},{"$f":"'Sum. dim 2'!S15","v":0},{"$f":"'Sum. dim 3'!S15","v":0},0]
[null,null,null,null,null,null,null,null,null,null,null,null,null,null,null,null,null,null,null,null,null,{"$f":"IF('Matris 1'!A11=\"\",\"\",'Matris 1'!A11)","v":"Åtgärdsförslag 3"},{"$f":"'Sum. dim 1'!S17","v":0},{"$f":"'Sum. dim 2'!S17","v":0},{"$f":"'Sum. dim 3'!S17","v":0},0]
[null,null,null,null,null,null,null,null,null,null,null,null,null,null,null,null,null,null,null,null,null,{"$f":"IF('Matris 1'!A12=\"\",\"\",'Matris 1'!A12)","v":"Åtgärdsförslag 4"},{"$f":"'Sum. dim 1'!S19","v":0},{"$f":"'Sum. dim 2'!S19","v":0},{"$f":"'Sum. dim 3'!S19","v":0},0]
[null,null,null,null,null,null,null,null,null,null,null,null,null,null,null,null,null,null,null,null,null,{"$f":"IF('Matris 1'!A13=\"\",\"\",'Matris 1'!A13)","v":"Åtgärdsförslag 5"},{"$f":"'Sum. dim 1'!S21","v":0},{"$f":"'Sum. dim 2'!S21","v":0},{"$f":"'Sum. dim 3'!S21","v":0},0]
[]
[]
[null,null,null,null,null,null,null,null,null,null,null,null,null,null,null,null,null,null,null,null,null,"Summa totalt"]
[null,null,null,null,null,null,null,null,null,null,null,null,null,null,null,null,null,null,null,null,null,"Alternativ",{"$f":"Inställningar!$C$18","v":"Ekologisk"},{"$f":"Inställningar!$C$19","v":"Social"},{"$f":"Inställningar!$C$20","v":"Ekonomisk"},"Summa"]
[null,null,null,null,null,null,null,null,null,null,null,null,null,null,null,null,null,null,null,null,null,{"$f":"IF('Matris 1'!A8=\"\",\"\",'Matris 1'!A8)","v":"Nollalternativ: ingen åtgärd"},{"$f":"SUM('Sum. dim 1'!T10:T11)","v":0},{"$f":"SUM('Sum. dim 2'!T10:T11)","v":0},{"$f":"SUM('Sum. dim 3'!T10:T11)","v":0},{"$f":"SUM(W25:Y25)","v":0}]
[null,null,null,null,null,null,null,null,null,null,null,null,null,null,null,null,null,null,null,null,null,{"$f":"IF('Matris 1'!A9=\"\",\"\",'Matris 1'!A9)","v":"Åtgärdsförslag 1"},{"$f":"SUM('Sum. dim 1'!T12:T13)","v":0},{"$f":"SUM('Sum. dim 2'!T12:T13)","v":0},{"$f":"SUM('Sum. dim 3'!T12:T13)","v":0},0]
[null,null,null,null,null,null,null,null,null,null,null,null,null,null,null,null,null,null,null,null,null,{"$f":"IF('Matris 1'!A10=\"\",\"\",'Matris 1'!A10)","v":"Åtgärdsförslag 2"},{"$f":"SUM('Sum. dim 1'!T14:T15)","v":0},{"$f":"SUM('Sum. dim 2'!T14:T15)","v":0},{"$f":"SUM('Sum. dim 3'!T14:T15)","v":0},0]
[null,null,null,null,null,null,null,null,null,null,null,null,null,null,null,null,null,null,null,null,null,{"$f":"IF('Matris 1'!A11=\"\",\"\",'Matris 1'!A11)","v":"Åtgärdsförslag 3"},{"$f":"SUM('Sum. dim 1'!T16:T17)","v":0},{"$f":"SUM('Sum. dim 2'!T16:T17)","v":0},{"$f":"SUM('Sum. dim 3'!T16:T17)","v":0},0]
[null,null,null,null,null,null,null,null,null,null,null,null,null,null,null,null,null,null,null,null,null,{"$f":"IF('Matris 1'!A12=\"\",\"\",'Matris 1'!A12)","v":"Åtgärdsförslag 4"},{"$f":"SUM('Sum. dim 1'!T18:T19)","v":0},{"$f":"SUM('Sum. dim 2'!T18:T19)","v":0},{"$f":"SUM('Sum. dim 3'!T18:T19)","v":0},0]
[null,null,null,null,null,null,null,null,null,null,null,null,null,null,null,null,null,null,null,null,null,{"$f":"IF('Matris 1'!A13=\"\",\"\",'Matris 1'!A13)","v":"Åtgärdsförslag 5"},{"$f":"SUM('Sum. dim 1'!T20:T21)","v":0},{"$f":"SUM('Sum. dim 2'!T20:T21)","v":0},{"$f":"SUM('Sum. dim 3'!T20:T21)","v":0},0]

{"sheet":"Kriterier","index":10,"n_rows":195,"n_cols":9,"rows_kept":195,"cut":false,"hidden":true,"merged":[]}
["Kriterier"]
[]
[]
[]
[]
[]
[]
[]
[]
[]
["Fördefinierade kriterieuppsättningar:",{"$f":"A23","v":"SGI Vägledning 7, riskvärdering (2022)"},"Typ av kriterium:","Poäng"]
[null,{"$f":"A39","v":"SuRF-UK indicators/criteria (2020)"},null,"Kvantitativt"]
[null,{"$f":"A55","v":"SCORE (Chalmers)"}]
[null,{"$f":"A71","v":"Äldre, traditionell kriterieuppsättning"}]
[null,{"$f":"A87","v":"Klorerade kolväten (NV 5663; Sweco)"}]
[null,{"$f":"A103","v":"MKA (NV 5891; Chalmers)"}]
[null,{"$f":"A119","v":"GRAF (NV 5892; FB Engineering)"}]
[null,{"$f":"A135","v":"Sveriges miljökvalitetsmål"}]
[null,{"$f":"A151","v":"FN:s globala hållbarhetsmål (Agenda 2030)"}]
[null,{"$f":"A167","v":"Global Reporting Initiative (GRI)"}]
[null,{"$f":"A183","v":"SMOCS Sustainability Criteria"}]
["Kriterieuppsättning","Hållbarhetsdimension","Kriterium","Dim.nr.","Typ","Enhet","Min-värde","Max-värde","Log-skala"]
["SGI Vägledning 7, riskvärdering (2022)","Ekologisk","1. Utsläpp till luft",1,1,null,null,null,false]
[null,"Social","2. Jord och mark",1,1,null,null,null,false]
[null,"Ekonomisk","3. Grundvatten",1,1,null,null,null,false]
[null,null,"4. Ytvatten och sediment",1,1,null,null,null,false]
[null,null,"5. Ekologi",1,1,null,null,null,false]
[null,null,"6. Naturresurser och avfall",1,1,null,null,null,false]
[null,null,"7. Hälsa och säkerhet",2,1,null,null,null,false]
[null,null,"8. Etik och jämlikhet",2,1,null,null,null,false]
[null,null,"9. Närmiljö",2,1,null,null,null,false]
[null,null,"10. Lokalsamhälle",2,1,null,null,null,false]
[null,null,"11. Osäkerhet och evidens",2,1,null,null,null,false]
[null,null,"12. Direkta kostnader och nyttor",3,1,null,null,null,false]
[null,null,"13. Indirekta kostnader och nyttor",3,1,null,null,null,false]
[null,null,"14. Inducerade kostnader och nyttor",3,1,null,null,null,false]
[null,null,"15. Beständighet och flexibilitet",3,1,null,null,null,false]
[]
["SuRF-UK indicators/criteria (2020)","Environmental","1. Emissions to air",1,1,null,null,null,false]
[null,"Social","2. Soil and ground conditions",1,1,null,null,null,false]
[null,"Economic","3. Groundwater and surface water",1,1,null,null,null,false]
[null,null,"4. Ecology",1,1,null,null,null,false]
[null,null,"5. Natural resources and waste",1,1,null,null,null,false]
[null,null,"6. Human health and safety",2,1,null,null,null,false]
[null,null,"7. Ethics and equity",2,1,null,null,null,false]
[null,null,"8. Neighbourhoods and locality",2,1,null,null,null,false]
[null,null,"9. Communities and community involvement",2,1,null,null,null,false]
[null,null,"10. Uncertainty and evidence",2,1,null,null,null,false]
[null,null,"11. Direct economic costs and benefits",3,1,null,null,null,false]
[null,null,"12. Indirect economic costs and benefits",3,1,null,null,null,false]
[null,null,"13. Employment and employment capital",3,1,null,null,null,false]
[null,null,"14. Induced economic costs and benefits",3,1,null,null,null,false]
[null,null,"15. Project lifespan and flexibility",3,1,null,null,null,false]
[]
["SCORE (Chalmers)","Environmental","1. Soil",1,1,null,null,null,false]
[null,"Social","2. Flora and fauna",1,1,null,null,null,false]
[null,"Economic","3. Groundwater",1,1,null,null,null,false]
[null,null,"4. Surface water",1,1,null,null,null,false]
[null,null,"5. Sediment",1,1,null,null,null,false]
[null,null,"6. Air",1,1,null,null,null,false]
[null,null,"7. Non-renewable natural resources",1,1,null,null,null,false]
[null,null,"8. Non-recyclable waste",1,1,null,null,null,false]
[null,null,"9. Local environment quality and amenity",2,1,null,null,null,false]
[null,null,"10. Cultural heritage",2,1,null,null,null,false]
[null,null,"11. Health and safety",2,1,null,null,null,false]
[null,null,"12. Equity",2,1,null,null,null,false]
[null,null,"13. Local participation",2,1,null,null,null,false]
[null,null,"14. Local acceptance",2,1,null,null,null,false]
[null,null,"15. Net present value (from CBA)",3,1,null,null,null,false]
[]
["Äldre, traditionell kriterieuppsättning","Ospecificerad","1. Måluppfyllelse",1,1,null,null,null,false]
[null,null,"2. Kostnad",1,1,null,null,null,false]
[null,null,"3. Risker",1,1,null,null,null,false]
[null,null,"4. Omgivningspåverkan",1,1,null,null,null,false]
[null,null,"5. Prövning",1,1,null,null,null,false]
[null,null,"6. Kulturvärden",1,1,null,null,null,false]
[null,null,"7. Landskap",1,1,null,null,null,false]
[null,null,"8. Övriga intressen",1,1,null,null,null,false]
[]
[]
[]
[]
[]
[]
[]
[]
["Klorerade kolväten (NV 5663; Sweco)","Ospecificerad","1. Skydd av människors hälsa och miljön",1,1,null,null,null,false]
[null,null,"2. Uppfyllande av myndighetskrav",1,1,null,null,null,false]
[null,null,"3. Långtidseffekt och beständighet",1,1,null,null,null,false]
[null,null,"4. Redukt. av toxic., mobil., vol. och mängd",1,1,null,null,null,false]
[null,null,"5. Korttidseffekt",1,1,null,null,null,false]
[null,null,"6. Genomförbarhet",1,1,null,null,null,false]
[null,null,"7a. Kapitalkostnader",1,1,null,null,null,false]
[null,null,"7b. Årliga D & U-kostnader",1,1,null,null,null,false]
[null,null,"7c. Bedömd efterbehandlingstid",1,1,null,null,null,false]
[null,null,"7d. Total nuvärdeskostnad",1,1,null,null,null,false]
[null,null,"8. Myndighetsacceptans",1,1,null,null,null,false]
[null,null,"9. Samhällsacceptans",1,1,null,null,null,false]
[]
[]
[]
[]
["MKA (NV 5891; Chalmers)","Ekologisk","1. Mark",1,1,null,null,null,false]
[null,"Socio-kulturell","2. Grundvatten",1,1,null,null,null,false]
[null,"Ekonomisk","3. Ytvatten",1,1,null,null,null,false]
[null,null,"4. Luft",1,1,null,null,null,false]
[null,null,"5. Sediment",1,1,null,null,null,false]
[null,null,"6. Förbrukning av naturresurser",1,1,null,null,null,false]
[null,null,"7. Rättvisa och acceptans",2,1,null,null,null,false]
[null,null,"8. Hälsa med avseende på områdets föroreningar",2,1,null,null,null,false]
[null,null,"9. Hälsa med avseende på åtgärdens utförande",2,1,null,null,null,false]
[null,null,"10. Kulturmiljö",2,1,null,null,null,false]
[null,null,"11. Rekreation",2,1,null,null,null,false]
[null,null,"12. Omgivningens markanvändning",2,1,null,null,null,false]
[null,null,"13. Områdets markanvändning",2,1,null,null,null,false]
[null,null,"14. Samhällsekonomisk lönsamhet (från KNA)",3,1,null,null,null,false]
[]
[]
["GRAF (NV 5892; FB Engineering)","Miljö/ekologi","1. Föroreningars farlighet",1,1,null,null,null,false]
[null,"Sociokultur","2. Exponeringsgrad",1,1,null,null,null,false]
[null,"Ekonomi","3. Spridningsförutsättningar",1,1,null,null,null,false]
[null,null,"4. Oro",2,1,null,null,null,false]
[null,null,"5. Beteendeförändringar",2,1,null,null,null,false]
[null,null,"6. Delaktighet",2,1,null,null,null,false]
[null,null,"7. Pågående/nuvarande värde",3,1,null,null,null,false]
[null,null,"8. Potentiellt/förväntat värde",3,1,null,null,null,false]
[null,null,"9. Skyddsvärde",3,1,null,null,null,false]
[]
[]
[]
[]
[]
[]
[]
["Sveriges miljökvalitetsmål","Miljökvalitet","1. Begränsad klimatpåverkan",1,1,null,null,null,false]
[null,null,"2. Frisk luft",1,1,null,null,null,false]
[null,null,"3. Bara naturlig försurning",1,1,null,null,null,false]
[null,null,"4. Giftfri miljö",1,1,null,null,null,false]
[null,null,"5. Skyddande ozonskikt",1,1,null,null,null,false]
[null,null,"6. Säker strålmiljö",1,1,null,null,null,false]
[null,null,"7. Ingen övergödning",1,1,null,null,null,false]
[null,null,"8. Levande sjöar och vattendrag",1,1,null,null,null,false]
[null,null,"9. Grundvatten av god kvalitet",1,1,null,null,null,false]
[null,null,"10. Hav i balans samt levande kust och skärgård",1,1,null,null,null,false]
[null,null,"11. Myllrande våtmarker",1,1,null,null,null,false]
[null,null,"12. Levande skogar",1,1,null,null,null,false]
[null,null,"13. Ett rikt odlingslandskap",1,1,null,null,null,false]
[null,null,"14. Storslagen fjällmiljö",1,1,null,null,null,false]
[null,null,"15. God bebyggd miljö",1,1,null,null,null,false]
[null,null,"16. Ett rikt växt- och djurliv",1,1,null,null,null,false]
["FN:s globala hållbarhetsmål (Agenda 2030)","Ospecificerad","1. Ingen fattigdom",1,1,null,null,null,false]
[null,null,"2. Ingen hunger",1,1,null,null,null,false]
[null,null,"3. Hälsa och välbefinnande",1,1,null,null,null,false]
[null,null,"4. God utbildning för alla",1,1,null,null,null,false]
[null,null,"5. Jämställdhet",1,1,null,null,null,false]
[null,null,"6. Rent vatten och sanitet för alla",1,1,null,null,null,false]
[null,null,"7. Hållbar energi för alla",1,1,null,null,null,false]
[null,null,"8. Anständiga arbetsvillkor och ekonomisk tillväxt",1,1,null,null,null,false]
[null,null,"9. Hållbar industri, innovationer och infrastruktur",1,1,null,null,null,false]
[null,null,"10. Minskad ojämlikhet",1,1,null,null,null,false]
[null,null,"11. Hållbara städer och samhällen",1,1,null,null,null,false]
[null,null,"12. Hållbar konsumtion och produktion",1,1,null,null,null,false]
[null,null,"13. Bekämpa klimatförändringarna",1,1,null,null,null,false]
[null,null,"14. Hav och marina resurser",1,1,null,null,null,false]
[null,null,"15. Ekosystem och biologisk mångfald",1,1,null,null,null,false]
[null,null,"16-17. Fredliga samhällen & Globalt partnerskap",1,1,null,null,null,false]
["Global Reporting Initiative (GRI)","Environmental","1. Materials",1,1,null,null,null,false]
[null,"Social","2. Energy",1,1,null,null,null,false]
[null,"Economic","3. Water",1,1,null,null,null,false]
[null,null,"4. Biodiversity",1,1,null,null,null,false]
[null,null,"5. Emissions, effluent and waste",1,1,null,null,null,false]
[null,null,"6. Products and services",1,1,null,null,null,false]
[null,null,"7. Compliance",1,1,null,null,null,false]
[null,null,"8. Transport",1,1,null,null,null,false]
[null,null,"9. Overall",1,1,null,null,null,false]
[null,null,"10. Labour practices",2,1,null,null,null,false]
[null,null,"11. Human rights",2,1,null,null,null,false]
[null,null,"12. Society",2,1,null,null,null,false]
[null,null,"13. Product responsibility",2,1,null,null,null,false]
[null,null,"14. Economic performance",3,1,null,null,null,false]
[null,null,"15. Market presence",3,1,null,null,null,false]
[null,null,"16. Indirect ekonomic impacts",3,1,null,null,null,false]
["SMOCS Sustainability Criteria","Environmental","1. Contamination, local effects",1,1,null,null,null,false]
[null,"Social","2. Consumption of resources",1,1,null,null,null,false]
[null,"Economic","3. Impacts on biodiversity",1,1,null,null,null,false]
[null,null,"4. Emissions, regional/national effects",1,1,null,null,null,false]
[null,null,"5. Human health",2,1,null,null,null,false]
[null,null,"6. Public acceptance",2,1,null,null,null,false]
[null,null,"7. Landscape features",2,1,null,null,null,false]
[null,null,"8. Landuse conflicts",2,1,null,null,null,false]
[null,null,"9. Areas of special interests",2,1,null,null,null,false]
[null,null,"10. Investment costs",3,1,null,null,null,false]
[null,null,"11. Life-cycle costs",3,1,null,null,null,false]
[null,null,"12. Local/regional economy",3,1,null,null,null,false]
[null,null,"13. National economy",3,1,null,null,null,false]

{"sheet":"Skalor o färg","index":11,"n_rows":50,"n_cols":11,"rows_kept":50,"cut":false,"hidden":true,"merged":[]}
["Poängskala, viktningsskala och färgsättning"]
[]
[]
["Poängskala:","-2 till +2"]
[null,"-5 till +5"]
[null,"-10 till +10"]
[]
["Vald maxpoäng:",{"$f":"OFFSET($B$10,Inställningar!$K$12,0,1,1)","v":5}]
[]
["Poängspann","Max-poäng"]
[4,2]
[10,5]
[20,10]
[]
["Viktningsskala:","0 till 3"]
[null,"0 till 10"]
[]
["Vald maxvikt:",{"$f":"IF(Inställningar!K14=1,3,10)","v":3}]
[]
[]
["Färgsättning matris 3"]
[]
["P-min / P-max","Nummer","min","röd -3","röd -2","röd -1","gul","grön +1","grön +2","grön +3","max"]
["-2 / 2 :",1,-2,-2,-2,-1,0,1,2,2,2]
["-5 / 5 :",2,-5,-4,-2,-1,0,1,2,4,5]
["-10 / 10 :",3,-10,-8,-5,-2,0,2,5,8,10]
["Aktuell färgskala:",null,{"$f":"VLOOKUP(Inställningar!$K$12,$B$24:$K$26,2,FALSE)","v":-5},{"$f":"VLOOKUP(Inställningar!$K$12,$B$24:$K$26,3,FALSE)","v":-4},{"$f":"VLOOKUP(Inställningar!$K$12,$B$24:$K$26,4,FALSE)","v":-2},{"$f":"VLOOKUP(Inställningar!$K$12,$B$24:$K$26,5,FALSE)","v":-1},{"$f":"VLOOKUP(Inställningar!$K$12,$B$24:$K$26,6,FALSE)","v":0},{"$f":"VLOOKUP(Inställningar!$K$12,$B$24:$K$26,7,FALSE)","v":1},{"$f":"VLOOKUP(Inställningar!$K$12,$B$24:$K$26,8,FALSE)","v":2},{"$f":"VLOOKUP(Inställningar!$K$12,$B$24:$K$26,9,FALSE)","v":4},{"$f":"VLOOKUP(Inställningar!$K$12,$B$24:$K$26,10,FALSE)","v":5}]
[]
["Färglegend:",null,null,{"$f":"CONCATENATE(\"< \",TEXT(D27,0))","v":"< -4"},{"$f":"CONCATENATE(TEXT(D27,0),\" till \",TEXT(E27,0))","v":"-4 till -2"},{"$f":"CONCATENATE(TEXT(E27,0),\" till \",TEXT(F27,0))","v":"-2 till -1"},{"$f":"CONCATENATE(TEXT(F27,0),\" till \",TEXT(H27,0))","v":"-1 till 1"},{"$f":"CONCATENATE(TEXT(H27,0),\" till \",TEXT(I27,0))","v":"1 till 2"},{"$f":"CONCATENATE(TEXT(I27,0),\" till \",TEXT(J27,0))","v":"2 till 4"},{"$f":"CONCATENATE(\"> \",TEXT(J27,0))","v":"> 4"}]
[]
[]
[]
[]
["Färgsättning matris 4"]
[]
["P-skala / V-skala",{"$f":"'Skalor o färg'!B15","v":"0 till 3"},{"$f":"'Skalor o färg'!B16","v":"0 till 10"}]
[{"$f":"'Skalor o färg'!B4","v":"-2 till +2"},1,2]
[{"$f":"'Skalor o färg'!B5","v":"-5 till +5"},3,4]
[{"$f":"'Skalor o färg'!B6","v":"-10 till +10"},5,6]
[]
["P-min / V-max","Nummer","min","röd -3","röd -2","röd -1","gul","grön +1","grön +2","grön +3","max"]
["-2 / 3 :",1,-6,-5,-3,-1,0,1,3,5,6]
["-2 / 10 :",2,-20,-15,-10,-5,0,5,10,15,20]
["-5 / 3 :",3,-15,-12,-9,-3,0,3,9,12,15]
["-5 / 10 :",4,-50,-40,-20,-5,0,5,20,40,50]
["-10 / 3 :",5,-30,-25,-15,-5,0,5,15,25,30]
["-10 / 10 :",6,-100,-80,-50,-20,0,20,50,80,100]
["Aktuell färgskala:",null,{"$f":"VLOOKUP(OFFSET('Skalor o färg'!$A$36,Inställningar!$K$12,Inställningar!$K$14,1,1),$B$42:$K$47,2,FALSE)","v":-15},{"$f":"VLOOKUP(OFFSET('Skalor o färg'!$A$36,Inställningar!$K$12,Inställningar!$K$14,1,1),$B$42:$K$47,3,FALSE)","v":-12},{"$f":"VLOOKUP(OFFSET('Skalor o färg'!$A$36,Inställningar!$K$12,Inställningar!$K$14,1,1),$B$42:$K$47,4,FALSE)","v":-9},{"$f":"VLOOKUP(OFFSET('Skalor o färg'!$A$36,Inställningar!$K$12,Inställningar!$K$14,1,1),$B$42:$K$47,5,FALSE)","v":-3},{"$f":"VLOOKUP(OFFSET('Skalor o färg'!$A$36,Inställningar!$K$12,Inställningar!$K$14,1,1),$B$42:$K$47,6,FALSE)","v":0},{"$f":"VLOOKUP(OFFSET('Skalor o färg'!$A$36,Inställningar!$K$12,Inställningar!$K$14,1,1),$B$42:$K$47,7,FALSE)","v":3},{"$f":"VLOOKUP(OFFSET('Skalor o färg'!$A$36,Inställningar!$K$12,Inställningar!$K$14,1,1),$B$42:$K$47,8,FALSE)","v":9},{"$f":"VLOOKUP(OFFSET('Skalor o färg'!$A$36,Inställningar!$K$12,Inställningar!$K$14,1,1),$B$42:$K$47,9,FALSE)","v":12},{"$f":"VLOOKUP(OFFSET('Skalor o färg'!$A$36,Inställningar!$K$12,Inställningar!$K$14,1,1),$B$42:$K$47,10,FALSE)","v":15}]
[]
["Färglegend:",null,null,{"$f":"CONCATENATE(\"< \",TEXT(D48,0))","v":"< -12"},{"$f":"CONCATENATE(TEXT(D48,0),\" till \",TEXT(E48,0))","v":"-12 till -9"},{"$f":"CONCATENATE(TEXT(E48,0),\" till \",TEXT(F48,0))","v":"-9 till -3"},{"$f":"CONCATENATE(TEXT(F48,0),\" till \",TEXT(H48,0))","v":"-3 till 3"},{"$f":"CONCATENATE(TEXT(H48,0),\" till \",TEXT(I48,0))","v":"3 till 9"},{"$f":"CONCATENATE(TEXT(I48,0),\" till \",TEXT(J48,0))","v":"9 till 12"},{"$f":"CONCATENATE(\"> \",TEXT(J48,0))","v":"> 12"}]

{"sheet":"Sum. dim 1","index":12,"n_rows":27,"n_cols":20,"rows_kept":27,"cut":false,"hidden":true,"merged":[[11,0,12,0],[11,19,12,19],[0,0,0,1],[0,2,0,18],[3,0,3,14],[4,0,4,3],[6,0,6,1],[6,18,8,18],[6,19,7,19],[7,0,7,1],[8,0,8,1],[9,0,10,0],[9,19,10,19],[19,0,20,0],[19,19,20,19],[13,0,14,0],[13,19,14,19],[15,0,16,0],[15,19,16,19],[17,0,18,0],[17,19,18,19]]}
["Objekt:",null,{"$f":"'Matris 1'!B1","v":"XYZ-köping"}]
[]
["Övergripande mål:"]
[{"$f":"'Matris 1'!A4","v":0},null,null,null,null,null,null,null,null,null,null,null,null,null,null,null,null,"Skriv ut i A3-format, liggande."]
["Matris 4a - summering dimension:"]
[{"$f":"Inställningar!C18","v":"Ekologisk"}]
["Åtgärd",null,{"$f":"Inställningar!K47","v":"Ekologisk"},{"$f":"Inställningar!L47","v":"Ekologisk"},{"$f":"Inställningar!M47","v":"Ekologisk"},{"$f":"Inställningar!N47","v":"Ekologisk"},{"$f":"Inställningar!O47","v":"Ekologisk"},{"$f":"Inställningar!P47","v":"Ekologisk"},{"$f":"Inställningar!Q47","v":"Social"},{"$f":"Inställningar!R47","v":"Social"},{"$f":"Inställningar!S47","v":"Social"},{"$f":"Inställningar!T47","v":"Social"},{"$f":"Inställningar!U47","v":"Social"},{"$f":"Inställningar!V47","v":"Ekonomisk"},{"$f":"Inställningar!W47","v":"Ekonomisk"},{"$f":"Inställningar!X47","v":"Ekonomisk"},{"$f":"Inställningar!Y47","v":"Ekonomisk"},{"$f":"Inställningar!Z47","v":""},"Delsumma","Summa"]
[null,null,{"$f":"'Matris 2'!C8","v":"1. Utsläpp till luft"},{"$f":"'Matris 2'!D8","v":"2. Jord och mark"},{"$f":"'Matris 2'!E8","v":"3. Grundvatten"},{"$f":"'Matris 2'!F8","v":"4. Ytvatten och sediment"},{"$f":"'Matris 2'!G8","v":"5. Ekologi"},{"$f":"'Matris 2'!H8","v":"6. Naturresurser och avfall"},{"$f":"'Matris 2'!I8","v":"7. Hälsa och säkerhet"},{"$f":"'Matris 2'!J8","v":"8. Etik och jämlikhet"},{"$f":"'Matris 2'!K8","v":"9. Närmiljö"},{"$f":"'Matris 2'!L8","v":"10. Lokalsamhälle"},{"$f":"'Matris 2'!M8","v":"11. Osäkerhet och evidens"},{"$f":"'Matris 2'!N8","v":"12. Direkta kostnader och nyttor"},{"$f":"'Matris 2'!O8","v":"13. Indirekta kostnader och nyttor"},{"$f":"'Matris 2'!P8","v":"14. Inducerade kostnader och nyttor"},{"$f":"'Matris 2'!Q8","v":"15. Beständighet och flexibilitet"},{"$f":"'Matris 2'!R8","v":""}]
["Vikt",null,{"$f":"'Matris 3'!C9","v":1},{"$f":"'Matris 3'!D9","v":1},{"$f":"'Matris 3'!E9","v":1},{"$f":"'Matris 3'!F9","v":1},{"$f":"'Matris 3'!G9","v":1},{"$f":"'Matris 3'!H9","v":1},{"$f":"'Matris 3'!I9","v":1},{"$f":"'Matris 3'!J9","v":1},{"$f":"'Matris 3'!K9","v":1},{"$f":"'Matris 3'!L9","v":1},{"$f":"'Matris 3'!M9","v":1},{"$f":"'Matris 3'!N9","v":1},{"$f":"'Matris 3'!O9","v":1},{"$f":"'Matris 3'!P9","v":1},{"$f":"'Matris 3'!Q9","v":1},{"$f":"'Matris 3'!R9","v":0}]
[{"$f":"'Matris 1'!A8","v":"Nollalternativ: ingen åtgärd"},"Kort sikt",{"$f":"IF(C$7=$A$6,'Matris 4'!C10,0)","v":0},{"$f":"IF(D$7=$A$6,'Matris 4'!D10,0)","v":0},{"$f":"IF(E$7=$A$6,'Matris 4'!E10,0)","v":0},{"$f":"IF(F$7=$A$6,'Matris 4'!F10,0)","v":0},{"$f":"IF(G$7=$A$6,'Matris 4'!G10,0)","v":0},{"$f":"IF(H$7=$A$6,'Matris 4'!H10,0)","v":0},{"$f":"IF(I$7=$A$6,'Matris 4'!I10,0)","v":0},{"$f":"IF(J$7=$A$6,'Matris 4'!J10,0)","v":0},{"$f":"IF(K$7=$A$6,'Matris 4'!K10,0)","v":0},{"$f":"IF(L$7=$A$6,'Matris 4'!L10,0)","v":0},{"$f":"IF(M$7=$A$6,'Matris 4'!M10,0)","v":0},{"$f":"IF(N$7=$A$6,'Matris 4'!N10,0)","v":0},{"$f":"IF(O$7=$A$6,'Matris 4'!O10,0)","v":0},{"$f":"IF(P$7=$A$6,'Matris 4'!P10,0)","v":0},{"$f":"IF(Q$7=$A$6,'Matris 4'!Q10,0)","v":0},{"$f":"IF(R$7=$A$6,'Matris 4'!R10,0)","v":0},{"$f":"IF(ISNUMBER('Matris 3'!S10),(SUM(C10:R10)),\"\")","v":0},{"$f":"IF((ISNUMBER('Matris 3'!T10)),(SUM(S10:S11)),\"\")","v":0}]
[null,"Lång sikt",{"$f":"IF(C$7=$A$6,'Matris 4'!C11,0)","v":0},{"$f":"IF(D$7=$A$6,'Matris 4'!D11,0)","v":0},{"$f":"IF(E$7=$A$6,'Matris 4'!E11,0)","v":0},{"$f":"IF(F$7=$A$6,'Matris 4'!F11,0)","v":0},{"$f":"IF(G$7=$A$6,'Matris 4'!G11,0)","v":0},{"$f":"IF(H$7=$A$6,'Matris 4'!H11,0)","v":0},{"$f":"IF(I$7=$A$6,'Matris 4'!I11,0)","v":0},{"$f":"IF(J$7=$A$6,'Matris 4'!J11,0)","v":0},{"$f":"IF(K$7=$A$6,'Matris 4'!K11,0)","v":0},{"$f":"IF(L$7=$A$6,'Matris 4'!L11,0)","v":0},{"$f":"IF(M$7=$A$6,'Matris 4'!M11,0)","v":0},{"$f":"IF(N$7=$A$6,'Matris 4'!N11,0)","v":0},{"$f":"IF(O$7=$A$6,'Matris 4'!O11,0)","v":0},{"$f":"IF(P$7=$A$6,'Matris 4'!P11,0)","v":0},{"$f":"IF(Q$7=$A$6,'Matris 4'!Q11,0)","v":0},{"$f":"IF(R$7=$A$6,'Matris 4'!R11,0)","v":0},{"$f":"IF(ISNUMBER('Matris 3'!S11),(SUM(C11:R11)),\"\")","v":0}]
[{"$f":"'Matris 1'!A9","v":"Åtgärdsförslag 1"},"Kort sikt",{"$f":"IF(C$7=$A$6,'Matris 4'!C12,0)","v":0},{"$f":"IF(D$7=$A$6,'Matris 4'!D12,0)","v":0},{"$f":"IF(E$7=$A$6,'Matris 4'!E12,0)","v":0},{"$f":"IF(F$7=$A$6,'Matris 4'!F12,0)","v":0},{"$f":"IF(G$7=$A$6,'Matris 4'!G12,0)","v":0},{"$f":"IF(H$7=$A$6,'Matris 4'!H12,0)","v":0},{"$f":"IF(I$7=$A$6,'Matris 4'!I12,0)","v":0},{"$f":"IF(J$7=$A$6,'Matris 4'!J12,0)","v":0},{"$f":"IF(K$7=$A$6,'Matris 4'!K12,0)","v":0},{"$f":"IF(L$7=$A$6,'Matris 4'!L12,0)","v":0},{"$f":"IF(M$7=$A$6,'Matris 4'!M12,0)","v":0},{"$f":"IF(N$7=$A$6,'Matris 4'!N12,0)","v":0},{"$f":"IF(O$7=$A$6,'Matris 4'!O12,0)","v":0},{"$f":"IF(P$7=$A$6,'Matris 4'!P12,0)","v":0},{"$f":"IF(Q$7=$A$6,'Matris 4'!Q12,0)","v":0},{"$f":"IF(R$7=$A$6,'Matris 4'!R12,0)","v":0},{"$f":"IF(ISNUMBER('Matris 3'!S12),(SUM(C12:R12)),\"\")","v":0},{"$f":"IF((ISNUMBER('Matris 3'!T12)),(SUM(S12:S13)),\"\")","v":0}]
[null,"Lång sikt",{"$f":"IF(C$7=$A$6,'Matris 4'!C13,0)","v":0},{"$f":"IF(D$7=$A$6,'Matris 4'!D13,0)","v":0},{"$f":"IF(E$7=$A$6,'Matris 4'!E13,0)","v":0},{"$f":"IF(F$7=$A$6,'Matris 4'!F13,0)","v":0},{"$f":"IF(G$7=$A$6,'Matris 4'!G13,0)","v":0},{"$f":"IF(H$7=$A$6,'Matris 4'!H13,0)","v":0},{"$f":"IF(I$7=$A$6,'Matris 4'!I13,0)","v":0},{"$f":"IF(J$7=$A$6,'Matris 4'!J13,0)","v":0},{"$f":"IF(K$7=$A$6,'Matris 4'!K13,0)","v":0},{"$f":"IF(L$7=$A$6,'Matris 4'!L13,0)","v":0},{"$f":"IF(M$7=$A$6,'Matris 4'!M13,0)","v":0},{"$f":"IF(N$7=$A$6,'Matris 4'!N13,0)","v":0},{"$f":"IF(O$7=$A$6,'Matris 4'!O13,0)","v":0},{"$f":"IF(P$7=$A$6,'Matris 4'!P13,0)","v":0},{"$f":"IF(Q$7=$A$6,'Matris 4'!Q13,0)","v":0},{"$f":"IF(R$7=$A$6,'Matris 4'!R13,0)","v":0},{"$f":"IF(ISNUMBER('Matris 3'!S13),(SUM(C13:R13)),\"\")","v":0}]
[{"$f":"'Matris 1'!A10","v":"Åtgärdsförslag 2"},"Kort sikt",{"$f":"IF(C$7=$A$6,'Matris 4'!C14,0)","v":0},{"$f":"IF(D$7=$A$6,'Matris 4'!D14,0)","v":0},{"$f":"IF(E$7=$A$6,'Matris 4'!E14,0)","v":0},{"$f":"IF(F$7=$A$6,'Matris 4'!F14,0)","v":0},{"$f":"IF(G$7=$A$6,'Matris 4'!G14,0)","v":0},{"$f":"IF(H$7=$A$6,'Matris 4'!H14,0)","v":0},{"$f":"IF(I$7=$A$6,'Matris 4'!I14,0)","v":0},{"$f":"IF(J$7=$A$6,'Matris 4'!J14,0)","v":0},{"$f":"IF(K$7=$A$6,'Matris 4'!K14,0)","v":0},{"$f":"IF(L$7=$A$6,'Matris 4'!L14,0)","v":0},{"$f":"IF(M$7=$A$6,'Matris 4'!M14,0)","v":0},{"$f":"IF(N$7=$A$6,'Matris 4'!N14,0)","v":0},{"$f":"IF(O$7=$A$6,'Matris 4'!O14,0)","v":0},{"$f":"IF(P$7=$A$6,'Matris 4'!P14,0)","v":0},{"$f":"IF(Q$7=$A$6,'Matris 4'!Q14,0)","v":0},{"$f":"IF(R$7=$A$6,'Matris 4'!R14,0)","v":0},{"$f":"IF(ISNUMBER('Matris 3'!S14),(SUM(C14:R14)),\"\")","v":0},{"$f":"IF((ISNUMBER('Matris 3'!T14)),(SUM(S14:S15)),\"\")","v":0}]
[null,"Lång sikt",{"$f":"IF(C$7=$A$6,'Matris 4'!C15,0)","v":0},{"$f":"IF(D$7=$A$6,'Matris 4'!D15,0)","v":0},{"$f":"IF(E$7=$A$6,'Matris 4'!E15,0)","v":0},{"$f":"IF(F$7=$A$6,'Matris 4'!F15,0)","v":0},{"$f":"IF(G$7=$A$6,'Matris 4'!G15,0)","v":0},{"$f":"IF(H$7=$A$6,'Matris 4'!H15,0)","v":0},{"$f":"IF(I$7=$A$6,'Matris 4'!I15,0)","v":0},{"$f":"IF(J$7=$A$6,'Matris 4'!J15,0)","v":0},{"$f":"IF(K$7=$A$6,'Matris 4'!K15,0)","v":0},{"$f":"IF(L$7=$A$6,'Matris 4'!L15,0)","v":0},{"$f":"IF(M$7=$A$6,'Matris 4'!M15,0)","v":0},{"$f":"IF(N$7=$A$6,'Matris 4'!N15,0)","v":0},{"$f":"IF(O$7=$A$6,'Matris 4'!O15,0)","v":0},{"$f":"IF(P$7=$A$6,'Matris 4'!P15,0)","v":0},{"$f":"IF(Q$7=$A$6,'Matris 4'!Q15,0)","v":0},{"$f":"IF(R$7=$A$6,'Matris 4'!R15,0)","v":0},{"$f":"IF(ISNUMBER('Matris 3'!S15),(SUM(C15:R15)),\"\")","v":0}]
[{"$f":"'Matris 1'!A11","v":"Åtgärdsförslag 3"},"Kort sikt",{"$f":"IF(C$7=$A$6,'Matris 4'!C16,0)","v":0},{"$f":"IF(D$7=$A$6,'Matris 4'!D16,0)","v":0},{"$f":"IF(E$7=$A$6,'Matris 4'!E16,0)","v":0},{"$f":"IF(F$7=$A$6,'Matris 4'!F16,0)","v":0},{"$f":"IF(G$7=$A$6,'Matris 4'!G16,0)","v":0},{"$f":"IF(H$7=$A$6,'Matris 4'!H16,0)","v":0},{"$f":"IF(I$7=$A$6,'Matris 4'!I16,0)","v":0},{"$f":"IF(J$7=$A$6,'Matris 4'!J16,0)","v":0},{"$f":"IF(K$7=$A$6,'Matris 4'!K16,0)","v":0},{"$f":"IF(L$7=$A$6,'Matris 4'!L16,0)","v":0},{"$f":"IF(M$7=$A$6,'Matris 4'!M16,0)","v":0},{"$f":"IF(N$7=$A$6,'Matris 4'!N16,0)","v":0},{"$f":"IF(O$7=$A$6,'Matris 4'!O16,0)","v":0},{"$f":"IF(P$7=$A$6,'Matris 4'!P16,0)","v":0},{"$f":"IF(Q$7=$A$6,'Matris 4'!Q16,0)","v":0},{"$f":"IF(R$7=$A$6,'Matris 4'!R16,0)","v":0},{"$f":"IF(ISNUMBER('Matris 3'!S16),(SUM(C16:R16)),\"\")","v":0},{"$f":"IF((ISNUMBER('Matris 3'!T16)),(SUM(S16:S17)),\"\")","v":0}]
[null,"Lång sikt",{"$f":"IF(C$7=$A$6,'Matris 4'!C17,0)","v":0},{"$f":"IF(D$7=$A$6,'Matris 4'!D17,0)","v":0},{"$f":"IF(E$7=$A$6,'Matris 4'!E17,0)","v":0},{"$f":"IF(F$7=$A$6,'Matris 4'!F17,0)","v":0},{"$f":"IF(G$7=$A$6,'Matris 4'!G17,0)","v":0},{"$f":"IF(H$7=$A$6,'Matris 4'!H17,0)","v":0},{"$f":"IF(I$7=$A$6,'Matris 4'!I17,0)","v":0},{"$f":"IF(J$7=$A$6,'Matris 4'!J17,0)","v":0},{"$f":"IF(K$7=$A$6,'Matris 4'!K17,0)","v":0},{"$f":"IF(L$7=$A$6,'Matris 4'!L17,0)","v":0},{"$f":"IF(M$7=$A$6,'Matris 4'!M17,0)","v":0},{"$f":"IF(N$7=$A$6,'Matris 4'!N17,0)","v":0},{"$f":"IF(O$7=$A$6,'Matris 4'!O17,0)","v":0},{"$f":"IF(P$7=$A$6,'Matris 4'!P17,0)","v":0},{"$f":"IF(Q$7=$A$6,'Matris 4'!Q17,0)","v":0},{"$f":"IF(R$7=$A$6,'Matris 4'!R17,0)","v":0},{"$f":"IF(ISNUMBER('Matris 3'!S17),(SUM(C17:R17)),\"\")","v":0}]
[{"$f":"'Matris 1'!A12","v":"Åtgärdsförslag 4"},"Kort sikt",{"$f":"IF(C$7=$A$6,'Matris 4'!C18,0)","v":0},{"$f":"IF(D$7=$A$6,'Matris 4'!D18,0)","v":0},{"$f":"IF(E$7=$A$6,'Matris 4'!E18,0)","v":0},{"$f":"IF(F$7=$A$6,'Matris 4'!F18,0)","v":0},{"$f":"IF(G$7=$A$6,'Matris 4'!G18,0)","v":0},{"$f":"IF(H$7=$A$6,'Matris 4'!H18,0)","v":0},{"$f":"IF(I$7=$A$6,'Matris 4'!I18,0)","v":0},{"$f":"IF(J$7=$A$6,'Matris 4'!J18,0)","v":0},{"$f":"IF(K$7=$A$6,'Matris 4'!K18,0)","v":0},{"$f":"IF(L$7=$A$6,'Matris 4'!L18,0)","v":0},{"$f":"IF(M$7=$A$6,'Matris 4'!M18,0)","v":0},{"$f":"IF(N$7=$A$6,'Matris 4'!N18,0)","v":0},{"$f":"IF(O$7=$A$6,'Matris 4'!O18,0)","v":0},{"$f":"IF(P$7=$A$6,'Matris 4'!P18,0)","v":0},{"$f":"IF(Q$7=$A$6,'Matris 4'!Q18,0)","v":0},{"$f":"IF(R$7=$A$6,'Matris 4'!R18,0)","v":0},{"$f":"IF(ISNUMBER('Matris 3'!S18),(SUM(C18:R18)),\"\")","v":0},{"$f":"IF((ISNUMBER('Matris 3'!T18)),(SUM(S18:S19)),\"\")","v":0}]
[null,"Lång sikt",{"$f":"IF(C$7=$A$6,'Matris 4'!C19,0)","v":0},{"$f":"IF(D$7=$A$6,'Matris 4'!D19,0)","v":0},{"$f":"IF(E$7=$A$6,'Matris 4'!E19,0)","v":0},{"$f":"IF(F$7=$A$6,'Matris 4'!F19,0)","v":0},{"$f":"IF(G$7=$A$6,'Matris 4'!G19,0)","v":0},{"$f":"IF(H$7=$A$6,'Matris 4'!H19,0)","v":0},{"$f":"IF(I$7=$A$6,'Matris 4'!I19,0)","v":0},{"$f":"IF(J$7=$A$6,'Matris 4'!J19,0)","v":0},{"$f":"IF(K$7=$A$6,'Matris 4'!K19,0)","v":0},{"$f":"IF(L$7=$A$6,'Matris 4'!L19,0)","v":0},{"$f":"IF(M$7=$A$6,'Matris 4'!M19,0)","v":0},{"$f":"IF(N$7=$A$6,'Matris 4'!N19,0)","v":0},{"$f":"IF(O$7=$A$6,'Matris 4'!O19,0)","v":0},{"$f":"IF(P$7=$A$6,'Matris 4'!P19,0)","v":0},{"$f":"IF(Q$7=$A$6,'Matris 4'!Q19,0)","v":0},{"$f":"IF(R$7=$A$6,'Matris 4'!R19,0)","v":0},{"$f":"IF(ISNUMBER('Matris 3'!S19),(SUM(C19:R19)),\"\")","v":0}]
[{"$f":"'Matris 1'!A13","v":"Åtgärdsförslag 5"},"Kort sikt",{"$f":"IF(C$7=$A$6,'Matris 4'!C20,0)","v":0},{"$f":"IF(D$7=$A$6,'Matris 4'!D20,0)","v":0},{"$f":"IF(E$7=$A$6,'Matris 4'!E20,0)","v":0},{"$f":"IF(F$7=$A$6,'Matris 4'!F20,0)","v":0},{"$f":"IF(G$7=$A$6,'Matris 4'!G20,0)","v":0},{"$f":"IF(H$7=$A$6,'Matris 4'!H20,0)","v":0},{"$f":"IF(I$7=$A$6,'Matris 4'!I20,0)","v":0},{"$f":"IF(J$7=$A$6,'Matris 4'!J20,0)","v":0},{"$f":"IF(K$7=$A$6,'Matris 4'!K20,0)","v":0},{"$f":"IF(L$7=$A$6,'Matris 4'!L20,0)","v":0},{"$f":"IF(M$7=$A$6,'Matris 4'!M20,0)","v":0},{"$f":"IF(N$7=$A$6,'Matris 4'!N20,0)","v":0},{"$f":"IF(O$7=$A$6,'Matris 4'!O20,0)","v":0},{"$f":"IF(P$7=$A$6,'Matris 4'!P20,0)","v":0},{"$f":"IF(Q$7=$A$6,'Matris 4'!Q20,0)","v":0},{"$f":"IF(R$7=$A$6,'Matris 4'!R20,0)","v":0},{"$f":"IF(ISNUMBER('Matris 3'!S20),(SUM(C20:R20)),\"\")","v":0},{"$f":"IF((ISNUMBER('Matris 3'!T20)),(SUM(S20:S21)),\"\")","v":0}]
[null,"Lång sikt",{"$f":"IF(C$7=$A$6,'Matris 4'!C21,0)","v":0},{"$f":"IF(D$7=$A$6,'Matris 4'!D21,0)","v":0},{"$f":"IF(E$7=$A$6,'Matris 4'!E21,0)","v":0},{"$f":"IF(F$7=$A$6,'Matris 4'!F21,0)","v":0},{"$f":"IF(G$7=$A$6,'Matris 4'!G21,0)","v":0},{"$f":"IF(H$7=$A$6,'Matris 4'!H21,0)","v":0},{"$f":"IF(I$7=$A$6,'Matris 4'!I21,0)","v":0},{"$f":"IF(J$7=$A$6,'Matris 4'!J21,0)","v":0},{"$f":"IF(K$7=$A$6,'Matris 4'!K21,0)","v":0},{"$f":"IF(L$7=$A$6,'Matris 4'!L21,0)","v":0},{"$f":"IF(M$7=$A$6,'Matris 4'!M21,0)","v":0},{"$f":"IF(N$7=$A$6,'Matris 4'!N21,0)","v":0},{"$f":"IF(O$7=$A$6,'Matris 4'!O21,0)","v":0},{"$f":"IF(P$7=$A$6,'Matris 4'!P21,0)","v":0},{"$f":"IF(Q$7=$A$6,'Matris 4'!Q21,0)","v":0},{"$f":"IF(R$7=$A$6,'Matris 4'!R21,0)","v":0},{"$f":"IF(ISNUMBER('Matris 3'!S21),(SUM(C21:R21)),\"\")","v":0}]
[null,null,null,null,null,null,null,null,null,null,null,"5 & 6"]
[null,null,null,null,null,null,null,null,null,null,null,"3 & 4"]
["OBS! När bedömningen i matris 3, och vikten i matris 4A är ifyllda, förs den viktade bedömingen automatiskt in i rätt cell.",null,null,null,null,null,null,null,null,null,null,"1 & 2"]
["Klicka på den färgade knappen för att färglägga cellerna.",null,null,null,null,null,null,null,null,null,null,0]
["Klicka på den blå knappen för att återfå blå färg.",null,null,null,null,null,null,null,null,null,null,"-1 & -2"]
[null,null,null,null,null,null,null,null,null,null,null,"-3 & -4"]

{"sheet":"Vikt dim 1","index":13,"n_rows":29,"n_cols":19,"rows_kept":29,"cut":false,"hidden":true,"merged":[[9,0,9,1],[7,0,7,1],[8,0,8,1],[0,0,0,1],[0,2,0,18],[3,0,3,14],[4,0,4,3],[6,0,6,1],[6,18,8,18]]}
["Objekt:",null,{"$f":"'Matris 1'!B1","v":"XYZ-köping"}]
[]
["Övergripande mål:"]
[{"$f":"'Matris 1'!A4","v":0},null,null,null,null,null,null,null,null,null,null,null,null,null,null,null,null,"Skriv ut i A3-format, liggande."]
["Matris 4a - summering dimension:"]
[{"$f":"Inställningar!C18","v":"Ekologisk"}]
["Åtgärd",null,{"$f":"Inställningar!K47","v":"Ekologisk"},{"$f":"Inställningar!L47","v":"Ekologisk"},{"$f":"Inställningar!M47","v":"Ekologisk"},{"$f":"Inställningar!N47","v":"Ekologisk"},{"$f":"Inställningar!O47","v":"Ekologisk"},{"$f":"Inställningar!P47","v":"Ekologisk"},{"$f":"Inställningar!Q47","v":"Social"},{"$f":"Inställningar!R47","v":"Social"},{"$f":"Inställningar!S47","v":"Social"},{"$f":"Inställningar!T47","v":"Social"},{"$f":"Inställningar!U47","v":"Social"},{"$f":"Inställningar!V47","v":"Ekonomisk"},{"$f":"Inställningar!W47","v":"Ekonomisk"},{"$f":"Inställningar!X47","v":"Ekonomisk"},{"$f":"Inställningar!Y47","v":"Ekonomisk"},{"$f":"Inställningar!Z47","v":""},"Delsumma"]
[null,null,{"$f":"'Matris 2'!C8","v":"1. Utsläpp till luft"},{"$f":"'Matris 2'!D8","v":"2. Jord och mark"},{"$f":"'Matris 2'!E8","v":"3. Grundvatten"},{"$f":"'Matris 2'!F8","v":"4. Ytvatten och sediment"},{"$f":"'Matris 2'!G8","v":"5. Ekologi"},{"$f":"'Matris 2'!H8","v":"6. Naturresurser och avfall"},{"$f":"'Matris 2'!I8","v":"7. Hälsa och säkerhet"},{"$f":"'Matris 2'!J8","v":"8. Etik och jämlikhet"},{"$f":"'Matris 2'!K8","v":"9. Närmiljö"},{"$f":"'Matris 2'!L8","v":"10. Lokalsamhälle"},{"$f":"'Matris 2'!M8","v":"11. Osäkerhet och evidens"},{"$f":"'Matris 2'!N8","v":"12. Direkta kostnader och nyttor"},{"$f":"'Matris 2'!O8","v":"13. Indirekta kostnader och nyttor"},{"$f":"'Matris 2'!P8","v":"14. Inducerade kostnader och nyttor"},{"$f":"'Matris 2'!Q8","v":"15. Beständighet och flexibilitet"},{"$f":"'Matris 2'!R8","v":""}]
["Vikt",null,{"$f":"'Matris 3'!C9","v":1},{"$f":"'Matris 3'!D9","v":1},{"$f":"'Matris 3'!E9","v":1},{"$f":"'Matris 3'!F9","v":1},{"$f":"'Matris 3'!G9","v":1},{"$f":"'Matris 3'!H9","v":1},{"$f":"'Matris 3'!I9","v":1},{"$f":"'Matris 3'!J9","v":1},{"$f":"'Matris 3'!K9","v":1},{"$f":"'Matris 3'!L9","v":1},{"$f":"'Matris 3'!M9","v":1},{"$f":"'Matris 3'!N9","v":1},{"$f":"'Matris 3'!O9","v":1},{"$f":"'Matris 3'!P9","v":1},{"$f":"'Matris 3'!Q9","v":1},{"$f":"'Matris 3'!R9","v":0}]
["Vikt dimension 1",null,{"$f":"IF(C$7=$A$6,'Matris 4'!C9,0)","v":1},{"$f":"IF(D$7=$A$6,'Matris 4'!D9,0)","v":1},{"$f":"IF(E$7=$A$6,'Matris 4'!E9,0)","v":1},{"$f":"IF(F$7=$A$6,'Matris 4'!F9,0)","v":1},{"$f":"IF(G$7=$A$6,'Matris 4'!G9,0)","v":1},{"$f":"IF(H$7=$A$6,'Matris 4'!H9,0)","v":1},{"$f":"IF(I$7=$A$6,'Matris 4'!I9,0)","v":0},{"$f":"IF(J$7=$A$6,'Matris 4'!J9,0)","v":0},{"$f":"IF(K$7=$A$6,'Matris 4'!K9,0)","v":0},{"$f":"IF(L$7=$A$6,'Matris 4'!L9,0)","v":0},{"$f":"IF(M$7=$A$6,'Matris 4'!M9,0)","v":0},{"$f":"IF(N$7=$A$6,'Matris 4'!N9,0)","v":0},{"$f":"IF(O$7=$A$6,'Matris 4'!O9,0)","v":0},{"$f":"IF(P$7=$A$6,'Matris 4'!P9,0)","v":0},{"$f":"IF(Q$7=$A$6,'Matris 4'!Q9,0)","v":0},{"$f":"IF(R$7=$A$6,'Matris 4'!R9,0)","v":0},{"$f":"IF(ISNUMBER('Matris 3'!S10),(SUM(C10:R10)),\"\")","v":6}]
[]
[]
[]
[null,null,{"$f":"C$10","v":1}]
[null,null,{"$f":"D$10","v":1}]
[null,null,{"$f":"E$10","v":1}]
[null,null,{"$f":"F$10","v":1}]
[null,null,{"$f":"G$10","v":1}]
[null,null,{"$f":"H$10","v":1}]
[null,null,{"$f":"I$10","v":0}]
[null,null,{"$f":"J$10","v":0}]
[null,null,{"$f":"K$10","v":0}]
[null,null,{"$f":"L$10","v":0}]
[null,null,{"$f":"M$10","v":0}]
[null,null,{"$f":"N$10","v":0}]
[null,null,{"$f":"O$10","v":0}]
[null,null,{"$f":"P$10","v":0}]
[null,null,{"$f":"Q$10","v":0}]
[null,null,{"$f":"R$10","v":0}]

{"sheet":"Sum. dim 2","index":14,"n_rows":27,"n_cols":20,"rows_kept":27,"cut":false,"hidden":true,"merged":[[11,0,12,0],[11,19,12,19],[0,0,0,1],[0,2,0,18],[3,0,3,14],[4,0,4,3],[6,0,6,1],[6,18,8,18],[6,19,7,19],[7,0,7,1],[8,0,8,1],[9,0,10,0],[9,19,10,19],[19,0,20,0],[19,19,20,19],[13,0,14,0],[13,19,14,19],[15,0,16,0],[15,19,16,19],[17,0,18,0],[17,19,18,19]]}
["Objekt:",null,{"$f":"'Matris 1'!B1","v":"XYZ-köping"}]
[]
["Övergripande mål:"]
[{"$f":"'Matris 1'!A4","v":0},null,null,null,null,null,null,null,null,null,null,null,null,null,null,null,null,"Skriv ut i A3-format, liggande."]
["Matris 4a - summering dimension:"]
[{"$f":"Inställningar!C19","v":"Social"}]
["Åtgärd",null,{"$f":"Inställningar!K47","v":"Ekologisk"},{"$f":"Inställningar!L47","v":"Ekologisk"},{"$f":"Inställningar!M47","v":"Ekologisk"},{"$f":"Inställningar!N47","v":"Ekologisk"},{"$f":"Inställningar!O47","v":"Ekologisk"},{"$f":"Inställningar!P47","v":"Ekologisk"},{"$f":"Inställningar!Q47","v":"Social"},{"$f":"Inställningar!R47","v":"Social"},{"$f":"Inställningar!S47","v":"Social"},{"$f":"Inställningar!T47","v":"Social"},{"$f":"Inställningar!U47","v":"Social"},{"$f":"Inställningar!V47","v":"Ekonomisk"},{"$f":"Inställningar!W47","v":"Ekonomisk"},{"$f":"Inställningar!X47","v":"Ekonomisk"},{"$f":"Inställningar!Y47","v":"Ekonomisk"},{"$f":"Inställningar!Z47","v":""},"Delsumma","Summa"]
[null,null,{"$f":"'Matris 2'!C8","v":"1. Utsläpp till luft"},{"$f":"'Matris 2'!D8","v":"2. Jord och mark"},{"$f":"'Matris 2'!E8","v":"3. Grundvatten"},{"$f":"'Matris 2'!F8","v":"4. Ytvatten och sediment"},{"$f":"'Matris 2'!G8","v":"5. Ekologi"},{"$f":"'Matris 2'!H8","v":"6. Naturresurser och avfall"},{"$f":"'Matris 2'!I8","v":"7. Hälsa och säkerhet"},{"$f":"'Matris 2'!J8","v":"8. Etik och jämlikhet"},{"$f":"'Matris 2'!K8","v":"9. Närmiljö"},{"$f":"'Matris 2'!L8","v":"10. Lokalsamhälle"},{"$f":"'Matris 2'!M8","v":"11. Osäkerhet och evidens"},{"$f":"'Matris 2'!N8","v":"12. Direkta kostnader och nyttor"},{"$f":"'Matris 2'!O8","v":"13. Indirekta kostnader och nyttor"},{"$f":"'Matris 2'!P8","v":"14. Inducerade kostnader och nyttor"},{"$f":"'Matris 2'!Q8","v":"15. Beständighet och flexibilitet"},{"$f":"'Matris 2'!R8","v":""}]
["Vikt",null,{"$f":"'Matris 3'!C9","v":1},{"$f":"'Matris 3'!D9","v":1},{"$f":"'Matris 3'!E9","v":1},{"$f":"'Matris 3'!F9","v":1},{"$f":"'Matris 3'!G9","v":1},{"$f":"'Matris 3'!H9","v":1},{"$f":"'Matris 3'!I9","v":1},{"$f":"'Matris 3'!J9","v":1},{"$f":"'Matris 3'!K9","v":1},{"$f":"'Matris 3'!L9","v":1},{"$f":"'Matris 3'!M9","v":1},{"$f":"'Matris 3'!N9","v":1},{"$f":"'Matris 3'!O9","v":1},{"$f":"'Matris 3'!P9","v":1},{"$f":"'Matris 3'!Q9","v":1},{"$f":"'Matris 3'!R9","v":0}]
[{"$f":"'Matris 1'!A8","v":"Nollalternativ: ingen åtgärd"},"Kort sikt",{"$f":"IF(C$7=$A$6,'Matris 4'!C10,0)","v":0},{"$f":"IF(D$7=$A$6,'Matris 4'!D10,0)","v":0},{"$f":"IF(E$7=$A$6,'Matris 4'!E10,0)","v":0},{"$f":"IF(F$7=$A$6,'Matris 4'!F10,0)","v":0},{"$f":"IF(G$7=$A$6,'Matris 4'!G10,0)","v":0},{"$f":"IF(H$7=$A$6,'Matris 4'!H10,0)","v":0},{"$f":"IF(I$7=$A$6,'Matris 4'!I10,0)","v":0},{"$f":"IF(J$7=$A$6,'Matris 4'!J10,0)","v":0},{"$f":"IF(K$7=$A$6,'Matris 4'!K10,0)","v":0},{"$f":"IF(L$7=$A$6,'Matris 4'!L10,0)","v":0},{"$f":"IF(M$7=$A$6,'Matris 4'!M10,0)","v":0},{"$f":"IF(N$7=$A$6,'Matris 4'!N10,0)","v":0},{"$f":"IF(O$7=$A$6,'Matris 4'!O10,0)","v":0},{"$f":"IF(P$7=$A$6,'Matris 4'!P10,0)","v":0},{"$f":"IF(Q$7=$A$6,'Matris 4'!Q10,0)","v":0},{"$f":"IF(R$7=$A$6,'Matris 4'!R10,0)","v":0},{"$f":"IF(ISNUMBER('Matris 3'!S10),(SUM(C10:R10)),\"\")","v":0},{"$f":"IF((ISNUMBER('Matris 3'!T10)),(SUM(S10:S11)),\"\")","v":0}]
[null,"Lång sikt",{"$f":"IF(C$7=$A$6,'Matris 4'!C11,0)","v":0},{"$f":"IF(D$7=$A$6,'Matris 4'!D11,0)","v":0},{"$f":"IF(E$7=$A$6,'Matris 4'!E11,0)","v":0},{"$f":"IF(F$7=$A$6,'Matris 4'!F11,0)","v":0},{"$f":"IF(G$7=$A$6,'Matris 4'!G11,0)","v":0},{"$f":"IF(H$7=$A$6,'Matris 4'!H11,0)","v":0},{"$f":"IF(I$7=$A$6,'Matris 4'!I11,0)","v":0},{"$f":"IF(J$7=$A$6,'Matris 4'!J11,0)","v":0},{"$f":"IF(K$7=$A$6,'Matris 4'!K11,0)","v":0},{"$f":"IF(L$7=$A$6,'Matris 4'!L11,0)","v":0},{"$f":"IF(M$7=$A$6,'Matris 4'!M11,0)","v":0},{"$f":"IF(N$7=$A$6,'Matris 4'!N11,0)","v":0},{"$f":"IF(O$7=$A$6,'Matris 4'!O11,0)","v":0},{"$f":"IF(P$7=$A$6,'Matris 4'!P11,0)","v":0},{"$f":"IF(Q$7=$A$6,'Matris 4'!Q11,0)","v":0},{"$f":"IF(R$7=$A$6,'Matris 4'!R11,0)","v":0},{"$f":"IF(ISNUMBER('Matris 3'!S11),(SUM(C11:R11)),\"\")","v":0}]
[{"$f":"'Matris 1'!A9","v":"Åtgärdsförslag 1"},"Kort sikt",{"$f":"IF(C$7=$A$6,'Matris 4'!C12,0)","v":0},{"$f":"IF(D$7=$A$6,'Matris 4'!D12,0)","v":0},{"$f":"IF(E$7=$A$6,'Matris 4'!E12,0)","v":0},{"$f":"IF(F$7=$A$6,'Matris 4'!F12,0)","v":0},{"$f":"IF(G$7=$A$6,'Matris 4'!G12,0)","v":0},{"$f":"IF(H$7=$A$6,'Matris 4'!H12,0)","v":0},{"$f":"IF(I$7=$A$6,'Matris 4'!I12,0)","v":0},{"$f":"IF(J$7=$A$6,'Matris 4'!J12,0)","v":0},{"$f":"IF(K$7=$A$6,'Matris 4'!K12,0)","v":0},{"$f":"IF(L$7=$A$6,'Matris 4'!L12,0)","v":0},{"$f":"IF(M$7=$A$6,'Matris 4'!M12,0)","v":0},{"$f":"IF(N$7=$A$6,'Matris 4'!N12,0)","v":0},{"$f":"IF(O$7=$A$6,'Matris 4'!O12,0)","v":0},{"$f":"IF(P$7=$A$6,'Matris 4'!P12,0)","v":0},{"$f":"IF(Q$7=$A$6,'Matris 4'!Q12,0)","v":0},{"$f":"IF(R$7=$A$6,'Matris 4'!R12,0)","v":0},{"$f":"IF(ISNUMBER('Matris 3'!S12),(SUM(C12:R12)),\"\")","v":0},{"$f":"IF((ISNUMBER('Matris 3'!T12)),(SUM(S12:S13)),\"\")","v":0}]
[null,"Lång sikt",{"$f":"IF(C$7=$A$6,'Matris 4'!C13,0)","v":0},{"$f":"IF(D$7=$A$6,'Matris 4'!D13,0)","v":0},{"$f":"IF(E$7=$A$6,'Matris 4'!E13,0)","v":0},{"$f":"IF(F$7=$A$6,'Matris 4'!F13,0)","v":0},{"$f":"IF(G$7=$A$6,'Matris 4'!G13,0)","v":0},{"$f":"IF(H$7=$A$6,'Matris 4'!H13,0)","v":0},{"$f":"IF(I$7=$A$6,'Matris 4'!I13,0)","v":0},{"$f":"IF(J$7=$A$6,'Matris 4'!J13,0)","v":0},{"$f":"IF(K$7=$A$6,'Matris 4'!K13,0)","v":0},{"$f":"IF(L$7=$A$6,'Matris 4'!L13,0)","v":0},{"$f":"IF(M$7=$A$6,'Matris 4'!M13,0)","v":0},{"$f":"IF(N$7=$A$6,'Matris 4'!N13,0)","v":0},{"$f":"IF(O$7=$A$6,'Matris 4'!O13,0)","v":0},{"$f":"IF(P$7=$A$6,'Matris 4'!P13,0)","v":0},{"$f":"IF(Q$7=$A$6,'Matris 4'!Q13,0)","v":0},{"$f":"IF(R$7=$A$6,'Matris 4'!R13,0)","v":0},{"$f":"IF(ISNUMBER('Matris 3'!S13),(SUM(C13:R13)),\"\")","v":0}]
[{"$f":"'Matris 1'!A10","v":"Åtgärdsförslag 2"},"Kort sikt",{"$f":"IF(C$7=$A$6,'Matris 4'!C14,0)","v":0},{"$f":"IF(D$7=$A$6,'Matris 4'!D14,0)","v":0},{"$f":"IF(E$7=$A$6,'Matris 4'!E14,0)","v":0},{"$f":"IF(F$7=$A$6,'Matris 4'!F14,0)","v":0},{"$f":"IF(G$7=$A$6,'Matris 4'!G14,0)","v":0},{"$f":"IF(H$7=$A$6,'Matris 4'!H14,0)","v":0},{"$f":"IF(I$7=$A$6,'Matris 4'!I14,0)","v":0},{"$f":"IF(J$7=$A$6,'Matris 4'!J14,0)","v":0},{"$f":"IF(K$7=$A$6,'Matris 4'!K14,0)","v":0},{"$f":"IF(L$7=$A$6,'Matris 4'!L14,0)","v":0},{"$f":"IF(M$7=$A$6,'Matris 4'!M14,0)","v":0},{"$f":"IF(N$7=$A$6,'Matris 4'!N14,0)","v":0},{"$f":"IF(O$7=$A$6,'Matris 4'!O14,0)","v":0},{"$f":"IF(P$7=$A$6,'Matris 4'!P14,0)","v":0},{"$f":"IF(Q$7=$A$6,'Matris 4'!Q14,0)","v":0},{"$f":"IF(R$7=$A$6,'Matris 4'!R14,0)","v":0},{"$f":"IF(ISNUMBER('Matris 3'!S14),(SUM(C14:R14)),\"\")","v":0},{"$f":"IF((ISNUMBER('Matris 3'!T14)),(SUM(S14:S15)),\"\")","v":0}]
[null,"Lång sikt",{"$f":"IF(C$7=$A$6,'Matris 4'!C15,0)","v":0},{"$f":"IF(D$7=$A$6,'Matris 4'!D15,0)","v":0},{"$f":"IF(E$7=$A$6,'Matris 4'!E15,0)","v":0},{"$f":"IF(F$7=$A$6,'Matris 4'!F15,0)","v":0},{"$f":"IF(G$7=$A$6,'Matris 4'!G15,0)","v":0},{"$f":"IF(H$7=$A$6,'Matris 4'!H15,0)","v":0},{"$f":"IF(I$7=$A$6,'Matris 4'!I15,0)","v":0},{"$f":"IF(J$7=$A$6,'Matris 4'!J15,0)","v":0},{"$f":"IF(K$7=$A$6,'Matris 4'!K15,0)","v":0},{"$f":"IF(L$7=$A$6,'Matris 4'!L15,0)","v":0},{"$f":"IF(M$7=$A$6,'Matris 4'!M15,0)","v":0},{"$f":"IF(N$7=$A$6,'Matris 4'!N15,0)","v":0},{"$f":"IF(O$7=$A$6,'Matris 4'!O15,0)","v":0},{"$f":"IF(P$7=$A$6,'Matris 4'!P15,0)","v":0},{"$f":"IF(Q$7=$A$6,'Matris 4'!Q15,0)","v":0},{"$f":"IF(R$7=$A$6,'Matris 4'!R15,0)","v":0},{"$f":"IF(ISNUMBER('Matris 3'!S15),(SUM(C15:R15)),\"\")","v":0}]
[{"$f":"'Matris 1'!A11","v":"Åtgärdsförslag 3"},"Kort sikt",{"$f":"IF(C$7=$A$6,'Matris 4'!C16,0)","v":0},{"$f":"IF(D$7=$A$6,'Matris 4'!D16,0)","v":0},{"$f":"IF(E$7=$A$6,'Matris 4'!E16,0)","v":0},{"$f":"IF(F$7=$A$6,'Matris 4'!F16,0)","v":0},{"$f":"IF(G$7=$A$6,'Matris 4'!G16,0)","v":0},{"$f":"IF(H$7=$A$6,'Matris 4'!H16,0)","v":0},{"$f":"IF(I$7=$A$6,'Matris 4'!I16,0)","v":0},{"$f":"IF(J$7=$A$6,'Matris 4'!J16,0)","v":0},{"$f":"IF(K$7=$A$6,'Matris 4'!K16,0)","v":0},{"$f":"IF(L$7=$A$6,'Matris 4'!L16,0)","v":0},{"$f":"IF(M$7=$A$6,'Matris 4'!M16,0)","v":0},{"$f":"IF(N$7=$A$6,'Matris 4'!N16,0)","v":0},{"$f":"IF(O$7=$A$6,'Matris 4'!O16,0)","v":0},{"$f":"IF(P$7=$A$6,'Matris 4'!P16,0)","v":0},{"$f":"IF(Q$7=$A$6,'Matris 4'!Q16,0)","v":0},{"$f":"IF(R$7=$A$6,'Matris 4'!R16,0)","v":0},{"$f":"IF(ISNUMBER('Matris 3'!S16),(SUM(C16:R16)),\"\")","v":0},{"$f":"IF((ISNUMBER('Matris 3'!T16)),(SUM(S16:S17)),\"\")","v":0}]
[null,"Lång sikt",{"$f":"IF(C$7=$A$6,'Matris 4'!C17,0)","v":0},{"$f":"IF(D$7=$A$6,'Matris 4'!D17,0)","v":0},{"$f":"IF(E$7=$A$6,'Matris 4'!E17,0)","v":0},{"$f":"IF(F$7=$A$6,'Matris 4'!F17,0)","v":0},{"$f":"IF(G$7=$A$6,'Matris 4'!G17,0)","v":0},{"$f":"IF(H$7=$A$6,'Matris 4'!H17,0)","v":0},{"$f":"IF(I$7=$A$6,'Matris 4'!I17,0)","v":0},{"$f":"IF(J$7=$A$6,'Matris 4'!J17,0)","v":0},{"$f":"IF(K$7=$A$6,'Matris 4'!K17,0)","v":0},{"$f":"IF(L$7=$A$6,'Matris 4'!L17,0)","v":0},{"$f":"IF(M$7=$A$6,'Matris 4'!M17,0)","v":0},{"$f":"IF(N$7=$A$6,'Matris 4'!N17,0)","v":0},{"$f":"IF(O$7=$A$6,'Matris 4'!O17,0)","v":0},{"$f":"IF(P$7=$A$6,'Matris 4'!P17,0)","v":0},{"$f":"IF(Q$7=$A$6,'Matris 4'!Q17,0)","v":0},{"$f":"IF(R$7=$A$6,'Matris 4'!R17,0)","v":0},{"$f":"IF(ISNUMBER('Matris 3'!S17),(SUM(C17:R17)),\"\")","v":0}]
[{"$f":"'Matris 1'!A12","v":"Åtgärdsförslag 4"},"Kort sikt",{"$f":"IF(C$7=$A$6,'Matris 4'!C18,0)","v":0},{"$f":"IF(D$7=$A$6,'Matris 4'!D18,0)","v":0},{"$f":"IF(E$7=$A$6,'Matris 4'!E18,0)","v":0},{"$f":"IF(F$7=$A$6,'Matris 4'!F18,0)","v":0},{"$f":"IF(G$7=$A$6,'Matris 4'!G18,0)","v":0},{"$f":"IF(H$7=$A$6,'Matris 4'!H18,0)","v":0},{"$f":"IF(I$7=$A$6,'Matris 4'!I18,0)","v":0},{"$f":"IF(J$7=$A$6,'Matris 4'!J18,0)","v":0},{"$f":"IF(K$7=$A$6,'Matris 4'!K18,0)","v":0},{"$f":"IF(L$7=$A$6,'Matris 4'!L18,0)","v":0},{"$f":"IF(M$7=$A$6,'Matris 4'!M18,0)","v":0},{"$f":"IF(N$7=$A$6,'Matris 4'!N18,0)","v":0},{"$f":"IF(O$7=$A$6,'Matris 4'!O18,0)","v":0},{"$f":"IF(P$7=$A$6,'Matris 4'!P18,0)","v":0},{"$f":"IF(Q$7=$A$6,'Matris 4'!Q18,0)","v":0},{"$f":"IF(R$7=$A$6,'Matris 4'!R18,0)","v":0},{"$f":"IF(ISNUMBER('Matris 3'!S18),(SUM(C18:R18)),\"\")","v":0},{"$f":"IF((ISNUMBER('Matris 3'!T18)),(SUM(S18:S19)),\"\")","v":0}]
[null,"Lång sikt",{"$f":"IF(C$7=$A$6,'Matris 4'!C19,0)","v":0},{"$f":"IF(D$7=$A$6,'Matris 4'!D19,0)","v":0},{"$f":"IF(E$7=$A$6,'Matris 4'!E19,0)","v":0},{"$f":"IF(F$7=$A$6,'Matris 4'!F19,0)","v":0},{"$f":"IF(G$7=$A$6,'Matris 4'!G19,0)","v":0},{"$f":"IF(H$7=$A$6,'Matris 4'!H19,0)","v":0},{"$f":"IF(I$7=$A$6,'Matris 4'!I19,0)","v":0},{"$f":"IF(J$7=$A$6,'Matris 4'!J19,0)","v":0},{"$f":"IF(K$7=$A$6,'Matris 4'!K19,0)","v":0},{"$f":"IF(L$7=$A$6,'Matris 4'!L19,0)","v":0},{"$f":"IF(M$7=$A$6,'Matris 4'!M19,0)","v":0},{"$f":"IF(N$7=$A$6,'Matris 4'!N19,0)","v":0},{"$f":"IF(O$7=$A$6,'Matris 4'!O19,0)","v":0},{"$f":"IF(P$7=$A$6,'Matris 4'!P19,0)","v":0},{"$f":"IF(Q$7=$A$6,'Matris 4'!Q19,0)","v":0},{"$f":"IF(R$7=$A$6,'Matris 4'!R19,0)","v":0},{"$f":"IF(ISNUMBER('Matris 3'!S19),(SUM(C19:R19)),\"\")","v":0}]
[{"$f":"'Matris 1'!A13","v":"Åtgärdsförslag 5"},"Kort sikt",{"$f":"IF(C$7=$A$6,'Matris 4'!C20,0)","v":0},{"$f":"IF(D$7=$A$6,'Matris 4'!D20,0)","v":0},{"$f":"IF(E$7=$A$6,'Matris 4'!E20,0)","v":0},{"$f":"IF(F$7=$A$6,'Matris 4'!F20,0)","v":0},{"$f":"IF(G$7=$A$6,'Matris 4'!G20,0)","v":0},{"$f":"IF(H$7=$A$6,'Matris 4'!H20,0)","v":0},{"$f":"IF(I$7=$A$6,'Matris 4'!I20,0)","v":0},{"$f":"IF(J$7=$A$6,'Matris 4'!J20,0)","v":0},{"$f":"IF(K$7=$A$6,'Matris 4'!K20,0)","v":0},{"$f":"IF(L$7=$A$6,'Matris 4'!L20,0)","v":0},{"$f":"IF(M$7=$A$6,'Matris 4'!M20,0)","v":0},{"$f":"IF(N$7=$A$6,'Matris 4'!N20,0)","v":0},{"$f":"IF(O$7=$A$6,'Matris 4'!O20,0)","v":0},{"$f":"IF(P$7=$A$6,'Matris 4'!P20,0)","v":0},{"$f":"IF(Q$7=$A$6,'Matris 4'!Q20,0)","v":0},{"$f":"IF(R$7=$A$6,'Matris 4'!R20,0)","v":0},{"$f":"IF(ISNUMBER('Matris 3'!S20),(SUM(C20:R20)),\"\")","v":0},{"$f":"IF((ISNUMBER('Matris 3'!T20)),(SUM(S20:S21)),\"\")","v":0}]
[null,"Lång sikt",{"$f":"IF(C$7=$A$6,'Matris 4'!C21,0)","v":0},{"$f":"IF(D$7=$A$6,'Matris 4'!D21,0)","v":0},{"$f":"IF(E$7=$A$6,'Matris 4'!E21,0)","v":0},{"$f":"IF(F$7=$A$6,'Matris 4'!F21,0)","v":0},{"$f":"IF(G$7=$A$6,'Matris 4'!G21,0)","v":0},{"$f":"IF(H$7=$A$6,'Matris 4'!H21,0)","v":0},{"$f":"IF(I$7=$A$6,'Matris 4'!I21,0)","v":0},{"$f":"IF(J$7=$A$6,'Matris 4'!J21,0)","v":0},{"$f":"IF(K$7=$A$6,'Matris 4'!K21,0)","v":0},{"$f":"IF(L$7=$A$6,'Matris 4'!L21,0)","v":0},{"$f":"IF(M$7=$A$6,'Matris 4'!M21,0)","v":0},{"$f":"IF(N$7=$A$6,'Matris 4'!N21,0)","v":0},{"$f":"IF(O$7=$A$6,'Matris 4'!O21,0)","v":0},{"$f":"IF(P$7=$A$6,'Matris 4'!P21,0)","v":0},{"$f":"IF(Q$7=$A$6,'Matris 4'!Q21,0)","v":0},{"$f":"IF(R$7=$A$6,'Matris 4'!R21,0)","v":0},{"$f":"IF(ISNUMBER('Matris 3'!S21),(SUM(C21:R21)),\"\")","v":0}]
[null,null,null,null,null,null,null,null,null,null,null,"5 & 6"]
[null,null,null,null,null,null,null,null,null,null,null,"3 & 4"]
["OBS! När bedömningen i matris 3, och vikten i matris 4A är ifyllda, förs den viktade bedömingen automatiskt in i rätt cell.",null,null,null,null,null,null,null,null,null,null,"1 & 2"]
["Klicka på den färgade knappen för att färglägga cellerna.",null,null,null,null,null,null,null,null,null,null,0]
["Klicka på den blå knappen för att återfå blå färg.",null,null,null,null,null,null,null,null,null,null,"-1 & -2"]
[null,null,null,null,null,null,null,null,null,null,null,"-3 & -4"]

{"sheet":"Vikt dim 2","index":15,"n_rows":29,"n_cols":19,"rows_kept":29,"cut":false,"hidden":true,"merged":[[9,0,9,1],[7,0,7,1],[8,0,8,1],[0,0,0,1],[0,2,0,18],[3,0,3,14],[4,0,4,3],[6,0,6,1],[6,18,8,18]]}
["Objekt:",null,{"$f":"'Matris 1'!B1","v":"XYZ-köping"}]
[]
["Övergripande mål:"]
[{"$f":"'Matris 1'!A4","v":0},null,null,null,null,null,null,null,null,null,null,null,null,null,null,null,null,"Skriv ut i A3-format, liggande."]
["Matris 4a - summering dimension:"]
[{"$f":"Inställningar!C19","v":"Social"}]
["Åtgärd",null,{"$f":"Inställningar!K47","v":"Ekologisk"},{"$f":"Inställningar!L47","v":"Ekologisk"},{"$f":"Inställningar!M47","v":"Ekologisk"},{"$f":"Inställningar!N47","v":"Ekologisk"},{"$f":"Inställningar!O47","v":"Ekologisk"},{"$f":"Inställningar!P47","v":"Ekologisk"},{"$f":"Inställningar!Q47","v":"Social"},{"$f":"Inställningar!R47","v":"Social"},{"$f":"Inställningar!S47","v":"Social"},{"$f":"Inställningar!T47","v":"Social"},{"$f":"Inställningar!U47","v":"Social"},{"$f":"Inställningar!V47","v":"Ekonomisk"},{"$f":"Inställningar!W47","v":"Ekonomisk"},{"$f":"Inställningar!X47","v":"Ekonomisk"},{"$f":"Inställningar!Y47","v":"Ekonomisk"},{"$f":"Inställningar!Z47","v":""},"Delsumma"]
[null,null,{"$f":"'Matris 2'!C8","v":"1. Utsläpp till luft"},{"$f":"'Matris 2'!D8","v":"2. Jord och mark"},{"$f":"'Matris 2'!E8","v":"3. Grundvatten"},{"$f":"'Matris 2'!F8","v":"4. Ytvatten och sediment"},{"$f":"'Matris 2'!G8","v":"5. Ekologi"},{"$f":"'Matris 2'!H8","v":"6. Naturresurser och avfall"},{"$f":"'Matris 2'!I8","v":"7. Hälsa och säkerhet"},{"$f":"'Matris 2'!J8","v":"8. Etik och jämlikhet"},{"$f":"'Matris 2'!K8","v":"9. Närmiljö"},{"$f":"'Matris 2'!L8","v":"10. Lokalsamhälle"},{"$f":"'Matris 2'!M8","v":"11. Osäkerhet och evidens"},{"$f":"'Matris 2'!N8","v":"12. Direkta kostnader och nyttor"},{"$f":"'Matris 2'!O8","v":"13. Indirekta kostnader och nyttor"},{"$f":"'Matris 2'!P8","v":"14. Inducerade kostnader och nyttor"},{"$f":"'Matris 2'!Q8","v":"15. Beständighet och flexibilitet"},{"$f":"'Matris 2'!R8","v":""}]
["Vikt",null,{"$f":"'Matris 3'!C9","v":1},{"$f":"'Matris 3'!D9","v":1},{"$f":"'Matris 3'!E9","v":1},{"$f":"'Matris 3'!F9","v":1},{"$f":"'Matris 3'!G9","v":1},{"$f":"'Matris 3'!H9","v":1},{"$f":"'Matris 3'!I9","v":1},{"$f":"'Matris 3'!J9","v":1},{"$f":"'Matris 3'!K9","v":1},{"$f":"'Matris 3'!L9","v":1},{"$f":"'Matris 3'!M9","v":1},{"$f":"'Matris 3'!N9","v":1},{"$f":"'Matris 3'!O9","v":1},{"$f":"'Matris 3'!P9","v":1},{"$f":"'Matris 3'!Q9","v":1},{"$f":"'Matris 3'!R9","v":0}]
["Vikt dimension 2",null,{"$f":"IF(C$7=$A$6,'Matris 4'!C9,0)","v":0},{"$f":"IF(D$7=$A$6,'Matris 4'!D9,0)","v":0},{"$f":"IF(E$7=$A$6,'Matris 4'!E9,0)","v":0},{"$f":"IF(F$7=$A$6,'Matris 4'!F9,0)","v":0},{"$f":"IF(G$7=$A$6,'Matris 4'!G9,0)","v":0},{"$f":"IF(H$7=$A$6,'Matris 4'!H9,0)","v":0},{"$f":"IF(I$7=$A$6,'Matris 4'!I9,0)","v":1},{"$f":"IF(J$7=$A$6,'Matris 4'!J9,0)","v":1},{"$f":"IF(K$7=$A$6,'Matris 4'!K9,0)","v":1},{"$f":"IF(L$7=$A$6,'Matris 4'!L9,0)","v":1},{"$f":"IF(M$7=$A$6,'Matris 4'!M9,0)","v":1},{"$f":"IF(N$7=$A$6,'Matris 4'!N9,0)","v":0},{"$f":"IF(O$7=$A$6,'Matris 4'!O9,0)","v":0},{"$f":"IF(P$7=$A$6,'Matris 4'!P9,0)","v":0},{"$f":"IF(Q$7=$A$6,'Matris 4'!Q9,0)","v":0},{"$f":"IF(R$7=$A$6,'Matris 4'!R9,0)","v":0},{"$f":"IF(ISNUMBER('Matris 3'!S10),(SUM(C10:R10)),\"\")","v":5}]
[]
[]
[]
[null,null,{"$f":"C$10","v":0}]
[null,null,{"$f":"D$10","v":0}]
[null,null,{"$f":"E$10","v":0}]
[null,null,{"$f":"F$10","v":0}]
[null,null,{"$f":"G$10","v":0}]
[null,null,{"$f":"H$10","v":0}]
[null,null,{"$f":"I$10","v":1}]
[null,null,{"$f":"J$10","v":1}]
[null,null,{"$f":"K$10","v":1}]
[null,null,{"$f":"L$10","v":1}]
[null,null,{"$f":"M$10","v":1}]
[null,null,{"$f":"N$10","v":0}]
[null,null,{"$f":"O$10","v":0}]
[null,null,{"$f":"P$10","v":0}]
[null,null,{"$f":"Q$10","v":0}]
[null,null,{"$f":"R$10","v":0}]

{"sheet":"Sum. dim 3","index":16,"n_rows":27,"n_cols":20,"rows_kept":27,"cut":false,"hidden":true,"merged":[[11,0,12,0],[11,19,12,19],[0,0,0,1],[0,2,0,18],[3,0,3,14],[4,0,4,3],[6,0,6,1],[6,18,8,18],[6,19,7,19],[7,0,7,1],[8,0,8,1],[9,0,10,0],[9,19,10,19],[19,0,20,0],[19,19,20,19],[13,0,14,0],[13,19,14,19],[15,0,16,0],[15,19,16,19],[17,0,18,0],[17,19,18,19]]}
["Objekt:",null,{"$f":"'Matris 1'!B1","v":"XYZ-köping"}]
[]
["Övergripande mål:"]
[{"$f":"'Matris 1'!A4","v":0},null,null,null,null,null,null,null,null,null,null,null,null,null,null,null,null,"Skriv ut i A3-format, liggande."]
["Matris 4a - summering dimension:"]
[{"$f":"Inställningar!C20","v":"Ekonomisk"}]
["Åtgärd",null,{"$f":"Inställningar!K47","v":"Ekologisk"},{"$f":"Inställningar!L47","v":"Ekologisk"},{"$f":"Inställningar!M47","v":"Ekologisk"},{"$f":"Inställningar!N47","v":"Ekologisk"},{"$f":"Inställningar!O47","v":"Ekologisk"},{"$f":"Inställningar!P47","v":"Ekologisk"},{"$f":"Inställningar!Q47","v":"Social"},{"$f":"Inställningar!R47","v":"Social"},{"$f":"Inställningar!S47","v":"Social"},{"$f":"Inställningar!T47","v":"Social"},{"$f":"Inställningar!U47","v":"Social"},{"$f":"Inställningar!V47","v":"Ekonomisk"},{"$f":"Inställningar!W47","v":"Ekonomisk"},{"$f":"Inställningar!X47","v":"Ekonomisk"},{"$f":"Inställningar!Y47","v":"Ekonomisk"},{"$f":"Inställningar!Z47","v":""},"Delsumma","Summa"]
[null,null,{"$f":"'Matris 2'!C8","v":"1. Utsläpp till luft"},{"$f":"'Matris 2'!D8","v":"2. Jord och mark"},{"$f":"'Matris 2'!E8","v":"3. Grundvatten"},{"$f":"'Matris 2'!F8","v":"4. Ytvatten och sediment"},{"$f":"'Matris 2'!G8","v":"5. Ekologi"},{"$f":"'Matris 2'!H8","v":"6. Naturresurser och avfall"},{"$f":"'Matris 2'!I8","v":"7. Hälsa och säkerhet"},{"$f":"'Matris 2'!J8","v":"8. Etik och jämlikhet"},{"$f":"'Matris 2'!K8","v":"9. Närmiljö"},{"$f":"'Matris 2'!L8","v":"10. Lokalsamhälle"},{"$f":"'Matris 2'!M8","v":"11. Osäkerhet och evidens"},{"$f":"'Matris 2'!N8","v":"12. Direkta kostnader och nyttor"},{"$f":"'Matris 2'!O8","v":"13. Indirekta kostnader och nyttor"},{"$f":"'Matris 2'!P8","v":"14. Inducerade kostnader och nyttor"},{"$f":"'Matris 2'!Q8","v":"15. Beständighet och flexibilitet"},{"$f":"'Matris 2'!R8","v":""}]
["Vikt",null,{"$f":"'Matris 3'!C9","v":1},{"$f":"'Matris 3'!D9","v":1},{"$f":"'Matris 3'!E9","v":1},{"$f":"'Matris 3'!F9","v":1},{"$f":"'Matris 3'!G9","v":1},{"$f":"'Matris 3'!H9","v":1},{"$f":"'Matris 3'!I9","v":1},{"$f":"'Matris 3'!J9","v":1},{"$f":"'Matris 3'!K9","v":1},{"$f":"'Matris 3'!L9","v":1},{"$f":"'Matris 3'!M9","v":1},{"$f":"'Matris 3'!N9","v":1},{"$f":"'Matris 3'!O9","v":1},{"$f":"'Matris 3'!P9","v":1},{"$f":"'Matris 3'!Q9","v":1},{"$f":"'Matris 3'!R9","v":0}]
[{"$f":"'Matris 1'!A8","v":"Nollalternativ: ingen åtgärd"},"Kort sikt",{"$f":"IF(C$7=$A$6,'Matris 4'!C10,0)","v":0},{"$f":"IF(D$7=$A$6,'Matris 4'!D10,0)","v":0},{"$f":"IF(E$7=$A$6,'Matris 4'!E10,0)","v":0},{"$f":"IF(F$7=$A$6,'Matris 4'!F10,0)","v":0},{"$f":"IF(G$7=$A$6,'Matris 4'!G10,0)","v":0},{"$f":"IF(H$7=$A$6,'Matris 4'!H10,0)","v":0},{"$f":"IF(I$7=$A$6,'Matris 4'!I10,0)","v":0},{"$f":"IF(J$7=$A$6,'Matris 4'!J10,0)","v":0},{"$f":"IF(K$7=$A$6,'Matris 4'!K10,0)","v":0},{"$f":"IF(L$7=$A$6,'Matris 4'!L10,0)","v":0},{"$f":"IF(M$7=$A$6,'Matris 4'!M10,0)","v":0},{"$f":"IF(N$7=$A$6,'Matris 4'!N10,0)","v":0},{"$f":"IF(O$7=$A$6,'Matris 4'!O10,0)","v":0},{"$f":"IF(P$7=$A$6,'Matris 4'!P10,0)","v":0},{"$f":"IF(Q$7=$A$6,'Matris 4'!Q10,0)","v":0},{"$f":"IF(R$7=$A$6,'Matris 4'!R10,0)","v":0},{"$f":"IF(ISNUMBER('Matris 3'!S10),(SUM(C10:R10)),\"\")","v":0},{"$f":"IF((ISNUMBER('Matris 3'!T10)),(SUM(S10:S11)),\"\")","v":0}]
[null,"Lång sikt",{"$f":"IF(C$7=$A$6,'Matris 4'!C11,0)","v":0},{"$f":"IF(D$7=$A$6,'Matris 4'!D11,0)","v":0},{"$f":"IF(E$7=$A$6,'Matris 4'!E11,0)","v":0},{"$f":"IF(F$7=$A$6,'Matris 4'!F11,0)","v":0},{"$f":"IF(G$7=$A$6,'Matris 4'!G11,0)","v":0},{"$f":"IF(H$7=$A$6,'Matris 4'!H11,0)","v":0},{"$f":"IF(I$7=$A$6,'Matris 4'!I11,0)","v":0},{"$f":"IF(J$7=$A$6,'Matris 4'!J11,0)","v":0},{"$f":"IF(K$7=$A$6,'Matris 4'!K11,0)","v":0},{"$f":"IF(L$7=$A$6,'Matris 4'!L11,0)","v":0},{"$f":"IF(M$7=$A$6,'Matris 4'!M11,0)","v":0},{"$f":"IF(N$7=$A$6,'Matris 4'!N11,0)","v":0},{"$f":"IF(O$7=$A$6,'Matris 4'!O11,0)","v":0},{"$f":"IF(P$7=$A$6,'Matris 4'!P11,0)","v":0},{"$f":"IF(Q$7=$A$6,'Matris 4'!Q11,0)","v":0},{"$f":"IF(R$7=$A$6,'Matris 4'!R11,0)","v":0},{"$f":"IF(ISNUMBER('Matris 3'!S11),(SUM(C11:R11)),\"\")","v":0}]
[{"$f":"'Matris 1'!A9","v":"Åtgärdsförslag 1"},"Kort sikt",{"$f":"IF(C$7=$A$6,'Matris 4'!C12,0)","v":0},{"$f":"IF(D$7=$A$6,'Matris 4'!D12,0)","v":0},{"$f":"IF(E$7=$A$6,'Matris 4'!E12,0)","v":0},{"$f":"IF(F$7=$A$6,'Matris 4'!F12,0)","v":0},{"$f":"IF(G$7=$A$6,'Matris 4'!G12,0)","v":0},{"$f":"IF(H$7=$A$6,'Matris 4'!H12,0)","v":0},{"$f":"IF(I$7=$A$6,'Matris 4'!I12,0)","v":0},{"$f":"IF(J$7=$A$6,'Matris 4'!J12,0)","v":0},{"$f":"IF(K$7=$A$6,'Matris 4'!K12,0)","v":0},{"$f":"IF(L$7=$A$6,'Matris 4'!L12,0)","v":0},{"$f":"IF(M$7=$A$6,'Matris 4'!M12,0)","v":0},{"$f":"IF(N$7=$A$6,'Matris 4'!N12,0)","v":0},{"$f":"IF(O$7=$A$6,'Matris 4'!O12,0)","v":0},{"$f":"IF(P$7=$A$6,'Matris 4'!P12,0)","v":0},{"$f":"IF(Q$7=$A$6,'Matris 4'!Q12,0)","v":0},{"$f":"IF(R$7=$A$6,'Matris 4'!R12,0)","v":0},{"$f":"IF(ISNUMBER('Matris 3'!S12),(SUM(C12:R12)),\"\")","v":0},{"$f":"IF((ISNUMBER('Matris 3'!T12)),(SUM(S12:S13)),\"\")","v":0}]
[null,"Lång sikt",{"$f":"IF(C$7=$A$6,'Matris 4'!C13,0)","v":0},{"$f":"IF(D$7=$A$6,'Matris 4'!D13,0)","v":0},{"$f":"IF(E$7=$A$6,'Matris 4'!E13,0)","v":0},{"$f":"IF(F$7=$A$6,'Matris 4'!F13,0)","v":0},{"$f":"IF(G$7=$A$6,'Matris 4'!G13,0)","v":0},{"$f":"IF(H$7=$A$6,'Matris 4'!H13,0)","v":0},{"$f":"IF(I$7=$A$6,'Matris 4'!I13,0)","v":0},{"$f":"IF(J$7=$A$6,'Matris 4'!J13,0)","v":0},{"$f":"IF(K$7=$A$6,'Matris 4'!K13,0)","v":0},{"$f":"IF(L$7=$A$6,'Matris 4'!L13,0)","v":0},{"$f":"IF(M$7=$A$6,'Matris 4'!M13,0)","v":0},{"$f":"IF(N$7=$A$6,'Matris 4'!N13,0)","v":0},{"$f":"IF(O$7=$A$6,'Matris 4'!O13,0)","v":0},{"$f":"IF(P$7=$A$6,'Matris 4'!P13,0)","v":0},{"$f":"IF(Q$7=$A$6,'Matris 4'!Q13,0)","v":0},{"$f":"IF(R$7=$A$6,'Matris 4'!R13,0)","v":0},{"$f":"IF(ISNUMBER('Matris 3'!S13),(SUM(C13:R13)),\"\")","v":0}]
[{"$f":"'Matris 1'!A10","v":"Åtgärdsförslag 2"},"Kort sikt",{"$f":"IF(C$7=$A$6,'Matris 4'!C14,0)","v":0},{"$f":"IF(D$7=$A$6,'Matris 4'!D14,0)","v":0},{"$f":"IF(E$7=$A$6,'Matris 4'!E14,0)","v":0},{"$f":"IF(F$7=$A$6,'Matris 4'!F14,0)","v":0},{"$f":"IF(G$7=$A$6,'Matris 4'!G14,0)","v":0},{"$f":"IF(H$7=$A$6,'Matris 4'!H14,0)","v":0},{"$f":"IF(I$7=$A$6,'Matris 4'!I14,0)","v":0},{"$f":"IF(J$7=$A$6,'Matris 4'!J14,0)","v":0},{"$f":"IF(K$7=$A$6,'Matris 4'!K14,0)","v":0},{"$f":"IF(L$7=$A$6,'Matris 4'!L14,0)","v":0},{"$f":"IF(M$7=$A$6,'Matris 4'!M14,0)","v":0},{"$f":"IF(N$7=$A$6,'Matris 4'!N14,0)","v":0},{"$f":"IF(O$7=$A$6,'Matris 4'!O14,0)","v":0},{"$f":"IF(P$7=$A$6,'Matris 4'!P14,0)","v":0},{"$f":"IF(Q$7=$A$6,'Matris 4'!Q14,0)","v":0},{"$f":"IF(R$7=$A$6,'Matris 4'!R14,0)","v":0},{"$f":"IF(ISNUMBER('Matris 3'!S14),(SUM(C14:R14)),\"\")","v":0},{"$f":"IF((ISNUMBER('Matris 3'!T14)),(SUM(S14:S15)),\"\")","v":0}]
[null,"Lång sikt",{"$f":"IF(C$7=$A$6,'Matris 4'!C15,0)","v":0},{"$f":"IF(D$7=$A$6,'Matris 4'!D15,0)","v":0},{"$f":"IF(E$7=$A$6,'Matris 4'!E15,0)","v":0},{"$f":"IF(F$7=$A$6,'Matris 4'!F15,0)","v":0},{"$f":"IF(G$7=$A$6,'Matris 4'!G15,0)","v":0},{"$f":"IF(H$7=$A$6,'Matris 4'!H15,0)","v":0},{"$f":"IF(I$7=$A$6,'Matris 4'!I15,0)","v":0},{"$f":"IF(J$7=$A$6,'Matris 4'!J15,0)","v":0},{"$f":"IF(K$7=$A$6,'Matris 4'!K15,0)","v":0},{"$f":"IF(L$7=$A$6,'Matris 4'!L15,0)","v":0},{"$f":"IF(M$7=$A$6,'Matris 4'!M15,0)","v":0},{"$f":"IF(N$7=$A$6,'Matris 4'!N15,0)","v":0},{"$f":"IF(O$7=$A$6,'Matris 4'!O15,0)","v":0},{"$f":"IF(P$7=$A$6,'Matris 4'!P15,0)","v":0},{"$f":"IF(Q$7=$A$6,'Matris 4'!Q15,0)","v":0},{"$f":"IF(R$7=$A$6,'Matris 4'!R15,0)","v":0},{"$f":"IF(ISNUMBER('Matris 3'!S15),(SUM(C15:R15)),\"\")","v":0}]
[{"$f":"'Matris 1'!A11","v":"Åtgärdsförslag 3"},"Kort sikt",{"$f":"IF(C$7=$A$6,'Matris 4'!C16,0)","v":0},{"$f":"IF(D$7=$A$6,'Matris 4'!D16,0)","v":0},{"$f":"IF(E$7=$A$6,'Matris 4'!E16,0)","v":0},{"$f":"IF(F$7=$A$6,'Matris 4'!F16,0)","v":0},{"$f":"IF(G$7=$A$6,'Matris 4'!G16,0)","v":0},{"$f":"IF(H$7=$A$6,'Matris 4'!H16,0)","v":0},{"$f":"IF(I$7=$A$6,'Matris 4'!I16,0)","v":0},{"$f":"IF(J$7=$A$6,'Matris 4'!J16,0)","v":0},{"$f":"IF(K$7=$A$6,'Matris 4'!K16,0)","v":0},{"$f":"IF(L$7=$A$6,'Matris 4'!L16,0)","v":0},{"$f":"IF(M$7=$A$6,'Matris 4'!M16,0)","v":0},{"$f":"IF(N$7=$A$6,'Matris 4'!N16,0)","v":0},{"$f":"IF(O$7=$A$6,'Matris 4'!O16,0)","v":0},{"$f":"IF(P$7=$A$6,'Matris 4'!P16,0)","v":0},{"$f":"IF(Q$7=$A$6,'Matris 4'!Q16,0)","v":0},{"$f":"IF(R$7=$A$6,'Matris 4'!R16,0)","v":0},{"$f":"IF(ISNUMBER('Matris 3'!S16),(SUM(C16:R16)),\"\")","v":0},{"$f":"IF((ISNUMBER('Matris 3'!T16)),(SUM(S16:S17)),\"\")","v":0}]
[null,"Lång sikt",{"$f":"IF(C$7=$A$6,'Matris 4'!C17,0)","v":0},{"$f":"IF(D$7=$A$6,'Matris 4'!D17,0)","v":0},{"$f":"IF(E$7=$A$6,'Matris 4'!E17,0)","v":0},{"$f":"IF(F$7=$A$6,'Matris 4'!F17,0)","v":0},{"$f":"IF(G$7=$A$6,'Matris 4'!G17,0)","v":0},{"$f":"IF(H$7=$A$6,'Matris 4'!H17,0)","v":0},{"$f":"IF(I$7=$A$6,'Matris 4'!I17,0)","v":0},{"$f":"IF(J$7=$A$6,'Matris 4'!J17,0)","v":0},{"$f":"IF(K$7=$A$6,'Matris 4'!K17,0)","v":0},{"$f":"IF(L$7=$A$6,'Matris 4'!L17,0)","v":0},{"$f":"IF(M$7=$A$6,'Matris 4'!M17,0)","v":0},{"$f":"IF(N$7=$A$6,'Matris 4'!N17,0)","v":0},{"$f":"IF(O$7=$A$6,'Matris 4'!O17,0)","v":0},{"$f":"IF(P$7=$A$6,'Matris 4'!P17,0)","v":0},{"$f":"IF(Q$7=$A$6,'Matris 4'!Q17,0)","v":0},{"$f":"IF(R$7=$A$6,'Matris 4'!R17,0)","v":0},{"$f":"IF(ISNUMBER('Matris 3'!S17),(SUM(C17:R17)),\"\")","v":0}]
[{"$f":"'Matris 1'!A12","v":"Åtgärdsförslag 4"},"Kort sikt",{"$f":"IF(C$7=$A$6,'Matris 4'!C18,0)","v":0},{"$f":"IF(D$7=$A$6,'Matris 4'!D18,0)","v":0},{"$f":"IF(E$7=$A$6,'Matris 4'!E18,0)","v":0},{"$f":"IF(F$7=$A$6,'Matris 4'!F18,0)","v":0},{"$f":"IF(G$7=$A$6,'Matris 4'!G18,0)","v":0},{"$f":"IF(H$7=$A$6,'Matris 4'!H18,0)","v":0},{"$f":"IF(I$7=$A$6,'Matris 4'!I18,0)","v":0},{"$f":"IF(J$7=$A$6,'Matris 4'!J18,0)","v":0},{"$f":"IF(K$7=$A$6,'Matris 4'!K18,0)","v":0},{"$f":"IF(L$7=$A$6,'Matris 4'!L18,0)","v":0},{"$f":"IF(M$7=$A$6,'Matris 4'!M18,0)","v":0},{"$f":"IF(N$7=$A$6,'Matris 4'!N18,0)","v":0},{"$f":"IF(O$7=$A$6,'Matris 4'!O18,0)","v":0},{"$f":"IF(P$7=$A$6,'Matris 4'!P18,0)","v":0},{"$f":"IF(Q$7=$A$6,'Matris 4'!Q18,0)","v":0},{"$f":"IF(R$7=$A$6,'Matris 4'!R18,0)","v":0},{"$f":"IF(ISNUMBER('Matris 3'!S18),(SUM(C18:R18)),\"\")","v":0},{"$f":"IF((ISNUMBER('Matris 3'!T18)),(SUM(S18:S19)),\"\")","v":0}]
[null,"Lång sikt",{"$f":"IF(C$7=$A$6,'Matris 4'!C19,0)","v":0},{"$f":"IF(D$7=$A$6,'Matris 4'!D19,0)","v":0},{"$f":"IF(E$7=$A$6,'Matris 4'!E19,0)","v":0},{"$f":"IF(F$7=$A$6,'Matris 4'!F19,0)","v":0},{"$f":"IF(G$7=$A$6,'Matris 4'!G19,0)","v":0},{"$f":"IF(H$7=$A$6,'Matris 4'!H19,0)","v":0},{"$f":"IF(I$7=$A$6,'Matris 4'!I19,0)","v":0},{"$f":"IF(J$7=$A$6,'Matris 4'!J19,0)","v":0},{"$f":"IF(K$7=$A$6,'Matris 4'!K19,0)","v":0},{"$f":"IF(L$7=$A$6,'Matris 4'!L19,0)","v":0},{"$f":"IF(M$7=$A$6,'Matris 4'!M19,0)","v":0},{"$f":"IF(N$7=$A$6,'Matris 4'!N19,0)","v":0},{"$f":"IF(O$7=$A$6,'Matris 4'!O19,0)","v":0},{"$f":"IF(P$7=$A$6,'Matris 4'!P19,0)","v":0},{"$f":"IF(Q$7=$A$6,'Matris 4'!Q19,0)","v":0},{"$f":"IF(R$7=$A$6,'Matris 4'!R19,0)","v":0},{"$f":"IF(ISNUMBER('Matris 3'!S19),(SUM(C19:R19)),\"\")","v":0}]
[{"$f":"'Matris 1'!A13","v":"Åtgärdsförslag 5"},"Kort sikt",{"$f":"IF(C$7=$A$6,'Matris 4'!C20,0)","v":0},{"$f":"IF(D$7=$A$6,'Matris 4'!D20,0)","v":0},{"$f":"IF(E$7=$A$6,'Matris 4'!E20,0)","v":0},{"$f":"IF(F$7=$A$6,'Matris 4'!F20,0)","v":0},{"$f":"IF(G$7=$A$6,'Matris 4'!G20,0)","v":0},{"$f":"IF(H$7=$A$6,'Matris 4'!H20,0)","v":0},{"$f":"IF(I$7=$A$6,'Matris 4'!I20,0)","v":0},{"$f":"IF(J$7=$A$6,'Matris 4'!J20,0)","v":0},{"$f":"IF(K$7=$A$6,'Matris 4'!K20,0)","v":0},{"$f":"IF(L$7=$A$6,'Matris 4'!L20,0)","v":0},{"$f":"IF(M$7=$A$6,'Matris 4'!M20,0)","v":0},{"$f":"IF(N$7=$A$6,'Matris 4'!N20,0)","v":0},{"$f":"IF(O$7=$A$6,'Matris 4'!O20,0)","v":0},{"$f":"IF(P$7=$A$6,'Matris 4'!P20,0)","v":0},{"$f":"IF(Q$7=$A$6,'Matris 4'!Q20,0)","v":0},{"$f":"IF(R$7=$A$6,'Matris 4'!R20,0)","v":0},{"$f":"IF(ISNUMBER('Matris 3'!S20),(SUM(C20:R20)),\"\")","v":0},{"$f":"IF((ISNUMBER('Matris 3'!T20)),(SUM(S20:S21)),\"\")","v":0}]
[null,"Lång sikt",{"$f":"IF(C$7=$A$6,'Matris 4'!C21,0)","v":0},{"$f":"IF(D$7=$A$6,'Matris 4'!D21,0)","v":0},{"$f":"IF(E$7=$A$6,'Matris 4'!E21,0)","v":0},{"$f":"IF(F$7=$A$6,'Matris 4'!F21,0)","v":0},{"$f":"IF(G$7=$A$6,'Matris 4'!G21,0)","v":0},{"$f":"IF(H$7=$A$6,'Matris 4'!H21,0)","v":0},{"$f":"IF(I$7=$A$6,'Matris 4'!I21,0)","v":0},{"$f":"IF(J$7=$A$6,'Matris 4'!J21,0)","v":0},{"$f":"IF(K$7=$A$6,'Matris 4'!K21,0)","v":0},{"$f":"IF(L$7=$A$6,'Matris 4'!L21,0)","v":0},{"$f":"IF(M$7=$A$6,'Matris 4'!M21,0)","v":0},{"$f":"IF(N$7=$A$6,'Matris 4'!N21,0)","v":0},{"$f":"IF(O$7=$A$6,'Matris 4'!O21,0)","v":0},{"$f":"IF(P$7=$A$6,'Matris 4'!P21,0)","v":0},{"$f":"IF(Q$7=$A$6,'Matris 4'!Q21,0)","v":0},{"$f":"IF(R$7=$A$6,'Matris 4'!R21,0)","v":0},{"$f":"IF(ISNUMBER('Matris 3'!S21),(SUM(C21:R21)),\"\")","v":0}]
[null,null,null,null,null,null,null,null,null,null,null,"5 & 6"]
[null,null,null,null,null,null,null,null,null,null,null,"3 & 4"]
["OBS! När bedömningen i matris 3, och vikten i matris 4A är ifyllda, förs den viktade bedömingen automatiskt in i rätt cell.",null,null,null,null,null,null,null,null,null,null,"1 & 2"]
["Klicka på den färgade knappen för att färglägga cellerna.",null,null,null,null,null,null,null,null,null,null,0]
["Klicka på den blå knappen för att återfå blå färg.",null,null,null,null,null,null,null,null,null,null,"-1 & -2"]
[null,null,null,null,null,null,null,null,null,null,null,"-3 & -4"]

{"sheet":"Vikt dim 3","index":17,"n_rows":29,"n_cols":19,"rows_kept":29,"cut":false,"hidden":true,"merged":[[9,0,9,1],[7,0,7,1],[8,0,8,1],[0,0,0,1],[0,2,0,18],[3,0,3,14],[4,0,4,3],[6,0,6,1],[6,18,8,18]]}
["Objekt:",null,{"$f":"'Matris 1'!B1","v":"XYZ-köping"}]
[]
["Övergripande mål:"]
[{"$f":"'Matris 1'!A4","v":0},null,null,null,null,null,null,null,null,null,null,null,null,null,null,null,null,"Skriv ut i A3-format, liggande."]
["Matris 4a - summering dimension:"]
[{"$f":"Inställningar!C20","v":"Ekonomisk"}]
["Åtgärd",null,{"$f":"Inställningar!K47","v":"Ekologisk"},{"$f":"Inställningar!L47","v":"Ekologisk"},{"$f":"Inställningar!M47","v":"Ekologisk"},{"$f":"Inställningar!N47","v":"Ekologisk"},{"$f":"Inställningar!O47","v":"Ekologisk"},{"$f":"Inställningar!P47","v":"Ekologisk"},{"$f":"Inställningar!Q47","v":"Social"},{"$f":"Inställningar!R47","v":"Social"},{"$f":"Inställningar!S47","v":"Social"},{"$f":"Inställningar!T47","v":"Social"},{"$f":"Inställningar!U47","v":"Social"},{"$f":"Inställningar!V47","v":"Ekonomisk"},{"$f":"Inställningar!W47","v":"Ekonomisk"},{"$f":"Inställningar!X47","v":"Ekonomisk"},{"$f":"Inställningar!Y47","v":"Ekonomisk"},{"$f":"Inställningar!Z47","v":""},"Delsumma"]
[null,null,{"$f":"'Matris 2'!C8","v":"1. Utsläpp till luft"},{"$f":"'Matris 2'!D8","v":"2. Jord och mark"},{"$f":"'Matris 2'!E8","v":"3. Grundvatten"},{"$f":"'Matris 2'!F8","v":"4. Ytvatten och sediment"},{"$f":"'Matris 2'!G8","v":"5. Ekologi"},{"$f":"'Matris 2'!H8","v":"6. Naturresurser och avfall"},{"$f":"'Matris 2'!I8","v":"7. Hälsa och säkerhet"},{"$f":"'Matris 2'!J8","v":"8. Etik och jämlikhet"},{"$f":"'Matris 2'!K8","v":"9. Närmiljö"},{"$f":"'Matris 2'!L8","v":"10. Lokalsamhälle"},{"$f":"'Matris 2'!M8","v":"11. Osäkerhet och evidens"},{"$f":"'Matris 2'!N8","v":"12. Direkta kostnader och nyttor"},{"$f":"'Matris 2'!O8","v":"13. Indirekta kostnader och nyttor"},{"$f":"'Matris 2'!P8","v":"14. Inducerade kostnader och nyttor"},{"$f":"'Matris 2'!Q8","v":"15. Beständighet och flexibilitet"},{"$f":"'Matris 2'!R8","v":""}]
["Vikt",null,{"$f":"'Matris 3'!C9","v":1},{"$f":"'Matris 3'!D9","v":1},{"$f":"'Matris 3'!E9","v":1},{"$f":"'Matris 3'!F9","v":1},{"$f":"'Matris 3'!G9","v":1},{"$f":"'Matris 3'!H9","v":1},{"$f":"'Matris 3'!I9","v":1},{"$f":"'Matris 3'!J9","v":1},{"$f":"'Matris 3'!K9","v":1},{"$f":"'Matris 3'!L9","v":1},{"$f":"'Matris 3'!M9","v":1},{"$f":"'Matris 3'!N9","v":1},{"$f":"'Matris 3'!O9","v":1},{"$f":"'Matris 3'!P9","v":1},{"$f":"'Matris 3'!Q9","v":1},{"$f":"'Matris 3'!R9","v":0}]
["Vikt dimension 3",null,{"$f":"IF(C$7=$A$6,'Matris 4'!C9,0)","v":0},{"$f":"IF(D$7=$A$6,'Matris 4'!D9,0)","v":0},{"$f":"IF(E$7=$A$6,'Matris 4'!E9,0)","v":0},{"$f":"IF(F$7=$A$6,'Matris 4'!F9,0)","v":0},{"$f":"IF(G$7=$A$6,'Matris 4'!G9,0)","v":0},{"$f":"IF(H$7=$A$6,'Matris 4'!H9,0)","v":0},{"$f":"IF(I$7=$A$6,'Matris 4'!I9,0)","v":0},{"$f":"IF(J$7=$A$6,'Matris 4'!J9,0)","v":0},{"$f":"IF(K$7=$A$6,'Matris 4'!K9,0)","v":0},{"$f":"IF(L$7=$A$6,'Matris 4'!L9,0)","v":0},{"$f":"IF(M$7=$A$6,'Matris 4'!M9,0)","v":0},{"$f":"IF(N$7=$A$6,'Matris 4'!N9,0)","v":1},{"$f":"IF(O$7=$A$6,'Matris 4'!O9,0)","v":1},{"$f":"IF(P$7=$A$6,'Matris 4'!P9,0)","v":1},{"$f":"IF(Q$7=$A$6,'Matris 4'!Q9,0)","v":1},{"$f":"IF(R$7=$A$6,'Matris 4'!R9,0)","v":0},{"$f":"IF(ISNUMBER('Matris 3'!S10),(SUM(C10:R10)),\"\")","v":4}]
[]
[]
[]
[null,null,{"$f":"C$10","v":0}]
[null,null,{"$f":"D$10","v":0}]
[null,null,{"$f":"E$10","v":0}]
[null,null,{"$f":"F$10","v":0}]
[null,null,{"$f":"G$10","v":0}]
[null,null,{"$f":"H$10","v":0}]
[null,null,{"$f":"I$10","v":0}]
[null,null,{"$f":"J$10","v":0}]
[null,null,{"$f":"K$10","v":0}]
[null,null,{"$f":"L$10","v":0}]
[null,null,{"$f":"M$10","v":0}]
[null,null,{"$f":"N$10","v":1}]
[null,null,{"$f":"O$10","v":1}]
[null,null,{"$f":"P$10","v":1}]
[null,null,{"$f":"Q$10","v":1}]
[null,null,{"$f":"R$10","v":0}]

{"sheet":"Sammanf totalt","index":18,"n_rows":13,"n_cols":4,"rows_kept":13,"cut":false,"hidden":true,"merged":[[4,0,4,1]]}
[]
[]
[]
[]
["Matris 4 - Viktad bedömning"]
["Sammanfattning av resultat, data för diagram i \"Resultat totalt\""]
["Åtgärd",{"$f":"Inställningar!C7","v":"Kort sikt"},{"$f":"Inställningar!C8","v":"Lång sikt"},"Totalt"]
[{"$f":"IF('Matris 1'!A8=\"\",\"\",'Matris 1'!A8)","v":"Nollalternativ: ingen åtgärd"},{"$f":"'Matris 4'!S10","v":0},{"$f":"'Matris 4'!S11","v":0},{"$f":"'Matris 4'!T10","v":0}]
[{"$f":"IF('Matris 1'!A9=\"\",\"\",'Matris 1'!A9)","v":"Åtgärdsförslag 1"},{"$f":"'Matris 4'!S12","v":0},{"$f":"'Matris 4'!S13","v":0},{"$f":"'Matris 4'!T12","v":0}]
[{"$f":"IF('Matris 1'!A10=\"\",\"\",'Matris 1'!A10)","v":"Åtgärdsförslag 2"},{"$f":"'Matris 4'!S14","v":0},{"$f":"'Matris 4'!S15","v":0},{"$f":"'Matris 4'!T14","v":0}]
[{"$f":"IF('Matris 1'!A11=\"\",\"\",'Matris 1'!A11)","v":"Åtgärdsförslag 3"},{"$f":"'Matris 4'!S16","v":0},{"$f":"'Matris 4'!S17","v":0},{"$f":"'Matris 4'!T16","v":0}]
[{"$f":"IF('Matris 1'!A12=\"\",\"\",'Matris 1'!A12)","v":"Åtgärdsförslag 4"},{"$f":"'Matris 4'!S18","v":0},{"$f":"'Matris 4'!S19","v":0},{"$f":"'Matris 4'!T18","v":0}]
[{"$f":"IF('Matris 1'!A13=\"\",\"\",'Matris 1'!A13)","v":"Åtgärdsförslag 5"},{"$f":"'Matris 4'!S20","v":0},{"$f":"'Matris 4'!S21","v":0},{"$f":"'Matris 4'!T20","v":0}]